Department Family,Entity,Date of Payment,Expense Type,Expense Area,Supplier,Voluntary & Community Sector,SME Class,Sole Trader,D-U-N-S Number,Transaction number,PSPES Level 2,Directorate,Amount in Sterling,Grant?
"Housing, Communities & Local Government",DLUHC,02/10/2023,Capital Grants to Private Sect Non Profit,Levelling Up,Lancaster Musicians Co-operative Lt,Yes,Micro,,,2100329654,,Community Investment and Funding Service,"50,000.00",Yes
"Housing, Communities & Local Government",DLUHC,02/10/2023,Capital Grants to Private Sect Non Profit,Levelling Up,New Mechanics Institution Preservat,,,,,2100329655,,Community Investment and Funding Service,"220,000.00",Yes
"Housing, Communities & Local Government",DLUHC,02/10/2023,Current (non AEF) Grants to Local Authorities,Levelling Up,PLYMOUTH CITY COUNCIL,,,,236416095,2100329399,,Levelling Up: Major Programmes,"45,040.00",Yes
"Housing, Communities & Local Government",DLUHC,02/10/2023,Current (non AEF) Grants to Local Authorities,Local Govnmnt Resilience and Communities,BRADFORD METROPOLITAN DC,,Public Bodies,,218122162,2300003594,,Resilience & Recovery,"-400,898.00",Yes
"Housing, Communities & Local Government",DLUHC,02/10/2023,Current (non AEF) Grants to Local Authorities,Local Govnmnt Resilience and Communities,Capital Letters (London) Limiited,,,,,3700238256,,Homelessness & Rough Sleeping,"1,125,000.00",Yes
"Housing, Communities & Local Government",DLUHC,02/10/2023,Current Grants to Non Profit Bodies,Levelling Up,New Mechanics Institution Preservat,,,,,2100329656,,Community Investment and Funding Service,"30,000.00",Yes
"Housing, Communities & Local Government",DLUHC,02/10/2023,Current Grants to Non Profit Bodies,Local Govnmnt Resilience and Communities,HIGHWAY OF HOLINESS,Yes,Small,,,3700238255,,Homelessness & Rough Sleeping,"25,000.00",Yes
"Housing, Communities & Local Government",DLUHC,02/10/2023,Electricity,Safer and Greener Buildings,SCOTTISH & SOUTHERN ENERGY,,Large,,215590474,5106302277,,Intervention Delivery,"2,048.80",
"Housing, Communities & Local Government",DLUHC,02/10/2023,Electricity,Safer and Greener Buildings,SCOTTISH & SOUTHERN ENERGY,,Large,,215590474,5106302278,,Intervention Delivery,"6,001.15",
"Housing, Communities & Local Government",DLUHC,02/10/2023,ERDF Work in Progress � Capital,Regeneration,HUDDERSFIELD UNIVERSITY,,,,,7700014468,,Community Investment & Funding Services,"22,238.11",Yes
"Housing, Communities & Local Government",DLUHC,02/10/2023,ERDF Work in Progress � Capital,Regeneration,LINCOLN UNIVERSITY,,Large,,,7700014472,,Community Investment & Funding Services,"146,578.56",Yes
"Housing, Communities & Local Government",DLUHC,02/10/2023,ERDF Work in Progress � Capital,Regeneration,SUFFOLK COUNTY COUNCIL,,Large,,,7700014460,,Community Investment & Funding Services,"8,274.15",Yes
"Housing, Communities & Local Government",DLUHC,02/10/2023,ERDF Work in Progress � Capital,Regeneration,SUFFOLK COUNTY COUNCIL,,Large,,,7700014467,,Community Investment & Funding Services,"165,242.41",Yes
"Housing, Communities & Local Government",DLUHC,02/10/2023,ERDF Work in Progress � Capital,Regeneration,SUFFOLK COUNTY COUNCIL,,Large,,,7700014477,,Community Investment & Funding Services,"141,760.64",Yes
"Housing, Communities & Local Government",DLUHC,02/10/2023,ERDF Work in Progress � Capital,Regeneration,UNIVERSITY OF EXETER,,,,,7700014476,,Community Investment & Funding Services,"87,519.36",Yes
"Housing, Communities & Local Government",DLUHC,02/10/2023,ERDF Work in Progress � Capital,Regeneration,WILTSHIRE COUNCIL,,Large,,,7700014458,,Community Investment & Funding Services,"19,442.99",Yes
"Housing, Communities & Local Government",DLUHC,02/10/2023,ERDF Work in Progress � Capital,Regeneration,WILTSHIRE COUNCIL,,Large,,,7700014475,,Community Investment & Funding Services,"32,514.94",Yes
"Housing, Communities & Local Government",DLUHC,02/10/2023,ERDF Work in Progress � Resource,Regeneration,BIRMINGHAM CITY UNIVERSITY,,Large,,,7700014473,,Community Investment & Funding Services,"58,114.24",Yes
"Housing, Communities & Local Government",DLUHC,02/10/2023,ERDF Work in Progress � Resource,Regeneration,DURHAM UNIVERSITY,,Large,,,7700014471,,Community Investment & Funding Services,252.44,Yes
"Housing, Communities & Local Government",DLUHC,02/10/2023,ERDF Work in Progress � Resource,Regeneration,HUDDERSFIELD UNIVERSITY,,,,,7700014468,,Community Investment & Funding Services,"58,019.90",Yes
"Housing, Communities & Local Government",DLUHC,02/10/2023,ERDF Work in Progress � Resource,Regeneration,LINCOLN UNIVERSITY,,Large,,,7700014461,,Community Investment & Funding Services,"37,310.80",Yes
"Housing, Communities & Local Government",DLUHC,02/10/2023,ERDF Work in Progress � Resource,Regeneration,LINCOLN UNIVERSITY,,Large,,,7700014462,,Community Investment & Funding Services,"80,401.66",Yes
"Housing, Communities & Local Government",DLUHC,02/10/2023,ERDF Work in Progress � Resource,Regeneration,LINCOLN UNIVERSITY,,Large,,,7700014463,,Community Investment & Funding Services,"45,525.01",Yes
"Housing, Communities & Local Government",DLUHC,02/10/2023,ERDF Work in Progress � Resource,Regeneration,LINCOLN UNIVERSITY,,Large,,,7700014472,,Community Investment & Funding Services,"40,946.46",Yes
"Housing, Communities & Local Government",DLUHC,02/10/2023,ERDF Work in Progress � Resource,Regeneration,LONDON SOUTH BANK UNIVERSITY,,,,,7700014469,,Community Investment & Funding Services,"94,342.74",Yes
"Housing, Communities & Local Government",DLUHC,02/10/2023,ERDF Work in Progress � Resource,Regeneration,SHEFFIELD CITY CNCL,,,,,7700014459,,Community Investment & Funding Services,"320,568.22",Yes
"Housing, Communities & Local Government",DLUHC,02/10/2023,ERDF Work in Progress � Resource,Regeneration,SUFFOLK COUNTY COUNCIL,,Large,,,7700014460,,Community Investment & Funding Services,"11,539.87",Yes
"Housing, Communities & Local Government",DLUHC,02/10/2023,ERDF Work in Progress � Resource,Regeneration,SUFFOLK COUNTY COUNCIL,,Large,,,7700014467,,Community Investment & Funding Services,"58,257.39",Yes
"Housing, Communities & Local Government",DLUHC,02/10/2023,ERDF Work in Progress � Resource,Regeneration,SUFFOLK COUNTY COUNCIL,,Large,,,7700014477,,Community Investment & Funding Services,"57,771.21",Yes
"Housing, Communities & Local Government",DLUHC,02/10/2023,ERDF Work in Progress � Resource,Regeneration,SWINDON & WILTSHIRE LOCAL ENTERPRIS,,,,,7700014464,,Community Investment & Funding Services,"7,436.21",Yes
"Housing, Communities & Local Government",DLUHC,02/10/2023,ERDF Work in Progress � Resource,Regeneration,SWINDON & WILTSHIRE LOCAL ENTERPRIS,,,,,7700014465,,Community Investment & Funding Services,"117,955.54",Yes
"Housing, Communities & Local Government",DLUHC,02/10/2023,ERDF Work in Progress � Resource,Regeneration,SWINDON & WILTSHIRE LOCAL ENTERPRIS,,,,,7700014474,,Community Investment & Funding Services,"98,617.95",Yes
"Housing, Communities & Local Government",DLUHC,02/10/2023,ERDF Work in Progress � Resource,Regeneration,UNIVERSITY OF EXETER,,,,,7700014476,,Community Investment & Funding Services,"530,904.89",Yes
"Housing, Communities & Local Government",DLUHC,02/10/2023,ERDF Work in Progress � Resource,Regeneration,UNIVERSITY OF NOTTINGHAM,,,,,7700014478,,Community Investment & Funding Services,"203,629.97",Yes
"Housing, Communities & Local Government",DLUHC,02/10/2023,ERDF Work in Progress � Resource,Regeneration,WILTSHIRE COUNCIL,,Large,,,7700014458,,Community Investment & Funding Services,"71,666.76",Yes
"Housing, Communities & Local Government",DLUHC,02/10/2023,ERDF Work in Progress � Resource,Regeneration,WILTSHIRE COUNCIL,,Large,,,7700014475,,Community Investment & Funding Services,"29,334.37",Yes
"Housing, Communities & Local Government",DLUHC,02/10/2023,ERDF Work in Progress � Resource,Regeneration,WOMEN'S ORGANISATION,,Small,,,7700014466,,Community Investment & Funding Services,"131,228.14",Yes
"Housing, Communities & Local Government",DLUHC,02/10/2023,EXP � PURCHASE OF GOODS /SERVICES R & D,CFO and Corporate,BLOOMBERG FINANCE L.P,,Large,,,5106302285,,Analysis and Data,"5,454.21",
"Housing, Communities & Local Government",DLUHC,02/10/2023,EXP � PURCHASE OF GOODS /SERVICES R & D,CFO and Corporate,NATIONAL CENTRE FOR SOCIAL RESEARCH,,Large,,424047426,5106302286,,Analysis and Data,"529,376.36",
"Housing, Communities & Local Government",DLUHC,02/10/2023,EXP � PURCHASE OF GOODS /SERVICES R & D,CFO and Corporate,NATIONAL CENTRE FOR SOCIAL RESEARCH,,Large,,424047426,5106302287,,Analysis and Data,"1,812.67",
"Housing, Communities & Local Government",DLUHC,02/10/2023,EXP � PURCHASE OF GOODS /SERVICES R & D,CFO and Corporate,NATIONAL CENTRE FOR SOCIAL RESEARCH,,Large,,424047426,5106302288,,Analysis and Data,"48,304.91",
"Housing, Communities & Local Government",DLUHC,02/10/2023,EXP � PURCHASE OF GOODS /SERVICES R & D,Local Govnmnt Resilience and Communities,CENTRE FOR HOMELESSNESS IMPACT,,Small,,,5106302289,,Homelessness & Rough Sleeping,"54,535.00",
"Housing, Communities & Local Government",DLUHC,02/10/2023,Fees,Local Govnmnt Resilience and Communities,SHARED SERVICES CONNECTED LTD,,,,210019203,2100329653,Financial,Local Government Policy,"249,887.00",
"Housing, Communities & Local Government",DLUHC,02/10/2023,Finance Consultancy,Safer and Greener Buildings,Heads Resourcing Group Ltd,,Small,,218026480,5106302268,,Intervention Delivery,"4,248.00",
"Housing, Communities & Local Government",DLUHC,02/10/2023,"IT - PC, Network & Hardware",Local Govnmnt Resilience and Communities,DCLG GOVERNMENT PROCUREMENT CARD,,,,,1000005574,ICT Hardware,Strategy and Private Offices,254.92,
"Housing, Communities & Local Government",DLUHC,02/10/2023,Professional services,Safer and Greener Buildings,RIDGE & PARTNERS LLP,,Large,,739927452,5106302154,,Intervention Delivery,"85,328.40",
"Housing, Communities & Local Government",DLUHC,02/10/2023,Repayments of Private Sect Grant (Cap),Levelling Up,EBAC LIMITED,,,,,2300003621,,Community Investment and Funding Service,"-48,185.88",
"Housing, Communities & Local Government",DLUHC,02/10/2023,Training,CFO and Corporate,ECONOMICSENSE LTD,,Micro,,,5106302270,,Analysis and Data,275.00,
"Housing, Communities & Local Government",DLUHC,02/10/2023,Training,CFO and Corporate,ECONOMICSENSE LTD,,Micro,,,5106302274,,Analysis and Data,275.00,
"Housing, Communities & Local Government",DLUHC,02/10/2023,Training,CFO and Corporate,KPMG LLP (CSL),,Large,,,5106302209,,People Capability & Change C/O,"2,415.52",
"Housing, Communities & Local Government",DLUHC,02/10/2023,Training,CFO and Corporate,KPMG LLP (CSL),,Large,,,5106302210,,People Capability & Change C/O,"2,415.52",
"Housing, Communities & Local Government",DLUHC,02/10/2023,Training,CFO and Corporate,KPMG LLP (CSL),,Large,,,5106302211,Development and Training,People Capability & Change C/O,345.00,
"Housing, Communities & Local Government",DLUHC,03/10/2023,Capital Grants to Private Sect Non Profit,Levelling Up,LIFELINE CHURCH,,,,,2100329729,,Community Investment and Funding Service,"250,000.00",Yes
"Housing, Communities & Local Government",DLUHC,03/10/2023,Capital Grants to Private Sect Non Profit,Levelling Up,RANNOCH COMMUNITY TRUST,Yes,Micro,,,2100329730,,Community Investment and Funding Service,"250,000.00",Yes
"Housing, Communities & Local Government",DLUHC,03/10/2023,Current Grants to Non Profit Bodies,Resettlements,GOOD NEIGHBOUR CHURCH ENGLAND,Yes,Micro,,,2100329593,,Resettlements,"75,000.00",Yes
"Housing, Communities & Local Government",DLUHC,03/10/2023,Elections - Head E1 Returning Officers Services,Local Govnmnt Resilience and Communities,Dunfermline & West Fife - Scot,,,,,2100329121,,Elections Directorate,"3,639.00",
"Housing, Communities & Local Government",DLUHC,03/10/2023,Elections - Head E1 Returning Officers Services,Local Govnmnt Resilience and Communities,East Ham - London,,,,,2100329160,,Elections Directorate,"4,036.00",
"Housing, Communities & Local Government",DLUHC,03/10/2023,Elections - Head E1 Returning Officers Services,Local Govnmnt Resilience and Communities,East Riding of Yorks - Y&H,,,,,2100329633,,Elections Directorate,"13,500.00",
"Housing, Communities & Local Government",DLUHC,03/10/2023,Elections - Head E1 Returning Officers Services,Local Govnmnt Resilience and Communities,Gedling - East Midlands,,,,,2100329551,,Elections Directorate,"4,511.00",
"Housing, Communities & Local Government",DLUHC,03/10/2023,Elections - Head E1 Returning Officers Services,Local Govnmnt Resilience and Communities,Glenrothes - Scotland,,,,,2100329589,,Elections Directorate,"3,192.00",
"Housing, Communities & Local Government",DLUHC,03/10/2023,Elections - Head E1 Returning Officers Services,Local Govnmnt Resilience and Communities,Gosport - South East,,,,,2100329547,,Elections Directorate,"3,138.00",
"Housing, Communities & Local Government",DLUHC,03/10/2023,Elections - Head E1 Returning Officers Services,Local Govnmnt Resilience and Communities,Isles of Scilly - South West,,,,,2100329586,,Elections Directorate,"2,638.00",
"Housing, Communities & Local Government",DLUHC,03/10/2023,Elections - Head E1 Returning Officers Services,Local Govnmnt Resilience and Communities,Kirkcaldy & Cowdenbeath - Scot,,,,,2100329124,,Elections Directorate,"3,497.00",
"Housing, Communities & Local Government",DLUHC,03/10/2023,Elections - Head E1 Returning Officers Services,Local Govnmnt Resilience and Communities,North East Fife - Scotland,,,,,2100329159,,Elections Directorate,"2,822.00",
"Housing, Communities & Local Government",DLUHC,03/10/2023,Elections - Head E1 Returning Officers Services,Local Govnmnt Resilience and Communities,West Ham - London,,,,,2100329642,,Elections Directorate,"4,444.00",
"Housing, Communities & Local Government",DLUHC,03/10/2023,Elections - Head E2 Superannuation Costs - ROs,Local Govnmnt Resilience and Communities,Gedling - East Midlands,,,,,2100329551,,Elections Directorate,"9,090.90",
"Housing, Communities & Local Government",DLUHC,03/10/2023,Elections - Head F1 Presiding Officers Pay,Local Govnmnt Resilience and Communities,Dunfermline & West Fife - Scot,,,,,2100329121,,Elections Directorate,"16,170.00",
"Housing, Communities & Local Government",DLUHC,03/10/2023,Elections - Head F1 Presiding Officers Pay,Local Govnmnt Resilience and Communities,East Ham - London,,,,,2100329160,,Elections Directorate,"20,110.00",
"Housing, Communities & Local Government",DLUHC,03/10/2023,Elections - Head F1 Presiding Officers Pay,Local Govnmnt Resilience and Communities,East Riding of Yorks - Y&H,,,,,2100329633,,Elections Directorate,"62,591.27",
"Housing, Communities & Local Government",DLUHC,03/10/2023,Elections - Head F1 Presiding Officers Pay,Local Govnmnt Resilience and Communities,Gedling - East Midlands,,,,,2100329551,,Elections Directorate,"10,708.50",
"Housing, Communities & Local Government",DLUHC,03/10/2023,Elections - Head F1 Presiding Officers Pay,Local Govnmnt Resilience and Communities,Glenrothes - Scotland,,,,,2100329589,,Elections Directorate,"14,490.00",
"Housing, Communities & Local Government",DLUHC,03/10/2023,Elections - Head F1 Presiding Officers Pay,Local Govnmnt Resilience and Communities,Gosport - South East,,,,,2100329547,,Elections Directorate,"4,291.64",
"Housing, Communities & Local Government",DLUHC,03/10/2023,Elections - Head F1 Presiding Officers Pay,Local Govnmnt Resilience and Communities,Isles of Scilly - South West,,,,,2100329586,,Elections Directorate,"1,081.00",
"Housing, Communities & Local Government",DLUHC,03/10/2023,Elections - Head F1 Presiding Officers Pay,Local Govnmnt Resilience and Communities,Kirkcaldy & Cowdenbeath - Scot,,,,,2100329124,,Elections Directorate,"14,280.00",
"Housing, Communities & Local Government",DLUHC,03/10/2023,Elections - Head F1 Presiding Officers Pay,Local Govnmnt Resilience and Communities,North East Fife - Scotland,,,,,2100329159,,Elections Directorate,"15,120.00",
"Housing, Communities & Local Government",DLUHC,03/10/2023,Elections - Head F1 Presiding Officers Pay,Local Govnmnt Resilience and Communities,West Ham - London,,,,,2100329642,,Elections Directorate,"22,140.00",
"Housing, Communities & Local Government",DLUHC,03/10/2023,Elections - Head F10 Equipment Costs,Local Govnmnt Resilience and Communities,Dunfermline & West Fife - Scot,,,,,2100329121,,Elections Directorate,"1,567.12",
"Housing, Communities & Local Government",DLUHC,03/10/2023,Elections - Head F10 Equipment Costs,Local Govnmnt Resilience and Communities,East Ham - London,,,,,2100329160,,Elections Directorate,136.80,
"Housing, Communities & Local Government",DLUHC,03/10/2023,Elections - Head F10 Equipment Costs,Local Govnmnt Resilience and Communities,East Riding of Yorks - Y&H,,,,,2100329633,,Elections Directorate,"51,766.21",
"Housing, Communities & Local Government",DLUHC,03/10/2023,Elections - Head F10 Equipment Costs,Local Govnmnt Resilience and Communities,Gedling - East Midlands,,,,,2100329551,,Elections Directorate,"5,158.13",
"Housing, Communities & Local Government",DLUHC,03/10/2023,Elections - Head F10 Equipment Costs,Local Govnmnt Resilience and Communities,Glenrothes - Scotland,,,,,2100329589,,Elections Directorate,"1,805.41",
"Housing, Communities & Local Government",DLUHC,03/10/2023,Elections - Head F10 Equipment Costs,Local Govnmnt Resilience and Communities,Gosport - South East,,,,,2100329547,,Elections Directorate,"5,382.42",
"Housing, Communities & Local Government",DLUHC,03/10/2023,Elections - Head F10 Equipment Costs,Local Govnmnt Resilience and Communities,Isles of Scilly - South West,,,,,2100329586,,Elections Directorate,717.12,
"Housing, Communities & Local Government",DLUHC,03/10/2023,Elections - Head F10 Equipment Costs,Local Govnmnt Resilience and Communities,Kirkcaldy & Cowdenbeath - Scot,,,,,2100329124,,Elections Directorate,"1,565.78",
"Housing, Communities & Local Government",DLUHC,03/10/2023,Elections - Head F10 Equipment Costs,Local Govnmnt Resilience and Communities,North East Fife - Scotland,,,,,2100329159,,Elections Directorate,"1,810.05",
"Housing, Communities & Local Government",DLUHC,03/10/2023,Elections - Head F10 Equipment Costs,Local Govnmnt Resilience and Communities,West Ham - London,,,,,2100329642,,Elections Directorate,151.20,
"Housing, Communities & Local Government",DLUHC,03/10/2023,Elections - Head F11 Cost of Printing Ballot Paper,Local Govnmnt Resilience and Communities,Dunfermline & West Fife - Scot,,,,,2100329121,,Elections Directorate,"3,461.97",
"Housing, Communities & Local Government",DLUHC,03/10/2023,Elections - Head F11 Cost of Printing Ballot Paper,Local Govnmnt Resilience and Communities,East Ham - London,,,,,2100329160,,Elections Directorate,"6,237.90",
"Housing, Communities & Local Government",DLUHC,03/10/2023,Elections - Head F11 Cost of Printing Ballot Paper,Local Govnmnt Resilience and Communities,East Riding of Yorks - Y&H,,,,,2100329633,,Elections Directorate,"26,293.90",
"Housing, Communities & Local Government",DLUHC,03/10/2023,Elections - Head F11 Cost of Printing Ballot Paper,Local Govnmnt Resilience and Communities,Gedling - East Midlands,,,,,2100329551,,Elections Directorate,267.50,
"Housing, Communities & Local Government",DLUHC,03/10/2023,Elections - Head F11 Cost of Printing Ballot Paper,Local Govnmnt Resilience and Communities,Glenrothes - Scotland,,,,,2100329589,,Elections Directorate,"3,067.57",
"Housing, Communities & Local Government",DLUHC,03/10/2023,Elections - Head F11 Cost of Printing Ballot Paper,Local Govnmnt Resilience and Communities,Gosport - South East,,,,,2100329547,,Elections Directorate,"1,924.20",
"Housing, Communities & Local Government",DLUHC,03/10/2023,Elections - Head F11 Cost of Printing Ballot Paper,Local Govnmnt Resilience and Communities,Isles of Scilly - South West,,,,,2100329586,,Elections Directorate,269.66,
"Housing, Communities & Local Government",DLUHC,03/10/2023,Elections - Head F11 Cost of Printing Ballot Paper,Local Govnmnt Resilience and Communities,Kirkcaldy & Cowdenbeath - Scot,,,,,2100329124,,Elections Directorate,"3,199.03",
"Housing, Communities & Local Government",DLUHC,03/10/2023,Elections - Head F11 Cost of Printing Ballot Paper,Local Govnmnt Resilience and Communities,North East Fife - Scotland,,,,,2100329159,,Elections Directorate,"3,199.03",
"Housing, Communities & Local Government",DLUHC,03/10/2023,Elections - Head F11 Cost of Printing Ballot Paper,Local Govnmnt Resilience and Communities,West Ham - London,,,,,2100329642,,Elections Directorate,"6,894.53",
"Housing, Communities & Local Government",DLUHC,03/10/2023,Elections - Head F2 Poll Clerks Pay,Local Govnmnt Resilience and Communities,Dunfermline & West Fife - Scot,,,,,2100329121,,Elections Directorate,"11,480.00",
"Housing, Communities & Local Government",DLUHC,03/10/2023,Elections - Head F2 Poll Clerks Pay,Local Govnmnt Resilience and Communities,East Ham - London,,,,,2100329160,,Elections Directorate,"26,660.00",
"Housing, Communities & Local Government",DLUHC,03/10/2023,Elections - Head F2 Poll Clerks Pay,Local Govnmnt Resilience and Communities,East Riding of Yorks - Y&H,,,,,2100329633,,Elections Directorate,"47,010.40",
"Housing, Communities & Local Government",DLUHC,03/10/2023,Elections - Head F2 Poll Clerks Pay,Local Govnmnt Resilience and Communities,Gedling - East Midlands,,,,,2100329551,,Elections Directorate,"1,154.40",
"Housing, Communities & Local Government",DLUHC,03/10/2023,Elections - Head F2 Poll Clerks Pay,Local Govnmnt Resilience and Communities,Glenrothes - Scotland,,,,,2100329589,,Elections Directorate,"10,220.00",
"Housing, Communities & Local Government",DLUHC,03/10/2023,Elections - Head F2 Poll Clerks Pay,Local Govnmnt Resilience and Communities,Gosport - South East,,,,,2100329547,,Elections Directorate,"4,024.91",
"Housing, Communities & Local Government",DLUHC,03/10/2023,Elections - Head F2 Poll Clerks Pay,Local Govnmnt Resilience and Communities,Isles of Scilly - South West,,,,,2100329586,,Elections Directorate,978.00,
"Housing, Communities & Local Government",DLUHC,03/10/2023,Elections - Head F2 Poll Clerks Pay,Local Govnmnt Resilience and Communities,Kirkcaldy & Cowdenbeath - Scot,,,,,2100329124,,Elections Directorate,"11,480.00",
"Housing, Communities & Local Government",DLUHC,03/10/2023,Elections - Head F2 Poll Clerks Pay,Local Govnmnt Resilience and Communities,North East Fife - Scotland,,,,,2100329159,,Elections Directorate,"10,500.00",
"Housing, Communities & Local Government",DLUHC,03/10/2023,Elections - Head F2 Poll Clerks Pay,Local Govnmnt Resilience and Communities,West Ham - London,,,,,2100329642,,Elections Directorate,"29,885.00",
"Housing, Communities & Local Government",DLUHC,03/10/2023,Elections - Head F3 Supervising Officers Pay,Local Govnmnt Resilience and Communities,Dunfermline & West Fife - Scot,,,,,2100329121,,Elections Directorate,"1,552.50",
"Housing, Communities & Local Government",DLUHC,03/10/2023,Elections - Head F3 Supervising Officers Pay,Local Govnmnt Resilience and Communities,East Ham - London,,,,,2100329160,,Elections Directorate,"2,471.42",
"Housing, Communities & Local Government",DLUHC,03/10/2023,Elections - Head F3 Supervising Officers Pay,Local Govnmnt Resilience and Communities,East Riding of Yorks - Y&H,,,,,2100329633,,Elections Directorate,"2,400.00",
"Housing, Communities & Local Government",DLUHC,03/10/2023,Elections - Head F3 Supervising Officers Pay,Local Govnmnt Resilience and Communities,Gedling - East Midlands,,,,,2100329551,,Elections Directorate,99.68,
"Housing, Communities & Local Government",DLUHC,03/10/2023,Elections - Head F3 Supervising Officers Pay,Local Govnmnt Resilience and Communities,Glenrothes - Scotland,,,,,2100329589,,Elections Directorate,"1,792.50",
"Housing, Communities & Local Government",DLUHC,03/10/2023,Elections - Head F3 Supervising Officers Pay,Local Govnmnt Resilience and Communities,Gosport - South East,,,,,2100329547,,Elections Directorate,559.99,
"Housing, Communities & Local Government",DLUHC,03/10/2023,Elections - Head F3 Supervising Officers Pay,Local Govnmnt Resilience and Communities,Isles of Scilly - South West,,,,,2100329586,,Elections Directorate,141.00,
"Housing, Communities & Local Government",DLUHC,03/10/2023,Elections - Head F3 Supervising Officers Pay,Local Govnmnt Resilience and Communities,Kirkcaldy & Cowdenbeath - Scot,,,,,2100329124,,Elections Directorate,"2,032.50",
"Housing, Communities & Local Government",DLUHC,03/10/2023,Elections - Head F3 Supervising Officers Pay,Local Govnmnt Resilience and Communities,North East Fife - Scotland,,,,,2100329159,,Elections Directorate,"2,032.50",
"Housing, Communities & Local Government",DLUHC,03/10/2023,Elections - Head F3 Supervising Officers Pay,Local Govnmnt Resilience and Communities,West Ham - London,,,,,2100329642,,Elections Directorate,"2,471.42",
"Housing, Communities & Local Government",DLUHC,03/10/2023,Elections - Head F5 Travel and Subsistence,Local Govnmnt Resilience and Communities,Dunfermline & West Fife - Scot,,,,,2100329121,,Elections Directorate,"1,813.65",
"Housing, Communities & Local Government",DLUHC,03/10/2023,Elections - Head F5 Travel and Subsistence,Local Govnmnt Resilience and Communities,East Ham - London,,,,,2100329160,,Elections Directorate,"1,575.00",
"Housing, Communities & Local Government",DLUHC,03/10/2023,Elections - Head F5 Travel and Subsistence,Local Govnmnt Resilience and Communities,East Riding of Yorks - Y&H,,,,,2100329633,,Elections Directorate,"6,417.64",
"Housing, Communities & Local Government",DLUHC,03/10/2023,Elections - Head F5 Travel and Subsistence,Local Govnmnt Resilience and Communities,Gedling - East Midlands,,,,,2100329551,,Elections Directorate,"3,840.00",
"Housing, Communities & Local Government",DLUHC,03/10/2023,Elections - Head F5 Travel and Subsistence,Local Govnmnt Resilience and Communities,Glenrothes - Scotland,,,,,2100329589,,Elections Directorate,"1,606.30",
"Housing, Communities & Local Government",DLUHC,03/10/2023,Elections - Head F5 Travel and Subsistence,Local Govnmnt Resilience and Communities,Gosport - South East,,,,,2100329547,,Elections Directorate,52.65,
"Housing, Communities & Local Government",DLUHC,03/10/2023,Elections - Head F5 Travel and Subsistence,Local Govnmnt Resilience and Communities,Isles of Scilly - South West,,,,,2100329586,,Elections Directorate,275.00,
"Housing, Communities & Local Government",DLUHC,03/10/2023,Elections - Head F5 Travel and Subsistence,Local Govnmnt Resilience and Communities,Kirkcaldy & Cowdenbeath - Scot,,,,,2100329124,,Elections Directorate,"1,825.40",
"Housing, Communities & Local Government",DLUHC,03/10/2023,Elections - Head F5 Travel and Subsistence,Local Govnmnt Resilience and Communities,North East Fife - Scotland,,,,,2100329159,,Elections Directorate,"1,726.95",
"Housing, Communities & Local Government",DLUHC,03/10/2023,Elections - Head F5 Travel and Subsistence,Local Govnmnt Resilience and Communities,West Ham - London,,,,,2100329642,,Elections Directorate,"1,665.00",
"Housing, Communities & Local Government",DLUHC,03/10/2023,Elections - Head F6 Training,Local Govnmnt Resilience and Communities,Dunfermline & West Fife - Scot,,,,,2100329121,,Elections Directorate,"5,520.00",
"Housing, Communities & Local Government",DLUHC,03/10/2023,Elections - Head F6 Training,Local Govnmnt Resilience and Communities,East Ham - London,,,,,2100329160,,Elections Directorate,"3,900.00",
"Housing, Communities & Local Government",DLUHC,03/10/2023,Elections - Head F6 Training,Local Govnmnt Resilience and Communities,East Riding of Yorks - Y&H,,,,,2100329633,,Elections Directorate,"21,680.00",
"Housing, Communities & Local Government",DLUHC,03/10/2023,Elections - Head F6 Training,Local Govnmnt Resilience and Communities,Gedling - East Midlands,,,,,2100329551,,Elections Directorate,"6,717.20",
"Housing, Communities & Local Government",DLUHC,03/10/2023,Elections - Head F6 Training,Local Govnmnt Resilience and Communities,Glenrothes - Scotland,,,,,2100329589,,Elections Directorate,"5,900.00",
"Housing, Communities & Local Government",DLUHC,03/10/2023,Elections - Head F6 Training,Local Govnmnt Resilience and Communities,Gosport - South East,,,,,2100329547,,Elections Directorate,"1,600.00",
"Housing, Communities & Local Government",DLUHC,03/10/2023,Elections - Head F6 Training,Local Govnmnt Resilience and Communities,Isles of Scilly - South West,,,,,2100329586,,Elections Directorate,275.00,
"Housing, Communities & Local Government",DLUHC,03/10/2023,Elections - Head F6 Training,Local Govnmnt Resilience and Communities,Kirkcaldy & Cowdenbeath - Scot,,,,,2100329124,,Elections Directorate,"6,440.00",
"Housing, Communities & Local Government",DLUHC,03/10/2023,Elections - Head F6 Training,Local Govnmnt Resilience and Communities,North East Fife - Scotland,,,,,2100329159,,Elections Directorate,"6,037.50",
"Housing, Communities & Local Government",DLUHC,03/10/2023,Elections - Head F6 Training,Local Govnmnt Resilience and Communities,West Ham - London,,,,,2100329642,,Elections Directorate,"4,275.00",
"Housing, Communities & Local Government",DLUHC,03/10/2023,Elections - Head F7 Accom Costs - Perm Polling,Local Govnmnt Resilience and Communities,Dunfermline & West Fife - Scot,,,,,2100329121,,Elections Directorate,"16,196.63",
"Housing, Communities & Local Government",DLUHC,03/10/2023,Elections - Head F7 Accom Costs - Perm Polling,Local Govnmnt Resilience and Communities,East Ham - London,,,,,2100329160,,Elections Directorate,"11,885.00",
"Housing, Communities & Local Government",DLUHC,03/10/2023,Elections - Head F7 Accom Costs - Perm Polling,Local Govnmnt Resilience and Communities,East Riding of Yorks - Y&H,,,,,2100329633,,Elections Directorate,"51,940.50",
"Housing, Communities & Local Government",DLUHC,03/10/2023,Elections - Head F7 Accom Costs - Perm Polling,Local Govnmnt Resilience and Communities,Gedling - East Midlands,,,,,2100329551,,Elections Directorate,997.00,
"Housing, Communities & Local Government",DLUHC,03/10/2023,Elections - Head F7 Accom Costs - Perm Polling,Local Govnmnt Resilience and Communities,Glenrothes - Scotland,,,,,2100329589,,Elections Directorate,"10,219.04",
"Housing, Communities & Local Government",DLUHC,03/10/2023,Elections - Head F7 Accom Costs - Perm Polling,Local Govnmnt Resilience and Communities,Gosport - South East,,,,,2100329547,,Elections Directorate,"3,379.42",
"Housing, Communities & Local Government",DLUHC,03/10/2023,Elections - Head F7 Accom Costs - Perm Polling,Local Govnmnt Resilience and Communities,Isles of Scilly - South West,,,,,2100329586,,Elections Directorate,505.00,
"Housing, Communities & Local Government",DLUHC,03/10/2023,Elections - Head F7 Accom Costs - Perm Polling,Local Govnmnt Resilience and Communities,Kirkcaldy & Cowdenbeath - Scot,,,,,2100329124,,Elections Directorate,"10,876.34",
"Housing, Communities & Local Government",DLUHC,03/10/2023,Elections - Head F7 Accom Costs - Perm Polling,Local Govnmnt Resilience and Communities,North East Fife - Scotland,,,,,2100329159,,Elections Directorate,"16,307.78",
"Housing, Communities & Local Government",DLUHC,03/10/2023,Elections - Head F7 Accom Costs - Perm Polling,Local Govnmnt Resilience and Communities,West Ham - London,,,,,2100329642,,Elections Directorate,"13,618.95",
"Housing, Communities & Local Government",DLUHC,03/10/2023,Elections - Head F8 Accom Costs - Temp Polling,Local Govnmnt Resilience and Communities,East Ham - London,,,,,2100329160,,Elections Directorate,"5,383.20",
"Housing, Communities & Local Government",DLUHC,03/10/2023,Elections - Head F8 Accom Costs - Temp Polling,Local Govnmnt Resilience and Communities,East Riding of Yorks - Y&H,,,,,2100329633,,Elections Directorate,"13,587.58",
"Housing, Communities & Local Government",DLUHC,03/10/2023,Elections - Head F8 Accom Costs - Temp Polling,Local Govnmnt Resilience and Communities,Gedling - East Midlands,,,,,2100329551,,Elections Directorate,"1,717.45",
"Housing, Communities & Local Government",DLUHC,03/10/2023,Elections - Head F8 Accom Costs - Temp Polling,Local Govnmnt Resilience and Communities,Glenrothes - Scotland,,,,,2100329589,,Elections Directorate,"8,070.58",
"Housing, Communities & Local Government",DLUHC,03/10/2023,Elections - Head F9 Preparation & Transport Costs,Local Govnmnt Resilience and Communities,Dunfermline & West Fife - Scot,,,,,2100329121,,Elections Directorate,"26,887.70",
"Housing, Communities & Local Government",DLUHC,03/10/2023,Elections - Head F9 Preparation & Transport Costs,Local Govnmnt Resilience and Communities,East Ham - London,,,,,2100329160,,Elections Directorate,"13,965.63",
"Housing, Communities & Local Government",DLUHC,03/10/2023,Elections - Head F9 Preparation & Transport Costs,Local Govnmnt Resilience and Communities,East Riding of Yorks - Y&H,,,,,2100329633,,Elections Directorate,"60,450.12",
"Housing, Communities & Local Government",DLUHC,03/10/2023,Elections - Head F9 Preparation & Transport Costs,Local Govnmnt Resilience and Communities,Gedling - East Midlands,,,,,2100329551,,Elections Directorate,"4,921.91",
"Housing, Communities & Local Government",DLUHC,03/10/2023,Elections - Head F9 Preparation & Transport Costs,Local Govnmnt Resilience and Communities,Glenrothes - Scotland,,,,,2100329589,,Elections Directorate,"25,013.41",
"Housing, Communities & Local Government",DLUHC,03/10/2023,Elections - Head F9 Preparation & Transport Costs,Local Govnmnt Resilience and Communities,Gosport - South East,,,,,2100329547,,Elections Directorate,"1,565.67",
"Housing, Communities & Local Government",DLUHC,03/10/2023,Elections - Head F9 Preparation & Transport Costs,Local Govnmnt Resilience and Communities,Isles of Scilly - South West,,,,,2100329586,,Elections Directorate,810.00,
"Housing, Communities & Local Government",DLUHC,03/10/2023,Elections - Head F9 Preparation & Transport Costs,Local Govnmnt Resilience and Communities,Kirkcaldy & Cowdenbeath - Scot,,,,,2100329124,,Elections Directorate,"23,927.60",
"Housing, Communities & Local Government",DLUHC,03/10/2023,Elections - Head F9 Preparation & Transport Costs,Local Govnmnt Resilience and Communities,North East Fife - Scotland,,,,,2100329159,,Elections Directorate,"19,262.98",
"Housing, Communities & Local Government",DLUHC,03/10/2023,Elections - Head F9 Preparation & Transport Costs,Local Govnmnt Resilience and Communities,West Ham - London,,,,,2100329642,,Elections Directorate,"15,503.33",
"Housing, Communities & Local Government",DLUHC,03/10/2023,Elections - Head G1 Staff Costs - Prep & Issue,Local Govnmnt Resilience and Communities,Dunfermline & West Fife - Scot,,,,,2100329121,,Elections Directorate,"1,644.00",
"Housing, Communities & Local Government",DLUHC,03/10/2023,Elections - Head G1 Staff Costs - Prep & Issue,Local Govnmnt Resilience and Communities,Gedling - East Midlands,,,,,2100329551,,Elections Directorate,"2,509.50",
"Housing, Communities & Local Government",DLUHC,03/10/2023,Elections - Head G1 Staff Costs - Prep & Issue,Local Govnmnt Resilience and Communities,Glenrothes - Scotland,,,,,2100329589,,Elections Directorate,"1,345.00",
"Housing, Communities & Local Government",DLUHC,03/10/2023,Elections - Head G1 Staff Costs - Prep & Issue,Local Govnmnt Resilience and Communities,Gosport - South East,,,,,2100329547,,Elections Directorate,"1,164.53",
"Housing, Communities & Local Government",DLUHC,03/10/2023,Elections - Head G1 Staff Costs - Prep & Issue,Local Govnmnt Resilience and Communities,Kirkcaldy & Cowdenbeath - Scot,,,,,2100329124,,Elections Directorate,"1,201.00",
"Housing, Communities & Local Government",DLUHC,03/10/2023,Elections - Head G1 Staff Costs - Prep & Issue,Local Govnmnt Resilience and Communities,North East Fife - Scotland,,,,,2100329159,,Elections Directorate,845.00,
"Housing, Communities & Local Government",DLUHC,03/10/2023,Elections - Head G2 Staff Costs - Opening and,Local Govnmnt Resilience and Communities,Dunfermline & West Fife - Scot,,,,,2100329121,,Elections Directorate,640.00,
"Housing, Communities & Local Government",DLUHC,03/10/2023,Elections - Head G2 Staff Costs - Opening and,Local Govnmnt Resilience and Communities,East Ham - London,,,,,2100329160,,Elections Directorate,"6,651.02",
"Housing, Communities & Local Government",DLUHC,03/10/2023,Elections - Head G2 Staff Costs - Opening and,Local Govnmnt Resilience and Communities,Glenrothes - Scotland,,,,,2100329589,,Elections Directorate,665.00,
"Housing, Communities & Local Government",DLUHC,03/10/2023,Elections - Head G2 Staff Costs - Opening and,Local Govnmnt Resilience and Communities,Gosport - South East,,,,,2100329547,,Elections Directorate,"1,547.22",
"Housing, Communities & Local Government",DLUHC,03/10/2023,Elections - Head G2 Staff Costs - Opening and,Local Govnmnt Resilience and Communities,Isles of Scilly - South West,,,,,2100329586,,Elections Directorate,24.00,
"Housing, Communities & Local Government",DLUHC,03/10/2023,Elections - Head G2 Staff Costs - Opening and,Local Govnmnt Resilience and Communities,Kirkcaldy & Cowdenbeath - Scot,,,,,2100329124,,Elections Directorate,585.00,
"Housing, Communities & Local Government",DLUHC,03/10/2023,Elections - Head G2 Staff Costs - Opening and,Local Govnmnt Resilience and Communities,North East Fife - Scotland,,,,,2100329159,,Elections Directorate,"1,140.00",
"Housing, Communities & Local Government",DLUHC,03/10/2023,Elections - Head G2 Staff Costs - Opening and,Local Govnmnt Resilience and Communities,West Ham - London,,,,,2100329642,,Elections Directorate,"7,956.43",
"Housing, Communities & Local Government",DLUHC,03/10/2023,Elections - Head G3 Training,Local Govnmnt Resilience and Communities,Gedling - East Midlands,,,,,2100329551,,Elections Directorate,"7,560.94",
"Housing, Communities & Local Government",DLUHC,03/10/2023,Elections - Head G4 Cost of Printing & Stationery,Local Govnmnt Resilience and Communities,Dunfermline & West Fife - Scot,,,,,2100329121,,Elections Directorate,"9,479.12",
"Housing, Communities & Local Government",DLUHC,03/10/2023,Elections - Head G4 Cost of Printing & Stationery,Local Govnmnt Resilience and Communities,East Ham - London,,,,,2100329160,,Elections Directorate,"8,094.51",
"Housing, Communities & Local Government",DLUHC,03/10/2023,Elections - Head G4 Cost of Printing & Stationery,Local Govnmnt Resilience and Communities,East Riding of Yorks - Y&H,,,,,2100329633,,Elections Directorate,"26,475.46",
"Housing, Communities & Local Government",DLUHC,03/10/2023,Elections - Head G4 Cost of Printing & Stationery,Local Govnmnt Resilience and Communities,Gedling - East Midlands,,,,,2100329551,,Elections Directorate,"5,526.03",
"Housing, Communities & Local Government",DLUHC,03/10/2023,Elections - Head G4 Cost of Printing & Stationery,Local Govnmnt Resilience and Communities,Glenrothes - Scotland,,,,,2100329589,,Elections Directorate,"6,943.33",
"Housing, Communities & Local Government",DLUHC,03/10/2023,Elections - Head G4 Cost of Printing & Stationery,Local Govnmnt Resilience and Communities,Gosport - South East,,,,,2100329547,,Elections Directorate,"1,342.38",
"Housing, Communities & Local Government",DLUHC,03/10/2023,Elections - Head G4 Cost of Printing & Stationery,Local Govnmnt Resilience and Communities,Isles of Scilly - South West,,,,,2100329586,,Elections Directorate,128.33,
"Housing, Communities & Local Government",DLUHC,03/10/2023,Elections - Head G4 Cost of Printing & Stationery,Local Govnmnt Resilience and Communities,Kirkcaldy & Cowdenbeath - Scot,,,,,2100329124,,Elections Directorate,"8,960.32",
"Housing, Communities & Local Government",DLUHC,03/10/2023,Elections - Head G4 Cost of Printing & Stationery,Local Govnmnt Resilience and Communities,North East Fife - Scotland,,,,,2100329159,,Elections Directorate,"7,387.16",
"Housing, Communities & Local Government",DLUHC,03/10/2023,Elections - Head G4 Cost of Printing & Stationery,Local Govnmnt Resilience and Communities,West Ham - London,,,,,2100329642,,Elections Directorate,"8,946.56",
"Housing, Communities & Local Government",DLUHC,03/10/2023,Elections - Head G5 Postage - Outward,Local Govnmnt Resilience and Communities,Dunfermline & West Fife - Scot,,,,,2100329121,,Elections Directorate,"7,594.22",
"Housing, Communities & Local Government",DLUHC,03/10/2023,Elections - Head G5 Postage - Outward,Local Govnmnt Resilience and Communities,East Ham - London,,,,,2100329160,,Elections Directorate,"7,817.94",
"Housing, Communities & Local Government",DLUHC,03/10/2023,Elections - Head G5 Postage - Outward,Local Govnmnt Resilience and Communities,East Riding of Yorks - Y&H,,,,,2100329633,,Elections Directorate,"23,638.69",
"Housing, Communities & Local Government",DLUHC,03/10/2023,Elections - Head G5 Postage - Outward,Local Govnmnt Resilience and Communities,Gedling - East Midlands,,,,,2100329551,,Elections Directorate,"4,076.67",
"Housing, Communities & Local Government",DLUHC,03/10/2023,Elections - Head G5 Postage - Outward,Local Govnmnt Resilience and Communities,Glenrothes - Scotland,,,,,2100329589,,Elections Directorate,"5,593.34",
"Housing, Communities & Local Government",DLUHC,03/10/2023,Elections - Head G5 Postage - Outward,Local Govnmnt Resilience and Communities,Gosport - South East,,,,,2100329547,,Elections Directorate,"2,291.34",
"Housing, Communities & Local Government",DLUHC,03/10/2023,Elections - Head G5 Postage - Outward,Local Govnmnt Resilience and Communities,Isles of Scilly - South West,,,,,2100329586,,Elections Directorate,64.74,
"Housing, Communities & Local Government",DLUHC,03/10/2023,Elections - Head G5 Postage - Outward,Local Govnmnt Resilience and Communities,Kirkcaldy & Cowdenbeath - Scot,,,,,2100329124,,Elections Directorate,"7,068.55",
"Housing, Communities & Local Government",DLUHC,03/10/2023,Elections - Head G5 Postage - Outward,Local Govnmnt Resilience and Communities,North East Fife - Scotland,,,,,2100329159,,Elections Directorate,"6,110.39",
"Housing, Communities & Local Government",DLUHC,03/10/2023,Elections - Head G5 Postage - Outward,Local Govnmnt Resilience and Communities,West Ham - London,,,,,2100329642,,Elections Directorate,"8,640.89",
"Housing, Communities & Local Government",DLUHC,03/10/2023,Elections - Head G6 Postage - Inward,Local Govnmnt Resilience and Communities,Dunfermline & West Fife - Scot,,,,,2100329121,,Elections Directorate,"5,459.13",
"Housing, Communities & Local Government",DLUHC,03/10/2023,Elections - Head G6 Postage - Inward,Local Govnmnt Resilience and Communities,East Ham - London,,,,,2100329160,,Elections Directorate,"2,791.09",
"Housing, Communities & Local Government",DLUHC,03/10/2023,Elections - Head G6 Postage - Inward,Local Govnmnt Resilience and Communities,East Riding of Yorks - Y&H,,,,,2100329633,,Elections Directorate,"18,006.94",
"Housing, Communities & Local Government",DLUHC,03/10/2023,Elections - Head G6 Postage - Inward,Local Govnmnt Resilience and Communities,Gedling - East Midlands,,,,,2100329551,,Elections Directorate,408.00,
"Housing, Communities & Local Government",DLUHC,03/10/2023,Elections - Head G6 Postage - Inward,Local Govnmnt Resilience and Communities,Glenrothes - Scotland,,,,,2100329589,,Elections Directorate,"4,141.14",
"Housing, Communities & Local Government",DLUHC,03/10/2023,Elections - Head G6 Postage - Inward,Local Govnmnt Resilience and Communities,Gosport - South East,,,,,2100329547,,Elections Directorate,"2,734.36",
"Housing, Communities & Local Government",DLUHC,03/10/2023,Elections - Head G6 Postage - Inward,Local Govnmnt Resilience and Communities,Kirkcaldy & Cowdenbeath - Scot,,,,,2100329124,,Elections Directorate,"4,888.69",
"Housing, Communities & Local Government",DLUHC,03/10/2023,Elections - Head G6 Postage - Inward,Local Govnmnt Resilience and Communities,North East Fife - Scotland,,,,,2100329159,,Elections Directorate,"4,925.35",
"Housing, Communities & Local Government",DLUHC,03/10/2023,Elections - Head G6 Postage - Inward,Local Govnmnt Resilience and Communities,West Ham - London,,,,,2100329642,,Elections Directorate,"3,084.89",
"Housing, Communities & Local Government",DLUHC,03/10/2023,Elections - Head G7 Accommodation Costs,Local Govnmnt Resilience and Communities,Dunfermline & West Fife - Scot,,,,,2100329121,,Elections Directorate,"1,518.62",
"Housing, Communities & Local Government",DLUHC,03/10/2023,Elections - Head G7 Accommodation Costs,Local Govnmnt Resilience and Communities,East Ham - London,,,,,2100329160,,Elections Directorate,"1,102.95",
"Housing, Communities & Local Government",DLUHC,03/10/2023,Elections - Head G7 Accommodation Costs,Local Govnmnt Resilience and Communities,Gedling - East Midlands,,,,,2100329551,,Elections Directorate,"1,673.28",
"Housing, Communities & Local Government",DLUHC,03/10/2023,Elections - Head G7 Accommodation Costs,Local Govnmnt Resilience and Communities,Glenrothes - Scotland,,,,,2100329589,,Elections Directorate,"1,079.12",
"Housing, Communities & Local Government",DLUHC,03/10/2023,Elections - Head G7 Accommodation Costs,Local Govnmnt Resilience and Communities,Gosport - South East,,,,,2100329547,,Elections Directorate,"1,150.34",
"Housing, Communities & Local Government",DLUHC,03/10/2023,Elections - Head G7 Accommodation Costs,Local Govnmnt Resilience and Communities,Kirkcaldy & Cowdenbeath - Scot,,,,,2100329124,,Elections Directorate,"1,079.12",
"Housing, Communities & Local Government",DLUHC,03/10/2023,Elections - Head G7 Accommodation Costs,Local Govnmnt Resilience and Communities,North East Fife - Scotland,,,,,2100329159,,Elections Directorate,"1,215.24",
"Housing, Communities & Local Government",DLUHC,03/10/2023,Elections - Head G7 Accommodation Costs,Local Govnmnt Resilience and Communities,West Ham - London,,,,,2100329642,,Elections Directorate,"1,219.05",
"Housing, Communities & Local Government",DLUHC,03/10/2023,Elections - Head G8 Equipment Costs,Local Govnmnt Resilience and Communities,Dunfermline & West Fife - Scot,,,,,2100329121,,Elections Directorate,"26,015.43",
"Housing, Communities & Local Government",DLUHC,03/10/2023,Elections - Head G8 Equipment Costs,Local Govnmnt Resilience and Communities,Gedling - East Midlands,,,,,2100329551,,Elections Directorate,100.00,
"Housing, Communities & Local Government",DLUHC,03/10/2023,Elections - Head G8 Equipment Costs,Local Govnmnt Resilience and Communities,Glenrothes - Scotland,,,,,2100329589,,Elections Directorate,"19,613.01",
"Housing, Communities & Local Government",DLUHC,03/10/2023,Elections - Head G8 Equipment Costs,Local Govnmnt Resilience and Communities,Gosport - South East,,,,,2100329547,,Elections Directorate,"2,686.77",
"Housing, Communities & Local Government",DLUHC,03/10/2023,Elections - Head G8 Equipment Costs,Local Govnmnt Resilience and Communities,Isles of Scilly - South West,,,,,2100329586,,Elections Directorate,63.96,
"Housing, Communities & Local Government",DLUHC,03/10/2023,Elections - Head G8 Equipment Costs,Local Govnmnt Resilience and Communities,Kirkcaldy & Cowdenbeath - Scot,,,,,2100329124,,Elections Directorate,"24,587.48",
"Housing, Communities & Local Government",DLUHC,03/10/2023,Elections - Head G8 Equipment Costs,Local Govnmnt Resilience and Communities,North East Fife - Scotland,,,,,2100329159,,Elections Directorate,"20,871.50",
"Housing, Communities & Local Government",DLUHC,03/10/2023,Elections - Head H1 Staff Costs - Prep & Issue,Local Govnmnt Resilience and Communities,Gosport - South East,,,,,2100329547,,Elections Directorate,45.87,
"Housing, Communities & Local Government",DLUHC,03/10/2023,Elections - Head H2 Equipment Costs,Local Govnmnt Resilience and Communities,Gedling - East Midlands,,,,,2100329551,,Elections Directorate,"2,442.96",
"Housing, Communities & Local Government",DLUHC,03/10/2023,Elections - Head H2 Equipment Costs,Local Govnmnt Resilience and Communities,Gosport - South East,,,,,2100329547,,Elections Directorate,346.40,
"Housing, Communities & Local Government",DLUHC,03/10/2023,Elections - Head H3 Costs of Printing & Stationery,Local Govnmnt Resilience and Communities,Dunfermline & West Fife - Scot,,,,,2100329121,,Elections Directorate,"3,710.04",
"Housing, Communities & Local Government",DLUHC,03/10/2023,Elections - Head H3 Costs of Printing & Stationery,Local Govnmnt Resilience and Communities,East Ham - London,,,,,2100329160,,Elections Directorate,"8,534.40",
"Housing, Communities & Local Government",DLUHC,03/10/2023,Elections - Head H3 Costs of Printing & Stationery,Local Govnmnt Resilience and Communities,East Riding of Yorks - Y&H,,,,,2100329633,,Elections Directorate,"25,613.04",
"Housing, Communities & Local Government",DLUHC,03/10/2023,Elections - Head H3 Costs of Printing & Stationery,Local Govnmnt Resilience and Communities,Gedling - East Midlands,,,,,2100329551,,Elections Directorate,"19,526.13",
"Housing, Communities & Local Government",DLUHC,03/10/2023,Elections - Head H3 Costs of Printing & Stationery,Local Govnmnt Resilience and Communities,Glenrothes - Scotland,,,,,2100329589,,Elections Directorate,"3,182.96",
"Housing, Communities & Local Government",DLUHC,03/10/2023,Elections - Head H3 Costs of Printing & Stationery,Local Govnmnt Resilience and Communities,Gosport - South East,,,,,2100329547,,Elections Directorate,"1,094.46",
"Housing, Communities & Local Government",DLUHC,03/10/2023,Elections - Head H3 Costs of Printing & Stationery,Local Govnmnt Resilience and Communities,Isles of Scilly - South West,,,,,2100329586,,Elections Directorate,69.89,
"Housing, Communities & Local Government",DLUHC,03/10/2023,Elections - Head H3 Costs of Printing & Stationery,Local Govnmnt Resilience and Communities,Kirkcaldy & Cowdenbeath - Scot,,,,,2100329124,,Elections Directorate,"3,526.31",
"Housing, Communities & Local Government",DLUHC,03/10/2023,Elections - Head H3 Costs of Printing & Stationery,Local Govnmnt Resilience and Communities,North East Fife - Scotland,,,,,2100329159,,Elections Directorate,"2,947.83",
"Housing, Communities & Local Government",DLUHC,03/10/2023,Elections - Head H3 Costs of Printing & Stationery,Local Govnmnt Resilience and Communities,West Ham - London,,,,,2100329642,,Elections Directorate,"9,432.76",
"Housing, Communities & Local Government",DLUHC,03/10/2023,Elections - Head H4 Postage or Delivery,Local Govnmnt Resilience and Communities,Dunfermline & West Fife - Scot,,,,,2100329121,,Elections Directorate,"28,082.41",
"Housing, Communities & Local Government",DLUHC,03/10/2023,Elections - Head H4 Postage or Delivery,Local Govnmnt Resilience and Communities,East Ham - London,,,,,2100329160,,Elections Directorate,"49,689.72",
"Housing, Communities & Local Government",DLUHC,03/10/2023,Elections - Head H4 Postage or Delivery,Local Govnmnt Resilience and Communities,East Riding of Yorks - Y&H,,,,,2100329633,,Elections Directorate,"115,782.48",
"Housing, Communities & Local Government",DLUHC,03/10/2023,Elections - Head H4 Postage or Delivery,Local Govnmnt Resilience and Communities,Gedling - East Midlands,,,,,2100329551,,Elections Directorate,"7,650.00",
"Housing, Communities & Local Government",DLUHC,03/10/2023,Elections - Head H4 Postage or Delivery,Local Govnmnt Resilience and Communities,Glenrothes - Scotland,,,,,2100329589,,Elections Directorate,"24,092.77",
"Housing, Communities & Local Government",DLUHC,03/10/2023,Elections - Head H4 Postage or Delivery,Local Govnmnt Resilience and Communities,Gosport - South East,,,,,2100329547,,Elections Directorate,"5,675.35",
"Housing, Communities & Local Government",DLUHC,03/10/2023,Elections - Head H4 Postage or Delivery,Local Govnmnt Resilience and Communities,Isles of Scilly - South West,,,,,2100329586,,Elections Directorate,381.36,
"Housing, Communities & Local Government",DLUHC,03/10/2023,Elections - Head H4 Postage or Delivery,Local Govnmnt Resilience and Communities,Kirkcaldy & Cowdenbeath - Scot,,,,,2100329124,,Elections Directorate,"26,691.72",
"Housing, Communities & Local Government",DLUHC,03/10/2023,Elections - Head H4 Postage or Delivery,Local Govnmnt Resilience and Communities,North East Fife - Scotland,,,,,2100329159,,Elections Directorate,"22,313.01",
"Housing, Communities & Local Government",DLUHC,03/10/2023,Elections - Head H4 Postage or Delivery,Local Govnmnt Resilience and Communities,West Ham - London,,,,,2100329642,,Elections Directorate,"54,920.23",
"Housing, Communities & Local Government",DLUHC,03/10/2023,Elections - Head I1 Counting Staff Pay,Local Govnmnt Resilience and Communities,Dunfermline & West Fife - Scot,,,,,2100329121,,Elections Directorate,"8,840.00",
"Housing, Communities & Local Government",DLUHC,03/10/2023,Elections - Head I1 Counting Staff Pay,Local Govnmnt Resilience and Communities,East Ham - London,,,,,2100329160,,Elections Directorate,"12,600.00",
"Housing, Communities & Local Government",DLUHC,03/10/2023,Elections - Head I1 Counting Staff Pay,Local Govnmnt Resilience and Communities,East Riding of Yorks - Y&H,,,,,2100329633,,Elections Directorate,"8,580.00",
"Housing, Communities & Local Government",DLUHC,03/10/2023,Elections - Head I1 Counting Staff Pay,Local Govnmnt Resilience and Communities,Gedling - East Midlands,,,,,2100329551,,Elections Directorate,"4,542.50",
"Housing, Communities & Local Government",DLUHC,03/10/2023,Elections - Head I1 Counting Staff Pay,Local Govnmnt Resilience and Communities,Glenrothes - Scotland,,,,,2100329589,,Elections Directorate,"8,180.00",
"Housing, Communities & Local Government",DLUHC,03/10/2023,Elections - Head I1 Counting Staff Pay,Local Govnmnt Resilience and Communities,Gosport - South East,,,,,2100329547,,Elections Directorate,"3,493.06",
"Housing, Communities & Local Government",DLUHC,03/10/2023,Elections - Head I1 Counting Staff Pay,Local Govnmnt Resilience and Communities,Isles of Scilly - South West,,,,,2100329586,,Elections Directorate,451.50,
"Housing, Communities & Local Government",DLUHC,03/10/2023,Elections - Head I1 Counting Staff Pay,Local Govnmnt Resilience and Communities,Kirkcaldy & Cowdenbeath - Scot,,,,,2100329124,,Elections Directorate,"8,980.00",
"Housing, Communities & Local Government",DLUHC,03/10/2023,Elections - Head I1 Counting Staff Pay,Local Govnmnt Resilience and Communities,North East Fife - Scotland,,,,,2100329159,,Elections Directorate,"7,605.00",
"Housing, Communities & Local Government",DLUHC,03/10/2023,Elections - Head I1 Counting Staff Pay,Local Govnmnt Resilience and Communities,West Ham - London,,,,,2100329642,,Elections Directorate,"14,350.00",
"Housing, Communities & Local Government",DLUHC,03/10/2023,Elections - Head I2 Supervising Count Staff Pay,Local Govnmnt Resilience and Communities,Dunfermline & West Fife - Scot,,,,,2100329121,,Elections Directorate,"1,510.00",
"Housing, Communities & Local Government",DLUHC,03/10/2023,Elections - Head I2 Supervising Count Staff Pay,Local Govnmnt Resilience and Communities,East Ham - London,,,,,2100329160,,Elections Directorate,"7,800.00",
"Housing, Communities & Local Government",DLUHC,03/10/2023,Elections - Head I2 Supervising Count Staff Pay,Local Govnmnt Resilience and Communities,East Riding of Yorks - Y&H,,,,,2100329633,,Elections Directorate,"9,937.50",
"Housing, Communities & Local Government",DLUHC,03/10/2023,Elections - Head I2 Supervising Count Staff Pay,Local Govnmnt Resilience and Communities,Glenrothes - Scotland,,,,,2100329589,,Elections Directorate,"1,540.00",
"Housing, Communities & Local Government",DLUHC,03/10/2023,Elections - Head I2 Supervising Count Staff Pay,Local Govnmnt Resilience and Communities,Gosport - South East,,,,,2100329547,,Elections Directorate,"2,894.10",
"Housing, Communities & Local Government",DLUHC,03/10/2023,Elections - Head I2 Supervising Count Staff Pay,Local Govnmnt Resilience and Communities,Kirkcaldy & Cowdenbeath - Scot,,,,,2100329124,,Elections Directorate,"1,810.00",
"Housing, Communities & Local Government",DLUHC,03/10/2023,Elections - Head I2 Supervising Count Staff Pay,Local Govnmnt Resilience and Communities,North East Fife - Scotland,,,,,2100329159,,Elections Directorate,"1,550.00",
"Housing, Communities & Local Government",DLUHC,03/10/2023,Elections - Head I2 Supervising Count Staff Pay,Local Govnmnt Resilience and Communities,West Ham - London,,,,,2100329642,,Elections Directorate,"8,335.00",
"Housing, Communities & Local Government",DLUHC,03/10/2023,Elections - Head I3 Travel and Subsistence,Local Govnmnt Resilience and Communities,Dunfermline & West Fife - Scot,,,,,2100329121,,Elections Directorate,797.50,
"Housing, Communities & Local Government",DLUHC,03/10/2023,Elections - Head I3 Travel and Subsistence,Local Govnmnt Resilience and Communities,Gedling - East Midlands,,,,,2100329551,,Elections Directorate,150.00,
"Housing, Communities & Local Government",DLUHC,03/10/2023,Elections - Head I3 Travel and Subsistence,Local Govnmnt Resilience and Communities,Glenrothes - Scotland,,,,,2100329589,,Elections Directorate,727.50,
"Housing, Communities & Local Government",DLUHC,03/10/2023,Elections - Head I3 Travel and Subsistence,Local Govnmnt Resilience and Communities,Gosport - South East,,,,,2100329547,,Elections Directorate,3.60,
"Housing, Communities & Local Government",DLUHC,03/10/2023,Elections - Head I3 Travel and Subsistence,Local Govnmnt Resilience and Communities,Kirkcaldy & Cowdenbeath - Scot,,,,,2100329124,,Elections Directorate,797.50,
"Housing, Communities & Local Government",DLUHC,03/10/2023,Elections - Head I3 Travel and Subsistence,Local Govnmnt Resilience and Communities,North East Fife - Scotland,,,,,2100329159,,Elections Directorate,667.50,
"Housing, Communities & Local Government",DLUHC,03/10/2023,Elections - Head I4 Training,Local Govnmnt Resilience and Communities,East Ham - London,,,,,2100329160,,Elections Directorate,660.00,
"Housing, Communities & Local Government",DLUHC,03/10/2023,Elections - Head I4 Training,Local Govnmnt Resilience and Communities,Gedling - East Midlands,,,,,2100329551,,Elections Directorate,"2,906.54",
"Housing, Communities & Local Government",DLUHC,03/10/2023,Elections - Head I4 Training,Local Govnmnt Resilience and Communities,Gosport - South East,,,,,2100329547,,Elections Directorate,55.57,
"Housing, Communities & Local Government",DLUHC,03/10/2023,Elections - Head I4 Training,Local Govnmnt Resilience and Communities,West Ham - London,,,,,2100329642,,Elections Directorate,660.00,
"Housing, Communities & Local Government",DLUHC,03/10/2023,Elections - Head I5 Accommodation Costs,Local Govnmnt Resilience and Communities,Dunfermline & West Fife - Scot,,,,,2100329121,,Elections Directorate,"7,085.68",
"Housing, Communities & Local Government",DLUHC,03/10/2023,Elections - Head I5 Accommodation Costs,Local Govnmnt Resilience and Communities,East Ham - London,,,,,2100329160,,Elections Directorate,"18,621.80",
"Housing, Communities & Local Government",DLUHC,03/10/2023,Elections - Head I5 Accommodation Costs,Local Govnmnt Resilience and Communities,East Riding of Yorks - Y&H,,,,,2100329633,,Elections Directorate,"8,106.95",
"Housing, Communities & Local Government",DLUHC,03/10/2023,Elections - Head I5 Accommodation Costs,Local Govnmnt Resilience and Communities,Gedling - East Midlands,,,,,2100329551,,Elections Directorate,"1,208.34",
"Housing, Communities & Local Government",DLUHC,03/10/2023,Elections - Head I5 Accommodation Costs,Local Govnmnt Resilience and Communities,Glenrothes - Scotland,,,,,2100329589,,Elections Directorate,"7,085.69",
"Housing, Communities & Local Government",DLUHC,03/10/2023,Elections - Head I5 Accommodation Costs,Local Govnmnt Resilience and Communities,Gosport - South East,,,,,2100329547,,Elections Directorate,"1,588.54",
"Housing, Communities & Local Government",DLUHC,03/10/2023,Elections - Head I5 Accommodation Costs,Local Govnmnt Resilience and Communities,Kirkcaldy & Cowdenbeath - Scot,,,,,2100329124,,Elections Directorate,"7,085.69",
"Housing, Communities & Local Government",DLUHC,03/10/2023,Elections - Head I5 Accommodation Costs,Local Govnmnt Resilience and Communities,North East Fife - Scotland,,,,,2100329159,,Elections Directorate,"7,085.69",
"Housing, Communities & Local Government",DLUHC,03/10/2023,Elections - Head I5 Accommodation Costs,Local Govnmnt Resilience and Communities,West Ham - London,,,,,2100329642,,Elections Directorate,"20,605.15",
"Housing, Communities & Local Government",DLUHC,03/10/2023,Elections - Head I6 Equipment Costs,Local Govnmnt Resilience and Communities,Dunfermline & West Fife - Scot,,,,,2100329121,,Elections Directorate,"1,061.48",
"Housing, Communities & Local Government",DLUHC,03/10/2023,Elections - Head I6 Equipment Costs,Local Govnmnt Resilience and Communities,East Ham - London,,,,,2100329160,,Elections Directorate,"3,364.59",
"Housing, Communities & Local Government",DLUHC,03/10/2023,Elections - Head I6 Equipment Costs,Local Govnmnt Resilience and Communities,Gedling - East Midlands,,,,,2100329551,,Elections Directorate,310.00,
"Housing, Communities & Local Government",DLUHC,03/10/2023,Elections - Head I6 Equipment Costs,Local Govnmnt Resilience and Communities,Glenrothes - Scotland,,,,,2100329589,,Elections Directorate,"1,067.02",
"Housing, Communities & Local Government",DLUHC,03/10/2023,Elections - Head I6 Equipment Costs,Local Govnmnt Resilience and Communities,Gosport - South East,,,,,2100329547,,Elections Directorate,"1,214.05",
"Housing, Communities & Local Government",DLUHC,03/10/2023,Elections - Head I6 Equipment Costs,Local Govnmnt Resilience and Communities,Isles of Scilly - South West,,,,,2100329586,,Elections Directorate,117.25,
"Housing, Communities & Local Government",DLUHC,03/10/2023,Elections - Head I6 Equipment Costs,Local Govnmnt Resilience and Communities,Kirkcaldy & Cowdenbeath - Scot,,,,,2100329124,,Elections Directorate,"1,061.48",
"Housing, Communities & Local Government",DLUHC,03/10/2023,Elections - Head I6 Equipment Costs,Local Govnmnt Resilience and Communities,North East Fife - Scotland,,,,,2100329159,,Elections Directorate,"1,067.04",
"Housing, Communities & Local Government",DLUHC,03/10/2023,Elections - Head I6 Equipment Costs,Local Govnmnt Resilience and Communities,West Ham - London,,,,,2100329642,,Elections Directorate,"3,718.76",
"Housing, Communities & Local Government",DLUHC,03/10/2023,Elections - Head I7 Transport Costs,Local Govnmnt Resilience and Communities,Dunfermline & West Fife - Scot,,,,,2100329121,,Elections Directorate,"1,138.96",
"Housing, Communities & Local Government",DLUHC,03/10/2023,Elections - Head I7 Transport Costs,Local Govnmnt Resilience and Communities,East Ham - London,,,,,2100329160,,Elections Directorate,"1,490.55",
"Housing, Communities & Local Government",DLUHC,03/10/2023,Elections - Head I7 Transport Costs,Local Govnmnt Resilience and Communities,East Riding of Yorks - Y&H,,,,,2100329633,,Elections Directorate,"1,685.76",
"Housing, Communities & Local Government",DLUHC,03/10/2023,Elections - Head I7 Transport Costs,Local Govnmnt Resilience and Communities,Glenrothes - Scotland,,,,,2100329589,,Elections Directorate,809.33,
"Housing, Communities & Local Government",DLUHC,03/10/2023,Elections - Head I7 Transport Costs,Local Govnmnt Resilience and Communities,Gosport - South East,,,,,2100329547,,Elections Directorate,44.70,
"Housing, Communities & Local Government",DLUHC,03/10/2023,Elections - Head I7 Transport Costs,Local Govnmnt Resilience and Communities,Kirkcaldy & Cowdenbeath - Scot,,,,,2100329124,,Elections Directorate,809.33,
"Housing, Communities & Local Government",DLUHC,03/10/2023,Elections - Head I7 Transport Costs,Local Govnmnt Resilience and Communities,North East Fife - Scotland,,,,,2100329159,,Elections Directorate,911.43,
"Housing, Communities & Local Government",DLUHC,03/10/2023,Elections - Head I7 Transport Costs,Local Govnmnt Resilience and Communities,West Ham - London,,,,,2100329642,,Elections Directorate,"1,647.45",
"Housing, Communities & Local Government",DLUHC,03/10/2023,Elections - Head I8 Security Costs,Local Govnmnt Resilience and Communities,East Ham - London,,,,,2100329160,,Elections Directorate,"8,452.70",
"Housing, Communities & Local Government",DLUHC,03/10/2023,Elections - Head I8 Security Costs,Local Govnmnt Resilience and Communities,Gedling - East Midlands,,,,,2100329551,,Elections Directorate,"3,744.63",
"Housing, Communities & Local Government",DLUHC,03/10/2023,Elections - Head I8 Security Costs,Local Govnmnt Resilience and Communities,Gosport - South East,,,,,2100329547,,Elections Directorate,227.58,
"Housing, Communities & Local Government",DLUHC,03/10/2023,Elections - Head I8 Security Costs,Local Govnmnt Resilience and Communities,West Ham - London,,,,,2100329642,,Elections Directorate,"9,342.46",
"Housing, Communities & Local Government",DLUHC,03/10/2023,Elections - Head J1 General Clerical Staff Pay,Local Govnmnt Resilience and Communities,East Ham - London,,,,,2100329160,,Elections Directorate,320.00,
"Housing, Communities & Local Government",DLUHC,03/10/2023,Elections - Head J1 General Clerical Staff Pay,Local Govnmnt Resilience and Communities,East Riding of Yorks - Y&H,,,,,2100329633,,Elections Directorate,"18,571.93",
"Housing, Communities & Local Government",DLUHC,03/10/2023,Elections - Head J1 General Clerical Staff Pay,Local Govnmnt Resilience and Communities,Gosport - South East,,,,,2100329547,,Elections Directorate,917.40,
"Housing, Communities & Local Government",DLUHC,03/10/2023,Elections - Head J1 General Clerical Staff Pay,Local Govnmnt Resilience and Communities,West Ham - London,,,,,2100329642,,Elections Directorate,320.00,
"Housing, Communities & Local Government",DLUHC,03/10/2023,Elections - Head J2 Travel and Subsistence,Local Govnmnt Resilience and Communities,Dunfermline & West Fife - Scot,,,,,2100329121,,Elections Directorate,40.00,
"Housing, Communities & Local Government",DLUHC,03/10/2023,Elections - Head J2 Travel and Subsistence,Local Govnmnt Resilience and Communities,Gedling - East Midlands,,,,,2100329551,,Elections Directorate,"1,390.00",
"Housing, Communities & Local Government",DLUHC,03/10/2023,Elections - Head J2 Travel and Subsistence,Local Govnmnt Resilience and Communities,Glenrothes - Scotland,,,,,2100329589,,Elections Directorate,50.00,
"Housing, Communities & Local Government",DLUHC,03/10/2023,Elections - Head J2 Travel and Subsistence,Local Govnmnt Resilience and Communities,Kirkcaldy & Cowdenbeath - Scot,,,,,2100329124,,Elections Directorate,50.00,
"Housing, Communities & Local Government",DLUHC,03/10/2023,Elections - Head J2 Travel and Subsistence,Local Govnmnt Resilience and Communities,North East Fife - Scotland,,,,,2100329159,,Elections Directorate,30.00,
"Housing, Communities & Local Government",DLUHC,03/10/2023,Elections - Head J3 Costs of Providing Training,Local Govnmnt Resilience and Communities,Dunfermline & West Fife - Scot,,,,,2100329121,,Elections Directorate,75.00,
"Housing, Communities & Local Government",DLUHC,03/10/2023,Elections - Head J3 Costs of Providing Training,Local Govnmnt Resilience and Communities,East Ham - London,,,,,2100329160,,Elections Directorate,"1,245.20",
"Housing, Communities & Local Government",DLUHC,03/10/2023,Elections - Head J3 Costs of Providing Training,Local Govnmnt Resilience and Communities,East Riding of Yorks - Y&H,,,,,2100329633,,Elections Directorate,"6,509.40",
"Housing, Communities & Local Government",DLUHC,03/10/2023,Elections - Head J3 Costs of Providing Training,Local Govnmnt Resilience and Communities,Gedling - East Midlands,,,,,2100329551,,Elections Directorate,"3,677.77",
"Housing, Communities & Local Government",DLUHC,03/10/2023,Elections - Head J3 Costs of Providing Training,Local Govnmnt Resilience and Communities,Glenrothes - Scotland,,,,,2100329589,,Elections Directorate,75.00,
"Housing, Communities & Local Government",DLUHC,03/10/2023,Elections - Head J3 Costs of Providing Training,Local Govnmnt Resilience and Communities,Kirkcaldy & Cowdenbeath - Scot,,,,,2100329124,,Elections Directorate,75.00,
"Housing, Communities & Local Government",DLUHC,03/10/2023,Elections - Head J3 Costs of Providing Training,Local Govnmnt Resilience and Communities,North East Fife - Scotland,,,,,2100329159,,Elections Directorate,74.50,
"Housing, Communities & Local Government",DLUHC,03/10/2023,Elections - Head J3 Costs of Providing Training,Local Govnmnt Resilience and Communities,West Ham - London,,,,,2100329642,,Elections Directorate,"1,386.80",
"Housing, Communities & Local Government",DLUHC,03/10/2023,Elections - Head J4 Materials and Services,Local Govnmnt Resilience and Communities,East Ham - London,,,,,2100329160,,Elections Directorate,342.17,
"Housing, Communities & Local Government",DLUHC,03/10/2023,Elections - Head J4 Materials and Services,Local Govnmnt Resilience and Communities,East Riding of Yorks - Y&H,,,,,2100329633,,Elections Directorate,"1,614.86",
"Housing, Communities & Local Government",DLUHC,03/10/2023,Elections - Head J4 Materials and Services,Local Govnmnt Resilience and Communities,Gosport - South East,,,,,2100329547,,Elections Directorate,"2,298.78",
"Housing, Communities & Local Government",DLUHC,03/10/2023,Elections - Head J4 Materials and Services,Local Govnmnt Resilience and Communities,Isles of Scilly - South West,,,,,2100329586,,Elections Directorate,735.90,
"Housing, Communities & Local Government",DLUHC,03/10/2023,Elections - Head J4 Materials and Services,Local Govnmnt Resilience and Communities,West Ham - London,,,,,2100329642,,Elections Directorate,378.18,
"Housing, Communities & Local Government",DLUHC,03/10/2023,Elections - Reversal of Cost of Election,Local Govnmnt Resilience and Communities,Dunfermline & West Fife - Scot,,,,,2100329121,,Elections Directorate,"-184,828.00",
"Housing, Communities & Local Government",DLUHC,03/10/2023,Elections - Reversal of Cost of Election,Local Govnmnt Resilience and Communities,East Ham - London,,,,,2100329160,,Elections Directorate,"-223,240.00",
"Housing, Communities & Local Government",DLUHC,03/10/2023,Elections - Reversal of Cost of Election,Local Govnmnt Resilience and Communities,East Riding of Yorks - Y&H,,,,,2100329633,,Elections Directorate,"-690,005.00",
"Housing, Communities & Local Government",DLUHC,03/10/2023,Elections - Reversal of Cost of Election,Local Govnmnt Resilience and Communities,Gedling - East Midlands,,,,,2100329551,,Elections Directorate,"-163,442.00",
"Housing, Communities & Local Government",DLUHC,03/10/2023,Elections - Reversal of Cost of Election,Local Govnmnt Resilience and Communities,Glenrothes - Scotland,,,,,2100329589,,Elections Directorate,"-176,817.00",
"Housing, Communities & Local Government",DLUHC,03/10/2023,Elections - Reversal of Cost of Election,Local Govnmnt Resilience and Communities,Gosport - South East,,,,,2100329547,,Elections Directorate,"-64,751.00",
"Housing, Communities & Local Government",DLUHC,03/10/2023,Elections - Reversal of Cost of Election,Local Govnmnt Resilience and Communities,Isles of Scilly - South West,,,,,2100329586,,Elections Directorate,"-8,885.00",
"Housing, Communities & Local Government",DLUHC,03/10/2023,Elections - Reversal of Cost of Election,Local Govnmnt Resilience and Communities,Kirkcaldy & Cowdenbeath - Scot,,,,,2100329124,,Elections Directorate,"-178,154.00",
"Housing, Communities & Local Government",DLUHC,03/10/2023,Elections - Reversal of Cost of Election,Local Govnmnt Resilience and Communities,North East Fife - Scotland,,,,,2100329159,,Elections Directorate,"-174,276.00",
"Housing, Communities & Local Government",DLUHC,03/10/2023,Elections - Reversal of Cost of Election,Local Govnmnt Resilience and Communities,West Ham - London,,,,,2100329642,,Elections Directorate,"-232,866.00",
"Housing, Communities & Local Government",DLUHC,03/10/2023,Elections-GE19 Canc Hols & PCC20 Aborted,Local Govnmnt Resilience and Communities,Gedling - East Midlands,,,,,2100329551,,Elections Directorate,"10,731.26",
"Housing, Communities & Local Government",DLUHC,03/10/2023,ERDF Work in Progress � Capital,Regeneration,CANAL & RIVER TRUST,,Large,,,7700014487,,Community Investment & Funding Services,"216,076.27",Yes
"Housing, Communities & Local Government",DLUHC,03/10/2023,ERDF Work in Progress � Capital,Regeneration,City of Wolverhampton Council,,,,,7700014484,,Community Investment & Funding Services,"41,059.91",Yes
"Housing, Communities & Local Government",DLUHC,03/10/2023,ERDF Work in Progress � Capital,Regeneration,SWMAS LTD,,Small,,,7700014482,,Community Investment & Funding Services,"28,668.99",Yes
"Housing, Communities & Local Government",DLUHC,03/10/2023,ERDF Work in Progress � Resource,Levelling Up,FALMOUTH DEVELOPMENTS LTD,,Micro,,,2300003625,,Community Investment and Funding Service,"-1,596,013.00",Yes
"Housing, Communities & Local Government",DLUHC,03/10/2023,ERDF Work in Progress � Resource,Regeneration,CAMBS & PETERBOROUGH COMB AUT,,Large,,,7700014486,,Community Investment & Funding Services,"316,510.49",Yes
"Housing, Communities & Local Government",DLUHC,03/10/2023,ERDF Work in Progress � Resource,Regeneration,CANAL & RIVER TRUST,,Large,,,7700014487,,Community Investment & Funding Services,"3,725.35",Yes
"Housing, Communities & Local Government",DLUHC,03/10/2023,ERDF Work in Progress � Resource,Regeneration,City of Wolverhampton Council,,,,,7700014484,,Community Investment & Funding Services,"10,682.07",Yes
"Housing, Communities & Local Government",DLUHC,03/10/2023,ERDF Work in Progress � Resource,Regeneration,EAST RIDING OF YORKSHIRE COUNCIL,,,,,7700014480,,Community Investment & Funding Services,"118,146.97",Yes
"Housing, Communities & Local Government",DLUHC,03/10/2023,ERDF Work in Progress � Resource,Regeneration,LINCOLN UNIVERSITY,,Large,,,7700014485,,Community Investment & Funding Services,"69,961.94",Yes
"Housing, Communities & Local Government",DLUHC,03/10/2023,ERDF Work in Progress � Resource,Regeneration,LIVERPOOL SCHOOL OF TROPICAL MEDICI,,,,,7700014479,,Community Investment & Funding Services,"319,762.51",Yes
"Housing, Communities & Local Government",DLUHC,03/10/2023,ERDF Work in Progress � Resource,Regeneration,LIVERPOOL SCHOOL OF TROPICAL MEDICI,,,,,7700014481,,Community Investment & Funding Services,"-1,750.20",Yes
"Housing, Communities & Local Government",DLUHC,03/10/2023,ERDF Work in Progress � Resource,Regeneration,MANCHESTER METROPOLITAN UNIVERSITY,,,,,7700014483,,Community Investment & Funding Services,"38,058.74",Yes
"Housing, Communities & Local Government",DLUHC,03/10/2023,ERDF Work in Progress � Resource,Regeneration,SWMAS LTD,,Small,,,7700014482,,Community Investment & Funding Services,"19,994.38",Yes
"Housing, Communities & Local Government",DLUHC,03/10/2023,EXP � PURCHASE OF GOODS /SERVICES R & D,Local Govnmnt Resilience and Communities,CFE Research and Consulting Ltd,,Small,,,5106302214,Research,Local Government Policy,"20,623.20",
"Housing, Communities & Local Government",DLUHC,03/10/2023,Facilities Management (ISD use only),Safer and Greener Buildings,United Kingdom Health Security Agen,,Large,,,5106302313,,Intervention Delivery,"107,237.66",
"Housing, Communities & Local Government",DLUHC,03/10/2023,Legal Fees,Local Govnmnt Resilience and Communities,PINSENT MASONS LLP,,Large,,215580626,5106302307,,Holocaust Memorial UKHMF,"3,566.40",
"Housing, Communities & Local Government",DLUHC,03/10/2023,Legal Fees,Regeneration,39 ESSEX CHAMBERS,,Micro,,,5106302308,,Planning Reform & Housing Quality,"2,388.00",
"Housing, Communities & Local Government",DLUHC,03/10/2023,Professional services,CFO and Corporate,Terry Tew Sound & Light Ltd,,Small,,,5106301949,,Communications,"3,213.60",
"Housing, Communities & Local Government",DLUHC,03/10/2023,Training,CFO and Corporate,KPMG LLP (CSL),,Large,,,5106302311,,Commercial,"9,008.00",
"Housing, Communities & Local Government",DLUHC,03/10/2023,Training,CFO and Corporate,PERPETUITY TRAINING LTD,,Micro,,,5106299442,,Commercial,999.00,
"Housing, Communities & Local Government",DLUHC,03/10/2023,Utilisation of Unfunded Pension Scheme,CFO and Corporate,LONDON PENSIONS FUND AUTHORITY,,Public Bodies,,236915880,5106302314,,Finance,460.75,
"Housing, Communities & Local Government",DLUHC,04/10/2023,Conferences and Meeting Facilities,Regeneration,CALDER CONFERENCES  LTD,,Small,,,2100329785,Business Travel Accommodation,Social Housing & Resettlement,"9,440.00",
"Housing, Communities & Local Government",DLUHC,04/10/2023,Conferences and Meeting Facilities,Union & Windsor Framework,CALDER CONFERENCES  LTD,,Small,,,2100329785,Business Travel Accommodation,Union & Devolution,199.00,
"Housing, Communities & Local Government",DLUHC,04/10/2023,ERDF Work in Progress � Capital,Regeneration,EAST RIDING OF YORKSHIRE COUNCIL,,,,,7700014494,,Community Investment & Funding Services,"29,741.24",Yes
"Housing, Communities & Local Government",DLUHC,04/10/2023,ERDF Work in Progress � Capital,Regeneration,KENT COUNTY COUNCIL,,Large,,,7700014492,,Community Investment & Funding Services,"95,661.30",Yes
"Housing, Communities & Local Government",DLUHC,04/10/2023,ERDF Work in Progress � Capital,Regeneration,NORTH EAST LINCOLNSHIRE COUNCIL,,Large,,,7700014495,,Community Investment & Funding Services,"206,101.20",Yes
"Housing, Communities & Local Government",DLUHC,04/10/2023,ERDF Work in Progress � Capital,Regeneration,Southway Housing Trust,,,,,7700014490,,Community Investment & Funding Services,"545,084.80",Yes
"Housing, Communities & Local Government",DLUHC,04/10/2023,ERDF Work in Progress � Capital,Regeneration,WORCESTERSHIRE COUNTY COUNCIL,,,,,7700014488,,Community Investment & Funding Services,"109,328.92",Yes
"Housing, Communities & Local Government",DLUHC,04/10/2023,ERDF Work in Progress � Resource,Regeneration,KENT COUNTY COUNCIL,,Large,,,7700014492,,Community Investment & Funding Services,"529,500.34",Yes
"Housing, Communities & Local Government",DLUHC,04/10/2023,ERDF Work in Progress � Resource,Regeneration,NEWHAM COLLEGE OF FURTHER EDUCATION,,,,,7700014493,,Community Investment & Funding Services,"62,951.18",Yes
"Housing, Communities & Local Government",DLUHC,04/10/2023,ERDF Work in Progress � Resource,Regeneration,Southway Housing Trust,,,,,7700014490,,Community Investment & Funding Services,"3,405.52",Yes
"Housing, Communities & Local Government",DLUHC,04/10/2023,ERDF Work in Progress � Resource,Regeneration,UNIVERSITY OF NOTTINGHAM,,,,,7700014489,,Community Investment & Funding Services,"173,228.65",Yes
"Housing, Communities & Local Government",DLUHC,04/10/2023,ERDF Work in Progress � Resource,Regeneration,UNIVERSITY OF NOTTINGHAM,,,,,7700014491,,Community Investment & Funding Services,"173,068.17",Yes
"Housing, Communities & Local Government",DLUHC,04/10/2023,ERDF Work in Progress � Resource,Regeneration,WORCESTERSHIRE COUNTY COUNCIL,,,,,7700014488,,Community Investment & Funding Services,"170,281.96",Yes
"Housing, Communities & Local Government",DLUHC,04/10/2023,EXP � PURCHASE OF GOODS /SERVICES R & D,Levelling Up,FRONTIER ECONOMICS LTD,,,,237589903,5106299510,,Levelling Up: Major Programmes,"389,580.00",
"Housing, Communities & Local Government",DLUHC,04/10/2023,Grant in Aid to NDPBs (non budget),Local Govnmnt Resilience and Communities,VALUATION TRIBUNAL SERVICE,,,,211218366,2100329778,,ALBs (LG&PS),"483,000.00",Yes
"Housing, Communities & Local Government",DLUHC,04/10/2023,IT - Service Contracts,CFO and Corporate,DAISY CORPORATE SERVICES TRADING LT,,Large,,,5106302350,,Digital,"2,902.80",
"Housing, Communities & Local Government",DLUHC,04/10/2023,IT - Service Contracts,CFO and Corporate,MADE TECH LTD,,Medium,,,5106302333,,Digital,"14,202.00",
"Housing, Communities & Local Government",DLUHC,04/10/2023,IT - Service Contracts,CFO and Corporate,X M A LTD,,Large,,298484148,5106302353,IT Managed / Outsourced Services,Digital,"19,856.97",
"Housing, Communities & Local Government",DLUHC,04/10/2023,IT - Service Contracts,Regeneration,Juicy Media Ltd,,Small,,,5106302352,ICT Services,"Places,Infrastructure & Housing Delivery","2,220.00",
"Housing, Communities & Local Government",DLUHC,04/10/2023,IT - Service Contracts,Regeneration,TPXimpact Limited,,Medium,,,5106302349,,Planning Reform,"951,090.00",
"Housing, Communities & Local Government",DLUHC,04/10/2023,IT Consultancy,CFO and Corporate,Version 1 Solutions Ltd,,Large,,536340334,5106302338,,Digital,"49,020.00",
"Housing, Communities & Local Government",DLUHC,04/10/2023,IT Consultancy,CFO and Corporate,Version 1 Solutions Ltd,,Large,,536340334,5106302342,,Digital,"169,702.72",
"Housing, Communities & Local Government",DLUHC,04/10/2023,IT SUPPORT,CFO and Corporate,TPXimpact Limited,,Medium,,,5106302335,,Property Asset Management,"175,166.26",
"Housing, Communities & Local Government",DLUHC,04/10/2023,Online Database Information Retrieval,CFO and Corporate,CARDINUS RISK MANAGEMENT LIMITED,,Medium,,493823215,5106302315,,Property Asset Management,"1,440.00",
"Housing, Communities & Local Government",DLUHC,04/10/2023,Professional services,CFO and Corporate,CARDINUS RISK MANAGEMENT LIMITED,,Medium,,493823215,5106302326,,Property Asset Management,"1,588.90",
"Housing, Communities & Local Government",DLUHC,04/10/2023,Professional services,Regeneration,KANTAR PUBLIC UK LTD,Yes,Large,,228340905,5106302340,,Planning Reform,"60,205.00",
"Housing, Communities & Local Government",DLUHC,04/10/2023,Professional services,Safer and Greener Buildings,Bloom Procurement Services Limited,,Large,,,5106301920,,Intervention Delivery,"67,428.00",
"Housing, Communities & Local Government",DLUHC,04/10/2023,Rates,CFO and Corporate,GOVERNMENT PROPERTY AGENCY,,Medium,,,5106302205,,Property Asset Management,"-8,160.57",
"Housing, Communities & Local Government",DLUHC,04/10/2023,Rates,CFO and Corporate,GOVERNMENT PROPERTY AGENCY,,Medium,,,5106302346,,Property Asset Management,"19,077.07",
"Housing, Communities & Local Government",DLUHC,04/10/2023,Rent,CFO and Corporate,GOVERNMENT PROPERTY AGENCY,,Medium,,,5106302346,Business Support,Property Asset Management,"24,242.04",
"Housing, Communities & Local Government",DLUHC,04/10/2023,Rent,CFO and Corporate,GOVERNMENT PROPERTY AGENCY,,Medium,,,5106302346,,Property Asset Management,"7,437.93",
"Housing, Communities & Local Government",DLUHC,04/10/2023,Software Licences,CFO and Corporate,PHOENIX SOFTWARE LTD,,Large,,,5106302295,,People Capability & Change C/O,"1,256.90",
"Housing, Communities & Local Government",DLUHC,04/10/2023,Software Licences,CFO and Corporate,PHOENIX SOFTWARE LTD,,Large,,,5106302334,,People Capability & Change C/O,510.05,
"Housing, Communities & Local Government",DLUHC,04/10/2023,Software Licences,CFO and Corporate,PHOENIX SOFTWARE LTD,,Large,,,5106302336,,People Capability & Change C/O,631.13,
"Housing, Communities & Local Government",DLUHC,04/10/2023,Software Licences,CFO and Corporate,PHOENIX SOFTWARE LTD,,Large,,,5106302337,,People Capability & Change C/O,288.00,
"Housing, Communities & Local Government",DLUHC,04/10/2023,Steady State Service Provision,CFO and Corporate,GOVERNMENT PROPERTY AGENCY,,Medium,,,5106302346,,Property Asset Management,"3,755.00",
"Housing, Communities & Local Government",DLUHC,04/10/2023,Telecoms equipment (non-capitalised),CFO and Corporate,BALLICOM,,Medium,,,5106302348,,Property Asset Management,864.00,
"Housing, Communities & Local Government",DLUHC,04/10/2023,Telecoms equipment (non-capitalised),CFO and Corporate,BALLICOM,,Medium,,,5106302348,,Property Asset Management,288.00,
"Housing, Communities & Local Government",DLUHC,04/10/2023,Telecoms equipment (non-capitalised),CFO and Corporate,BALLICOM,,Medium,,,5106302348,,Property Asset Management,18.00,
"Housing, Communities & Local Government",DLUHC,04/10/2023,Telecoms equipment (non-capitalised),CFO and Corporate,BALLICOM,,Medium,,,5106302348,,Property Asset Management,216.00,
"Housing, Communities & Local Government",DLUHC,04/10/2023,Training,CFO and Corporate,KPMG LLP (CSL),,Large,,,5106302301,,People Capability & Change C/O,"1,634.00",
"Housing, Communities & Local Government",DLUHC,04/10/2023,Web Services,CFO and Corporate,Juicy Media Ltd,,Small,,,5106302344,,Digital,"3,570.00",
"Housing, Communities & Local Government",DLUHC,05/10/2023,Cap Grants to Local Authorities (DEL),Regeneration,GREATER LONDON AUTHORITY,,Large,,225353416,2100329733,,Social Housing & Resettlement,"34,596,343.00",Yes
"Housing, Communities & Local Government",DLUHC,05/10/2023,Cap Grants to Local Authorities (DEL),Regeneration,GREATER LONDON AUTHORITY,,Large,,225353416,2100329734,,Social Housing & Resettlement,"63,816,524.00",Yes
"Housing, Communities & Local Government",DLUHC,05/10/2023,Conferences and Meeting Facilities,Safer and Greener Buildings,HOPE GARDENS W10 LTD,,Micro,,,5106302380,,Intervention Delivery,478.30,
"Housing, Communities & Local Government",DLUHC,05/10/2023,ERDF Work in Progress � Capital,Regeneration,CHELTENHAM BOROUGH COUNCIL,,,,,7700014498,,Community Investment & Funding Services,"1,711.26",Yes
"Housing, Communities & Local Government",DLUHC,05/10/2023,ERDF Work in Progress � Capital,Regeneration,CHELTENHAM BOROUGH COUNCIL,,,,,7700014501,,Community Investment & Funding Services,"159,065.70",Yes
"Housing, Communities & Local Government",DLUHC,05/10/2023,ERDF Work in Progress � Resource,Regeneration,BARNSLEY METROPOLITAN BOROUGH,,,,,7700014503,,Community Investment & Funding Services,"274,229.07",Yes
"Housing, Communities & Local Government",DLUHC,05/10/2023,ERDF Work in Progress � Resource,Regeneration,CHELTENHAM BOROUGH COUNCIL,,,,,7700014498,,Community Investment & Funding Services,"6,493.11",Yes
"Housing, Communities & Local Government",DLUHC,05/10/2023,ERDF Work in Progress � Resource,Regeneration,CHELTENHAM BOROUGH COUNCIL,,,,,7700014501,,Community Investment & Funding Services,"10,653.02",Yes
"Housing, Communities & Local Government",DLUHC,05/10/2023,ERDF Work in Progress � Resource,Regeneration,SWINDON BOROUGH COUNCIL,,,,,7700014500,,Community Investment & Funding Services,"18,500.34",Yes
"Housing, Communities & Local Government",DLUHC,05/10/2023,ERDF Work in Progress � Resource,Regeneration,SWINDON BOROUGH COUNCIL,,,,,7700014502,,Community Investment & Funding Services,"105,064.12",Yes
"Housing, Communities & Local Government",DLUHC,05/10/2023,ERDF Work in Progress � Resource,Regeneration,TWI LIMITED,,,,,7700014496,,Community Investment & Funding Services,"126,244.80",Yes
"Housing, Communities & Local Government",DLUHC,05/10/2023,ERDF Work in Progress � Resource,Regeneration,UNIVERSITY OF BATH,,,,,7700014497,,Community Investment & Funding Services,"7,828.53",Yes
"Housing, Communities & Local Government",DLUHC,05/10/2023,ERDF Work in Progress � Resource,Regeneration,UNIVERSITY SHEFFIELD,,Large,,,7700014499,,Community Investment & Funding Services,"440,962.87",Yes
"Housing, Communities & Local Government",DLUHC,05/10/2023,EXP � PURCHASE OF GOODS /SERVICES R & D,Regeneration,KANTAR PUBLIC UK LTD,Yes,Large,,228340905,5106302377,,Social Housing & Resettlement,"10,258.51",
"Housing, Communities & Local Government",DLUHC,05/10/2023,IT - Service Contracts,CFO and Corporate,LITTLE FISH(UK)T/A LITTLE FISH,,Medium,,,5106302366,IT Managed / Outsourced Services,Digital,"61,841.20",
"Housing, Communities & Local Government",DLUHC,05/10/2023,IT - Service Contracts,CFO and Corporate,LITTLE FISH(UK)T/A LITTLE FISH,,Medium,,,5106302366,,Digital,"44,137.97",
"Housing, Communities & Local Government",DLUHC,05/10/2023,IT - Software Maintenance,CFO and Corporate,DATAVID LIMITED,,Micro,,223819458,5106302365,,Digital,"31,765.63",
"Housing, Communities & Local Government",DLUHC,05/10/2023,IT - Software Maintenance,CFO and Corporate,DATAVID LIMITED,,Micro,,223819458,5106302369,,Digital,"33,180.63",
"Housing, Communities & Local Government",DLUHC,05/10/2023,IT Consultancy,CFO and Corporate,UBDS IT Consulting Limited,,Medium,,233710628,5106302363,,Digital,"11,001.00",
"Housing, Communities & Local Government",DLUHC,05/10/2023,Legal Fees,Levelling Up,"Harney, Westwood & Riegels LLP",,Medium,,,5106302370,,"Levelling Up, Policy, Strat & Analysis","11,998.80",
"Housing, Communities & Local Government",DLUHC,05/10/2023,Licence Fees/Levies,Local Govnmnt Resilience and Communities,ORDNANCE SURVEY,,Public Bodies,,211631592,5106302360,,Boundary Commission,"3,456.00",
"Housing, Communities & Local Government",DLUHC,05/10/2023,Miscellaneous Legal Costs,Regeneration,LAW COMMISSION,,,,,5106302376,,Chief Planner,"100,000.00",
"Housing, Communities & Local Government",DLUHC,05/10/2023,Payroll Services,Undefined DGGroup,CGI IT UK LIMITED,,Large,,239881618,5106302381,,People Capability & Change,"22,813.92",
"Housing, Communities & Local Government",DLUHC,05/10/2023,Payroll Services,Undefined DGGroup,CGI IT UK LIMITED,,Large,,239881618,5106302384,,People Capability & Change,514.51,
"Housing, Communities & Local Government",DLUHC,05/10/2023,Professional services,CFO and Corporate,Itm Communications Limited,,Medium,,,5106302378,,Digital,"3,078.00",
"Housing, Communities & Local Government",DLUHC,05/10/2023,Professional services,Regeneration,VALUATION OFFICE AGENCY,,Public Bodies,,215253886,5106302372,,Social Housing & Resettlement,"160,241.11",
"Housing, Communities & Local Government",DLUHC,05/10/2023,Research and Development,CFO and Corporate,KANTAR PUBLIC UK LTD,Yes,Large,,228340905,5106302371,,Communications,"64,620.00",
"Housing, Communities & Local Government",DLUHC,05/10/2023,Software Licences,CFO and Corporate,ATAMIS LTD,,Small,,,5106302368,,Commercial,"21,045.60",
"Housing, Communities & Local Government",DLUHC,05/10/2023,Software Licences,CFO and Corporate,PHOENIX SOFTWARE LTD,,Large,,,5106302386,,Digital,"10,929.60",
"Housing, Communities & Local Government",DLUHC,05/10/2023,Software Licences,CFO and Corporate,PHOENIX SOFTWARE LTD,,Large,,,5106302386,,Digital,"19,430.40",
"Housing, Communities & Local Government",DLUHC,05/10/2023,Steady State Service Provision,CFO and Corporate,EDENRED (UK GROUP) LTD,,Large,,210186342,5106302367,,People Capability & Change C/O,"8,750.00",
"Housing, Communities & Local Government",DLUHC,05/10/2023,Training,CFO and Corporate,CONTENT DESIGN LONDON,,Micro,,,5106302374,,Digital,975.00,
"Housing, Communities & Local Government",DLUHC,05/10/2023,Training,CFO and Corporate,CONTENT DESIGN LONDON,,Micro,,,5106302374,,Digital,"1,191.67",
"Housing, Communities & Local Government",DLUHC,05/10/2023,Training,CFO and Corporate,KPMG LLP (CSL),,Large,,,5106302383,,People Capability & Change C/O,761.00,
"Housing, Communities & Local Government",DLUHC,05/10/2023,Training,CFO and Corporate,WISE OWL BUSINESS SOLUTIONS LTD,,Micro,,738553754,5106302375,,Analysis and Data,725.00,
"Housing, Communities & Local Government",DLUHC,05/10/2023,Web Services,Local Govnmnt Resilience and Communities,Juicy Media Ltd,,Small,,,5106302364,IT Managed / Outsourced Services,Integration and Communities,"1,500.00",
"Housing, Communities & Local Government",DLUHC,06/10/2023,Advertising,CFO and Corporate,23 RED LIMITED,,Small,,,5106302404,,Communications,"76,441.60",
"Housing, Communities & Local Government",DLUHC,06/10/2023,Agency Staff,CFO and Corporate,ALEXANDER MANN SOLUTIONS LTD,,Large,,,5106302425,,Digital,"4,619.52",
"Housing, Communities & Local Government",DLUHC,06/10/2023,Agency Staff,CFO and Corporate,ALEXANDER MANN SOLUTIONS LTD,,Large,,,5106302430,Contingent Labour,Digital,"6,930.60",
"Housing, Communities & Local Government",DLUHC,06/10/2023,Agency Staff,CFO and Corporate,ALEXANDER MANN SOLUTIONS LTD,,Large,,,5106302438,,Digital,"4,003.56",
"Housing, Communities & Local Government",DLUHC,06/10/2023,Agency Staff,CFO and Corporate,ALEXANDER MANN SOLUTIONS LTD,,Large,,,5106302449,,Digital,"4,619.52",
"Housing, Communities & Local Government",DLUHC,06/10/2023,Agency Staff,CFO and Corporate,ALEXANDER MANN SOLUTIONS LTD,,Large,,,5106302454,Contingent Labour,Digital,"4,311.48",
"Housing, Communities & Local Government",DLUHC,06/10/2023,Agency Staff,CFO and Corporate,ALEXANDER MANN SOLUTIONS LTD,,Large,,,5106302459,,Digital,"8,622.96",
"Housing, Communities & Local Government",DLUHC,06/10/2023,Agency Staff,CFO and Corporate,ALEXANDER MANN SOLUTIONS LTD,,Large,,,5106302460,,Digital,"4,146.48",
"Housing, Communities & Local Government",DLUHC,06/10/2023,Agency Staff,CFO and Corporate,ALEXANDER MANN SOLUTIONS LTD,,Large,,,5106302462,,Digital,"4,192.92",
"Housing, Communities & Local Government",DLUHC,06/10/2023,Agency Staff,CFO and Corporate,ALEXANDER MANN SOLUTIONS LTD,,Large,,,5106302463,,Digital,"17,554.18",
"Housing, Communities & Local Government",DLUHC,06/10/2023,Agency Staff,CFO and Corporate,ALEXANDER MANN SOLUTIONS LTD,,Large,,,5106302464,,Digital,"4,003.56",
"Housing, Communities & Local Government",DLUHC,06/10/2023,Agency Staff,CFO and Corporate,ALEXANDER MANN SOLUTIONS LTD,,Large,,,5106302465,,Digital,"4,431.36",
"Housing, Communities & Local Government",DLUHC,06/10/2023,Agency Staff,CFO and Corporate,ALEXANDER MANN SOLUTIONS LTD,,Large,,,5106302467,,Digital,"4,840.38",
"Housing, Communities & Local Government",DLUHC,06/10/2023,Agency Staff,Levelling Up,ALEXANDER MANN SOLUTIONS LTD,,Large,,,5106302428,,Community Investment and Funding Service,784.08,
"Housing, Communities & Local Government",DLUHC,06/10/2023,Agency Staff,Levelling Up,ALEXANDER MANN SOLUTIONS LTD,,Large,,,5106302435,,Community Investment and Funding Service,"1,455.24",
"Housing, Communities & Local Government",DLUHC,06/10/2023,Agency Staff,Levelling Up,ALEXANDER MANN SOLUTIONS LTD,,Large,,,5106302436,,Community Investment and Funding Service,309.52,
"Housing, Communities & Local Government",DLUHC,06/10/2023,Agency Staff,Levelling Up,ALEXANDER MANN SOLUTIONS LTD,,Large,,,5106302441,,Community Investment and Funding Service,752.09,
"Housing, Communities & Local Government",DLUHC,06/10/2023,Agency Staff,Levelling Up,ALEXANDER MANN SOLUTIONS LTD,,Large,,,5106302450,,Community Investment and Funding Service,760.20,
"Housing, Communities & Local Government",DLUHC,06/10/2023,Agency Staff,Local Govnmnt Resilience and Communities,ALEXANDER MANN SOLUTIONS LTD,,Large,,,5106302427,,Covid 19 Inquiry,"3,465.30",
"Housing, Communities & Local Government",DLUHC,06/10/2023,Agency Staff,Local Govnmnt Resilience and Communities,ALEXANDER MANN SOLUTIONS LTD,,Large,,,5106302432,,Strategy and Private Offices,"1,155.78",
"Housing, Communities & Local Government",DLUHC,06/10/2023,Agency Staff,Local Govnmnt Resilience and Communities,ALEXANDER MANN SOLUTIONS LTD,,Large,,,5106302439,,Elections Directorate,"4,003.56",
"Housing, Communities & Local Government",DLUHC,06/10/2023,Agency Staff,Local Govnmnt Resilience and Communities,ALEXANDER MANN SOLUTIONS LTD,,Large,,,5106302443,,Elections Directorate,"3,780.36",
"Housing, Communities & Local Government",DLUHC,06/10/2023,Agency Staff,Local Govnmnt Resilience and Communities,ALEXANDER MANN SOLUTIONS LTD,,Large,,,5106302448,,Holocaust Memorial UKHMF,"3,141.25",
"Housing, Communities & Local Government",DLUHC,06/10/2023,Agency Staff,Local Govnmnt Resilience and Communities,ALEXANDER MANN SOLUTIONS LTD,,Large,,,5106302452,,Covid 19 Inquiry,"3,465.30",
"Housing, Communities & Local Government",DLUHC,06/10/2023,Agency Staff,Regeneration,ALEXANDER MANN SOLUTIONS LTD,,Large,,,5106302431,,Planning Reform,"4,252.86",
"Housing, Communities & Local Government",DLUHC,06/10/2023,Agency Staff,Safer and Greener Buildings,ALEXANDER MANN SOLUTIONS LTD,,Large,,,5106302429,,Intervention Delivery,"3,150.30",
"Housing, Communities & Local Government",DLUHC,06/10/2023,Agency Staff,Safer and Greener Buildings,ALEXANDER MANN SOLUTIONS LTD,,Large,,,5106302434,,Intervention Delivery,"5,543.34",
"Housing, Communities & Local Government",DLUHC,06/10/2023,Agency Staff,Safer and Greener Buildings,ALEXANDER MANN SOLUTIONS LTD,,Large,,,5106302442,,Intervention Delivery,"3,465.30",
"Housing, Communities & Local Government",DLUHC,06/10/2023,Agency Staff,Safer and Greener Buildings,ALEXANDER MANN SOLUTIONS LTD,,Large,,,5106302451,,Intervention Delivery,"3,780.36",
"Housing, Communities & Local Government",DLUHC,06/10/2023,Agency Staff,Safer and Greener Buildings,ALEXANDER MANN SOLUTIONS LTD,,Large,,,5106302461,,Intervention Delivery,"4,942.92",
"Housing, Communities & Local Government",DLUHC,06/10/2023,Cap Grants to Local Authorities (DEL),Safer and Greener Buildings,HOMES ENGLAND,,Public Bodies,,215576860,2100329888,,Intervention Delivery,"19,264,169.92",Yes
"Housing, Communities & Local Government",DLUHC,06/10/2023,Cap Grants to Local Authorities (DEL),Safer and Greener Buildings,HOMES ENGLAND,,Public Bodies,,215576860,2100329889,,Intervention Delivery,"870,361.45",Yes
"Housing, Communities & Local Government",DLUHC,06/10/2023,Consulting,Local Govnmnt Resilience and Communities,ALEXANDER MANN SOLUTIONS LTD,,Large,,,5106302457,,Holocaust Memorial UKHMF,"3,780.36",
"Housing, Communities & Local Government",DLUHC,06/10/2023,ERDF Work in Progress � Capital,Regeneration,OXFORD INNOVATION SERVICES LTD(MGP2,,,,,7700014505,,Community Investment & Funding Services,"-7,183.85",Yes
"Housing, Communities & Local Government",DLUHC,06/10/2023,ERDF Work in Progress � Capital,Regeneration,OXFORD INNOVATION SERVICES LTD(MGP2,,,,,7700014508,,Community Investment & Funding Services,"110,012.87",Yes
"Housing, Communities & Local Government",DLUHC,06/10/2023,ERDF Work in Progress � Capital,Regeneration,UNIVERSITY OF WOLVERHAMPTON,,,,,7700014511,,Community Investment & Funding Services,"-40,811.61",Yes
"Housing, Communities & Local Government",DLUHC,06/10/2023,ERDF Work in Progress � Resource,Regeneration,ASTON UNIVERSITY,,Large,,227749751,7700014504,,Community Investment & Funding Services,"123,169.21",Yes
"Housing, Communities & Local Government",DLUHC,06/10/2023,ERDF Work in Progress � Resource,Regeneration,BIORENEWABLES DEVELOPMENT CENTRE LT,,,,,7700014510,,Community Investment & Funding Services,"157,030.26",Yes
"Housing, Communities & Local Government",DLUHC,06/10/2023,ERDF Work in Progress � Resource,Regeneration,COMMUNITY MEDIA SOLUTIONS LTD,,Micro,,,7700014507,,Community Investment & Funding Services,"84,039.66",Yes
"Housing, Communities & Local Government",DLUHC,06/10/2023,ERDF Work in Progress � Resource,Regeneration,NATIONAL TRUST,,,,,7700014506,,Community Investment & Funding Services,"4,837.08",Yes
"Housing, Communities & Local Government",DLUHC,06/10/2023,ERDF Work in Progress � Resource,Regeneration,OXFORD INNOVATION SERVICES LTD(MGP2,,,,,7700014505,,Community Investment & Funding Services,"342,179.63",Yes
"Housing, Communities & Local Government",DLUHC,06/10/2023,ERDF Work in Progress � Resource,Regeneration,OXFORD INNOVATION SERVICES LTD(MGP2,,,,,7700014508,,Community Investment & Funding Services,"454,444.18",Yes
"Housing, Communities & Local Government",DLUHC,06/10/2023,ERDF Work in Progress � Resource,Regeneration,UNIVERSITY OF WOLVERHAMPTON,,,,,7700014509,,Community Investment & Funding Services,"51,180.22",Yes
"Housing, Communities & Local Government",DLUHC,06/10/2023,ERDF Work in Progress � Resource,Regeneration,UNIVERSITY OF WOLVERHAMPTON,,,,,7700014511,,Community Investment & Funding Services,"-1,889.93",Yes
"Housing, Communities & Local Government",DLUHC,06/10/2023,"Furniture, Fittings and carpets",CFO and Corporate,POSTURITE LTD,,Medium,,216832621,5106302415,"Furniture, Fixtures and Fittings",People Capability & Change C/O,573.83,
"Housing, Communities & Local Government",DLUHC,06/10/2023,Grant in Aid to NDPBs (non budget),Regeneration,LEASEHOLD ADVISORY SERVICE,,Small,,378000152,2100329890,,Leasehold Advisory Services,"127,248.00",Yes
"Housing, Communities & Local Government",DLUHC,06/10/2023,Grant in Aid to NDPBs (non budget),Regeneration,REGULATOR OF SOCIAL HOUSING,,Medium,,,2100329779,,Regulator of Social Housing,"979,000.00",Yes
"Housing, Communities & Local Government",DLUHC,06/10/2023,"IT - PC, Network & Hardware",CFO and Corporate,AirWalk Consulting Reply Ltd,,,,,5106302479,,Digital,"39,000.00",
"Housing, Communities & Local Government",DLUHC,06/10/2023,IT - Service Contracts,CFO and Corporate,AirWalk Consulting Reply Ltd,,,,,5106302420,,Digital,"293,454.00",
"Housing, Communities & Local Government",DLUHC,06/10/2023,IT - Service Contracts,CFO and Corporate,ALEXANDER MANN SOLUTIONS LTD,,Large,,,5106302444,,Digital,"5,010.81",
"Housing, Communities & Local Government",DLUHC,06/10/2023,IT - Service Contracts,CFO and Corporate,ALEXANDER MANN SOLUTIONS LTD,,Large,,,5106302445,,Digital,"4,317.72",
"Housing, Communities & Local Government",DLUHC,06/10/2023,IT - Service Contracts,CFO and Corporate,ALEXANDER MANN SOLUTIONS LTD,,Large,,,5106302456,,Digital,"3,284.96",
"Housing, Communities & Local Government",DLUHC,06/10/2023,IT - Service Contracts,CFO and Corporate,ALEXANDER MANN SOLUTIONS LTD,,Large,,,5106302458,IT Managed / Outsourced Services,Digital,"3,336.30",
"Housing, Communities & Local Government",DLUHC,06/10/2023,IT - Service Contracts,CFO and Corporate,ALEXANDER MANN SOLUTIONS LTD,,Large,,,5106302466,,Digital,"2,669.04",
"Housing, Communities & Local Government",DLUHC,06/10/2023,IT - Service Contracts,CFO and Corporate,County HR Solutions Ltd T/A CHR Sol,,Micro,,163232500,5106302470,IT Managed / Outsourced Services,Digital,"131,610.00",
"Housing, Communities & Local Government",DLUHC,06/10/2023,IT - Service Contracts,CFO and Corporate,County HR Solutions Ltd T/A CHR Sol,,Micro,,163232500,5106302470,,Digital,"16,880.00",
"Housing, Communities & Local Government",DLUHC,06/10/2023,IT - Service Contracts,CFO and Corporate,RISUAL LIMITED,,Medium,,,5106302411,,Digital,"40,050.00",
"Housing, Communities & Local Government",DLUHC,06/10/2023,IT - Software Maintenance,CFO and Corporate,AirWalk Consulting Reply Ltd,,,,,5106302475,,Digital,"11,940.00",
"Housing, Communities & Local Government",DLUHC,06/10/2023,Legal Fees,Local Govnmnt Resilience and Communities,Blackstone Chambers,,Large,,,5106302402,,Elections Directorate,997.50,
"Housing, Communities & Local Government",DLUHC,06/10/2023,Legal Fees,Local Govnmnt Resilience and Communities,Blackstone Chambers,,Large,,,5106302403,,Elections Directorate,"1,710.00",
"Housing, Communities & Local Government",DLUHC,06/10/2023,Legal Fees,CFO and Corporate,CABINET OFFICE HR SHARED SERVICES,,Large,,232159186,5106302433,,Not assigned,"1,014,184.00",
"Housing, Communities & Local Government",DLUHC,06/10/2023,Management Consultancy,Levelling Up,LOCALITY,,Medium,,347998312,5106302412,Consultancy,Community Investment and Funding Service,"70,275.00",
"Housing, Communities & Local Government",DLUHC,06/10/2023,Professional services,CFO and Corporate,Itm Communications Limited,,Medium,,,5106302446,,Digital,"5,962.38",
"Housing, Communities & Local Government",DLUHC,06/10/2023,Professional services,CFO and Corporate,TALENTEAM LIMITED,,Small,,,5106302413,IT Managed / Outsourced Services,Digital,"1,176.00",
"Housing, Communities & Local Government",DLUHC,06/10/2023,Professional services,Regeneration,DAVID JARVIS ASSOCIATES LTD,,Small,,,5106302395,,Chief Planner,"4,872.00",
"Housing, Communities & Local Government",DLUHC,06/10/2023,Professional services,Regeneration,DAVID JARVIS ASSOCIATES LTD,,Small,,,5106302397,,Chief Planner,"4,788.00",
"Housing, Communities & Local Government",DLUHC,06/10/2023,Professional services,Regeneration,LAW COMMISSION,,,,,5106302410,,Leasehold Land & Planning Systems,"200,000.00",
"Housing, Communities & Local Government",DLUHC,06/10/2023,Professional services,Safer and Greener Buildings,JACOBS UK LTD,,Large,,,5106302440,,Intervention Delivery,"46,878.60",
"Housing, Communities & Local Government",DLUHC,06/10/2023,Rates,CFO and Corporate,GOVERNMENT PROPERTY AGENCY,,Medium,,,5106302453,,Property Asset Management,"1,087.82",
"Housing, Communities & Local Government",DLUHC,06/10/2023,Rates,CFO and Corporate,GOVERNMENT PROPERTY AGENCY,,Medium,,,5106302468,,Property Asset Management,"70,959.26",
"Housing, Communities & Local Government",DLUHC,06/10/2023,Rent,CFO and Corporate,GOVERNMENT PROPERTY AGENCY,,Medium,,,5106302453,,Property Asset Management,"24,562.81",
"Housing, Communities & Local Government",DLUHC,06/10/2023,Restaurant and Supplies,Regeneration,STOKE ON TRENT CITY COUNCIL,,,,,5106302416,Business Support,Planning Reform,450.00,
"Housing, Communities & Local Government",DLUHC,06/10/2023,Security,CFO and Corporate,GOVERNMENT PROPERTY AGENCY,,Medium,,,5106302453,,Property Asset Management,305.70,
"Housing, Communities & Local Government",DLUHC,06/10/2023,Steady State Service Provision,CFO and Corporate,GOVERNMENT PROPERTY AGENCY,,Medium,,,5106302453,,Property Asset Management,"4,797.59",
"Housing, Communities & Local Government",DLUHC,06/10/2023,Steady State Service Provision,CFO and Corporate,GOVERNMENT PROPERTY AGENCY,,Medium,,,5106302468,,Property Asset Management,"62,267.68",
"Housing, Communities & Local Government",DLUHC,06/10/2023,Support services,Levelling Up,LOCALITY,,Medium,,347998312,5106302419,,Community Investment and Funding Service,"160,794.67",
"Housing, Communities & Local Government",DLUHC,06/10/2023,Training,CFO and Corporate,KPMG LLP (CSL),,Large,,,5106302408,,Commercial,507.91,
"Housing, Communities & Local Government",DLUHC,06/10/2023,Training,CFO and Corporate,KPMG LLP (CSL),,Large,,,5106302409,,Commercial,507.91,
"Housing, Communities & Local Government",DLUHC,06/10/2023,Training,CFO and Corporate,KPMG LLP (CSL),,Large,,,5106302476,,People Capability & Change C/O,"1,500.00",
"Housing, Communities & Local Government",DLUHC,06/10/2023,Training,CFO and Corporate,UNIVERSITY COLLEGE LONDON,,Large,,225410919,5106302469,,People Capability & Change C/O,"4,000.00",
"Housing, Communities & Local Government",DLUHC,09/10/2023,Cap Grants to Local Authorities (DEL),Local Govnmnt Resilience and Communities,TORRIDGE DC,,,,,3700238263,,Homelessness & Rough Sleeping,"-500,000.00",Yes
"Housing, Communities & Local Government",DLUHC,09/10/2023,Capital Grants to Private Sect Non Profit,Levelling Up,Falkirk Rugby Football&Sports Club(,,,,,2100329921,,Community Investment and Funding Service,"11,500.00",Yes
"Housing, Communities & Local Government",DLUHC,09/10/2023,Capital Grants to Private Sect Non Profit,Levelling Up,Joint Activities & Motor Education,Yes,Small,,,2100329922,,Community Investment and Funding Service,"34,140.00",Yes
"Housing, Communities & Local Government",DLUHC,09/10/2023,Conferences and Meeting Facilities,Local Govnmnt Resilience and Communities,COIN STREET COMMUNITY BUILDERS LTD,,Medium,,294729389,5106302483,,Homelessness & Rough Sleeping,"3,033.00",
"Housing, Communities & Local Government",DLUHC,09/10/2023,Current (non AEF) Grants to Local Authorities,Local Govnmnt Resilience and Communities,TORRIDGE DC,,,,,3700238264,,Homelessness & Rough Sleeping,"-54,498.00",Yes
"Housing, Communities & Local Government",DLUHC,09/10/2023,Current Grants to Non Profit Bodies,Levelling Up,Joint Activities & Motor Education,Yes,Small,,,2100329923,,Community Investment and Funding Service,"12,000.00",Yes
"Housing, Communities & Local Government",DLUHC,09/10/2023,ERDF Work in Progress � Capital,Regeneration,DERBY UNIVERSITY,,,,,7700014512,,Community Investment & Funding Services,"73,296.57",Yes
"Housing, Communities & Local Government",DLUHC,09/10/2023,ERDF Work in Progress � Resource,Regeneration,Department For International Trade,,,,,7700014514,,Community Investment & Funding Services,"285,921.22",Yes
"Housing, Communities & Local Government",DLUHC,09/10/2023,ERDF Work in Progress � Resource,Regeneration,Department For International Trade,,,,,7700014516,,Community Investment & Funding Services,"-1,779.38",Yes
"Housing, Communities & Local Government",DLUHC,09/10/2023,ERDF Work in Progress � Resource,Regeneration,DERBY UNIVERSITY,,,,,7700014512,,Community Investment & Funding Services,"66,005.47",Yes
"Housing, Communities & Local Government",DLUHC,09/10/2023,ERDF Work in Progress � Resource,Regeneration,DERBY UNIVERSITY,,,,,7700014513,,Community Investment & Funding Services,"11,816.47",Yes
"Housing, Communities & Local Government",DLUHC,09/10/2023,ERDF Work in Progress � Resource,Regeneration,GREATER LONDON AUTHORITY,,Large,,,7700014522,,Community Investment & Funding Services,"227,880.12",Yes
"Housing, Communities & Local Government",DLUHC,09/10/2023,ERDF Work in Progress � Resource,Regeneration,LONDON SOUTH BANK UNIVERSITY,,,,,7700014523,,Community Investment & Funding Services,"94,570.47",Yes
"Housing, Communities & Local Government",DLUHC,09/10/2023,ERDF Work in Progress � Resource,Regeneration,NGAGE SOLUTIONS LTD,,Small,,,7700014519,,Community Investment & Funding Services,"97,400.50",Yes
"Housing, Communities & Local Government",DLUHC,09/10/2023,ERDF Work in Progress � Resource,Regeneration,UNIVERSITY OF EXETER,,,,,7700014515,,Community Investment & Funding Services,"29,584.17",Yes
"Housing, Communities & Local Government",DLUHC,09/10/2023,ERDF Work in Progress � Resource,Regeneration,UNIVERSITY OF EXETER,,,,,7700014517,,Community Investment & Funding Services,"58,810.48",Yes
"Housing, Communities & Local Government",DLUHC,09/10/2023,ERDF Work in Progress � Resource,Regeneration,UNIVERSITY OF EXETER,,,,,7700014520,,Community Investment & Funding Services,"106,168.19",Yes
"Housing, Communities & Local Government",DLUHC,09/10/2023,ERDF Work in Progress � Resource,Regeneration,UNIVERSITY OF EXETER,,,,,7700014521,,Community Investment & Funding Services,"57,750.60",Yes
"Housing, Communities & Local Government",DLUHC,09/10/2023,ERDF Work in Progress � Resource,Regeneration,UNIVERSITY OF KEELE,,,,,7700014518,,Community Investment & Funding Services,"2,387.67",Yes
"Housing, Communities & Local Government",DLUHC,09/10/2023,EXP � PURCHASE OF GOODS /SERVICES R & D,Local Govnmnt Resilience and Communities,SOFTWIRE TECHNOLOGY LTD,,Medium,,,5106302532,,Elections Directorate,"117,600.00",
"Housing, Communities & Local Government",DLUHC,09/10/2023,IT - Service Contracts,CFO and Corporate,DAISY CORPORATE SERVICES TRADING LT,,Large,,,5106302523,,Digital,342.00,
"Housing, Communities & Local Government",DLUHC,09/10/2023,IT - Service Contracts,CFO and Corporate,EXELA TECHNOLOGIES LIMITED,,Large,,,5106302484,,Digital,"6,316.47",
"Housing, Communities & Local Government",DLUHC,09/10/2023,IT - Service Contracts,CFO and Corporate,Livtech Solutions Ltd,,Small,,217465813,5106302491,,Digital,"86,862.50",
"Housing, Communities & Local Government",DLUHC,09/10/2023,IT - Service Contracts,CFO and Corporate,Livtech Solutions Ltd,,Small,,217465813,5106302494,,Digital,"184,356.25",
"Housing, Communities & Local Government",DLUHC,09/10/2023,IT - Service Contracts,CFO and Corporate,Moore Stephens Insight Limited,,Small,,218183694,5106302506,,Digital,"69,084.00",
"Housing, Communities & Local Government",DLUHC,09/10/2023,IT - Service Contracts,CFO and Corporate,UBDS IT Consulting Limited,,Medium,,233710628,5106302529,,Digital,"64,943.00",
"Housing, Communities & Local Government",DLUHC,09/10/2023,IT - Service Contracts,CFO and Corporate,X M A LTD,,Large,,298484148,5106302522,,Digital,"5,694.00",
"Housing, Communities & Local Government",DLUHC,09/10/2023,IT - Service Contracts,Levelling Up,GROUNDWORK UK,Yes,,,739193758,5106302509,,Community Investment and Funding Service,"2,338.17",
"Housing, Communities & Local Government",DLUHC,09/10/2023,IT - Service Contracts,Safer and Greener Buildings,EXELA TECHNOLOGIES LIMITED,,Large,,,5106302486,,Building Systems & Net Zero,"2,164.44",
"Housing, Communities & Local Government",DLUHC,09/10/2023,IT - Software Maintenance,CFO and Corporate,ARCH CONSULTING LTD,,Small,,543735104,5106302498,,Digital,"62,010.00",
"Housing, Communities & Local Government",DLUHC,09/10/2023,IT - Software Maintenance,CFO and Corporate,SOFTWIRE TECHNOLOGY LTD,,Medium,,,5106302487,,Digital,"41,493.75",
"Housing, Communities & Local Government",DLUHC,09/10/2023,Legal Fees,Regeneration,LANDMARK CHAMBERS,,Medium,,732521732,5106302500,,Planning Reform & Housing Quality,688.00,
"Housing, Communities & Local Government",DLUHC,09/10/2023,Legal Fees,Regeneration,VALUATION OFFICE AGENCY,,Public Bodies,,215253886,5106302504,,Chief Planner,"3,704.92",
"Housing, Communities & Local Government",DLUHC,09/10/2023,Management Consultancy,CFO and Corporate,MADE TECH LTD,,Medium,,,5106302526,,Digital,"1,998.00",
"Housing, Communities & Local Government",DLUHC,09/10/2023,Printing,Local Govnmnt Resilience and Communities,HH Associates Limited,,Large,,770639193,5106301498,,Elections Directorate,549.43,
"Housing, Communities & Local Government",DLUHC,09/10/2023,Professional services,Regeneration,CEL GROUP,,Medium,,394794614,5106302497,Technical Services,Social Housing & Resettlement,"88,000.00",
"Housing, Communities & Local Government",DLUHC,09/10/2023,Professional services,Regeneration,HAMPSHIRE COUNTY COUNCIL,,,,506774652,5106302488,,Chief Planner,"7,920.00",
"Housing, Communities & Local Government",DLUHC,09/10/2023,Professional services,Safer and Greener Buildings,BUILDING RESEARCH ESTABLISHMENT,,Large,,896495033,5106302492,,Building Systems & Net Zero,"3,228.40",
"Housing, Communities & Local Government",DLUHC,09/10/2023,Professional services,Safer and Greener Buildings,TURNER&TOWNSEND PROJECT MAN LTD,,Large,,,5106302495,,Intervention Delivery,"78,554.26",
"Housing, Communities & Local Government",DLUHC,09/10/2023,Software Licences,CFO and Corporate,PHOENIX SOFTWARE LTD,,Large,,,5106302518,,Digital,"3,756.00",
"Housing, Communities & Local Government",DLUHC,09/10/2023,Training,CFO and Corporate,KPMG LLP (CSL),,Large,,,5106302490,,People Capability & Change C/O,858.78,
"Housing, Communities & Local Government",DLUHC,09/10/2023,Training,CFO and Corporate,KPMG LLP (CSL),,Large,,,5106302530,,Digital,243.00,
"Housing, Communities & Local Government",DLUHC,10/10/2023,Cap Grants to Local Authorities (DEL),Levelling Up,AMBER VALLEY BC,,,,,3700238325,,Levelling Up: Major Programmes,"4,655,134.00",Yes
"Housing, Communities & Local Government",DLUHC,10/10/2023,Cap Grants to Local Authorities (DEL),Levelling Up,BARNSLEY MBC,,,,211178595,3700238312,,Levelling Up: Major Programmes,"293,712.00",Yes
"Housing, Communities & Local Government",DLUHC,10/10/2023,Cap Grants to Local Authorities (DEL),Levelling Up,CALDERDALE MBC,,,,,3700238313,,Levelling Up: Major Programmes,"886,456.00",Yes
"Housing, Communities & Local Government",DLUHC,10/10/2023,Cap Grants to Local Authorities (DEL),Levelling Up,CHESHIRE EAST COUNCIL,,Large,,,3700238319,,Levelling Up: Major Programmes,"9,658,777.00",Yes
"Housing, Communities & Local Government",DLUHC,10/10/2023,Cap Grants to Local Authorities (DEL),Levelling Up,CITY OF SUNDERLAND,,,,215599312,3700238310,,Levelling Up: Major Programmes,"547,978.00",Yes
"Housing, Communities & Local Government",DLUHC,10/10/2023,Cap Grants to Local Authorities (DEL),Levelling Up,CORNWALL UNITARY AUTHORITY,,,,211334404,3700238323,,Levelling Up: Major Programmes,"3,791,857.00",Yes
"Housing, Communities & Local Government",DLUHC,10/10/2023,Cap Grants to Local Authorities (DEL),Levelling Up,DOVER DC,,,,,3700238309,,Levelling Up: Major Programmes,"925,267.00",Yes
"Housing, Communities & Local Government",DLUHC,10/10/2023,Cap Grants to Local Authorities (DEL),Levelling Up,DURHAM COUNTY COUNCIL,,,,224004882,3700238328,,Levelling Up: Major Programmes,"1,369,737.00",Yes
"Housing, Communities & Local Government",DLUHC,10/10/2023,Cap Grants to Local Authorities (DEL),Levelling Up,FYLDE BC,,,,227479912,3700238329,,Levelling Up: Major Programmes,"1,421,426.00",Yes
"Housing, Communities & Local Government",DLUHC,10/10/2023,Cap Grants to Local Authorities (DEL),Levelling Up,GREENWICH LB,,,,,3700238330,,Levelling Up: Major Programmes,"1,036,285.00",Yes
"Housing, Communities & Local Government",DLUHC,10/10/2023,Cap Grants to Local Authorities (DEL),Levelling Up,HARROW LB,,,,,3700238322,,Levelling Up: Major Programmes,"5,260,685.00",Yes
"Housing, Communities & Local Government",DLUHC,10/10/2023,Cap Grants to Local Authorities (DEL),Levelling Up,HUNTINGDONSHIRE DC,,,,235999216,3700238321,,Levelling Up: Major Programmes,"396,205.00",Yes
"Housing, Communities & Local Government",DLUHC,10/10/2023,Cap Grants to Local Authorities (DEL),Levelling Up,LEWES DC,,,,213090082,3700238320,,Levelling Up: Major Programmes,"237,497.00",Yes
"Housing, Communities & Local Government",DLUHC,10/10/2023,Cap Grants to Local Authorities (DEL),Levelling Up,MIDDLESBROUGH BC,,Large,,,3700238307,,Levelling Up: Major Programmes,"3,155,000.00",Yes
"Housing, Communities & Local Government",DLUHC,10/10/2023,Cap Grants to Local Authorities (DEL),Levelling Up,NEWCASTLE UNDER LYME BC,,,,229894373,3700238331,,Levelling Up: Major Programmes,"300,874.00",Yes
"Housing, Communities & Local Government",DLUHC,10/10/2023,Cap Grants to Local Authorities (DEL),Levelling Up,NORTH DEVON DC,,,,,3700238327,,Levelling Up: Major Programmes,"2,047,488.00",Yes
"Housing, Communities & Local Government",DLUHC,10/10/2023,Cap Grants to Local Authorities (DEL),Levelling Up,PORTSMOUTH CITY COUNCIL,,Large,,211183082,3700238317,,Levelling Up: Major Programmes,"189,060.00",Yes
"Housing, Communities & Local Government",DLUHC,10/10/2023,Cap Grants to Local Authorities (DEL),Levelling Up,REDCAR & CLEVELAND BOROUGH COUNCIL,,,,215175196,3700238318,,Levelling Up: Major Programmes,"111,836.00",Yes
"Housing, Communities & Local Government",DLUHC,10/10/2023,Cap Grants to Local Authorities (DEL),Levelling Up,SHEFFIELD CITY CNCL,,,,,3700238324,,Levelling Up: Major Programmes,"4,311,796.00",Yes
"Housing, Communities & Local Government",DLUHC,10/10/2023,Cap Grants to Local Authorities (DEL),Levelling Up,SOUTHWARK LB,,,,,3700238326,,Levelling Up: Major Programmes,"370,747.00",Yes
"Housing, Communities & Local Government",DLUHC,10/10/2023,Cap Grants to Local Authorities (DEL),Levelling Up,STOCKPORT MBC,,,,228706248,3700238311,,Levelling Up: Major Programmes,"1,927,351.00",Yes
"Housing, Communities & Local Government",DLUHC,10/10/2023,Cap Grants to Local Authorities (DEL),Levelling Up,SUTTON LB,,,,,3700238306,,Levelling Up: Major Programmes,"2,278,091.00",Yes
"Housing, Communities & Local Government",DLUHC,10/10/2023,Cap Grants to Local Authorities (DEL),Levelling Up,TRAFFORD MBC,,,,,3700238314,,Levelling Up: Major Programmes,"338,434.00",Yes
"Housing, Communities & Local Government",DLUHC,10/10/2023,Cap Grants to Local Authorities (DEL),Levelling Up,WALSALL MBC,,,,212515585,3700238316,,Levelling Up: Major Programmes,"1,457,229.00",Yes
"Housing, Communities & Local Government",DLUHC,10/10/2023,Cap Grants to Local Authorities (DEL),Levelling Up,WILTSHIRE COUNCIL,,,,211341656,3700238315,,Levelling Up: Major Programmes,"1,906,247.00",Yes
"Housing, Communities & Local Government",DLUHC,10/10/2023,Cap Grants to Local Authorities (DEL),Levelling Up,WIRRAL MBC,,,,211222602,3700238332,,Levelling Up: Major Programmes,"25,000.00",Yes
"Housing, Communities & Local Government",DLUHC,10/10/2023,Cap Grants to Local Authorities (DEL),Levelling Up,WOLVERHAMPTON MBC,,,,229895453,3700238308,,Levelling Up: Major Programmes,"337,500.00",Yes
"Housing, Communities & Local Government",DLUHC,10/10/2023,Catering,CFO and Corporate,BOUYGUES E&S FM UK LTD (CATERING),,Large,,,2100330012,Business Support,Analysis and Data,"1,238.10",
"Housing, Communities & Local Government",DLUHC,10/10/2023,Catering,Levelling Up,BOUYGUES E&S FM UK LTD (CATERING),,Large,,,2100330012,Business Support,Strategy & Private Offices,187.08,
"Housing, Communities & Local Government",DLUHC,10/10/2023,Catering,Levelling Up,BOUYGUES E&S FM UK LTD (CATERING),,Large,,,2100330012,Business Support,"Levelling Up, Policy, Strat & Analysis",49.20,
"Housing, Communities & Local Government",DLUHC,10/10/2023,Catering,Levelling Up,BOUYGUES E&S FM UK LTD (CATERING),,Large,,,2100330012,Business Support,"Levelling Up, Policy, Strat & Analysis",114.24,
"Housing, Communities & Local Government",DLUHC,10/10/2023,Catering,Local Govnmnt Resilience and Communities,BOUYGUES E&S FM UK LTD (CATERING),,Large,,,2100330012,Business Support,Integration and Communities,57.24,
"Housing, Communities & Local Government",DLUHC,10/10/2023,Catering,Local Govnmnt Resilience and Communities,BOUYGUES E&S FM UK LTD (CATERING),,Large,,,2100330012,Business Support,Homelessness & Rough Sleeping,53.52,
"Housing, Communities & Local Government",DLUHC,10/10/2023,Catering,Local Govnmnt Resilience and Communities,BOUYGUES E&S FM UK LTD (CATERING),,Large,,,2100330012,Business Support,Resilience & Recovery,258.78,
"Housing, Communities & Local Government",DLUHC,10/10/2023,Catering,Local Govnmnt Resilience and Communities,BOUYGUES E&S FM UK LTD (CATERING),,Large,,,2100330012,Business Support,Local Government Policy,49.20,
"Housing, Communities & Local Government",DLUHC,10/10/2023,Current (non AEF) Grants to Local Authorities,Levelling Up,SQW LTD,,Medium,,289652133,5106302535,,Levelling Up: Major Programmes,"43,241.00",Yes
"Housing, Communities & Local Government",DLUHC,10/10/2023,Current Grants to Non Profit Bodies,Levelling Up,Stable Family Home Trust,,Medium,,,2100329999,,Community Investment and Funding Service,"50,000.00",Yes
"Housing, Communities & Local Government",DLUHC,10/10/2023,Electronic Data Storage,CFO and Corporate,RESTORE PLC,,Large,,,5106302585,,Digital,"4,717.00",
"Housing, Communities & Local Government",DLUHC,10/10/2023,ERDF Work in Progress � Capital,Regeneration,Blackpool Council,,,,,7700014526,,Community Investment & Funding Services,"53,084.61",Yes
"Housing, Communities & Local Government",DLUHC,10/10/2023,ERDF Work in Progress � Capital,Regeneration,EAST LONDON UNIVERSITY,,,,,7700014527,,Community Investment & Funding Services,"229,041.88",Yes
"Housing, Communities & Local Government",DLUHC,10/10/2023,ERDF Work in Progress � Capital,Regeneration,HEREFORDSHIRE COUNCIL,,,,,7700014354,,Community Investment & Funding Services,"-11,454.43",Yes
"Housing, Communities & Local Government",DLUHC,10/10/2023,ERDF Work in Progress � Resource,Regeneration,Blackpool Council,,,,,7700014526,,Community Investment & Funding Services,"23,583.81",Yes
"Housing, Communities & Local Government",DLUHC,10/10/2023,ERDF Work in Progress � Resource,Regeneration,EAST LONDON UNIVERSITY,,,,,7700014527,,Community Investment & Funding Services,"198,775.98",Yes
"Housing, Communities & Local Government",DLUHC,10/10/2023,ERDF Work in Progress � Resource,Regeneration,RTC NORTH LTD,,Small,,,7700014525,,Community Investment & Funding Services,"306,932.15",Yes
"Housing, Communities & Local Government",DLUHC,10/10/2023,ERDF Work in Progress � Resource,Regeneration,UNIVERSITY OF BIRMINGHAM,,Large,,,7700014528,,Community Investment & Funding Services,"128,016.65",Yes
"Housing, Communities & Local Government",DLUHC,10/10/2023,EXP � PURCHASE OF GOODS /SERVICES R & D,Local Govnmnt Resilience and Communities,VALTECH LTD,,Medium,,,5106302568,,Elections Directorate,"65,818.75",
"Housing, Communities & Local Government",DLUHC,10/10/2023,Finance Consultancy,Safer and Greener Buildings,Heads Resourcing Group Ltd,,Small,,218026480,5106302608,,Intervention Delivery,"4,248.00",
"Housing, Communities & Local Government",DLUHC,10/10/2023,Grant in Aid to NDPBs (non budget),Local Govnmnt Resilience and Communities,COMMISSION LOCAL ADMINISTRATION,,,,215271508,2100329735,,ALBs (LG&PS),"840,000.00",Yes
"Housing, Communities & Local Government",DLUHC,10/10/2023,Heads of Profession Training,Regeneration,ERNST & YOUNG LLP,,Large,,221768935,5106302543,,Housing Markets and Strategy,"18,395.10",
"Housing, Communities & Local Government",DLUHC,10/10/2023,Heads of Profession Training,Regeneration,ERNST & YOUNG LLP,,Large,,221768935,5106302590,,Housing Markets and Strategy,"18,395.10",
"Housing, Communities & Local Government",DLUHC,10/10/2023,IT - Service Contracts,CFO and Corporate,DAISY CORPORATE SERVICES TRADING LT,,Large,,,5106302472,,Digital,"-16,863.95",
"Housing, Communities & Local Government",DLUHC,10/10/2023,IT - Service Contracts,CFO and Corporate,DAISY CORPORATE SERVICES TRADING LT,,Large,,,5106302584,,Digital,684.00,
"Housing, Communities & Local Government",DLUHC,10/10/2023,IT - Service Contracts,CFO and Corporate,KONICA MINOLTA BUSINESS SOLUTIONS (,,Large,,,5106302606,,Digital,835.92,
"Housing, Communities & Local Government",DLUHC,10/10/2023,Legal Fees,Regeneration,MILLS & REEVE LLP,,Large,,,5106302567,,Planning Reform & Housing Quality,"2,501.70",
"Housing, Communities & Local Government",DLUHC,10/10/2023,Legal Fees,Regeneration,MILLS & REEVE LLP,,Large,,,5106302604,,Planning Reform & Housing Quality,"1,859.04",
"Housing, Communities & Local Government",DLUHC,10/10/2023,Physical Storage,CFO and Corporate,RESTORE PLC,,Large,,,5106302571,,Digital,903.26,
"Housing, Communities & Local Government",DLUHC,10/10/2023,Physical Storage,CFO and Corporate,RESTORE PLC,,Large,,,5106302573,,Digital,"2,791.80",
"Housing, Communities & Local Government",DLUHC,10/10/2023,Physical Storage,CFO and Corporate,RESTORE PLC,,Large,,,5106302574,,Digital,"4,156.32",
"Housing, Communities & Local Government",DLUHC,10/10/2023,Physical Storage,CFO and Corporate,RESTORE PLC,,Large,,,5106302575,,Digital,"1,608.18",
"Housing, Communities & Local Government",DLUHC,10/10/2023,Physical Storage,CFO and Corporate,RESTORE PLC,,Large,,,5106302576,,Digital,"2,872.30",
"Housing, Communities & Local Government",DLUHC,10/10/2023,Physical Storage,CFO and Corporate,RESTORE PLC,,Large,,,5106302585,,Digital,"21,479.32",
"Housing, Communities & Local Government",DLUHC,10/10/2023,Publications,Local Govnmnt Resilience and Communities,THOMSON REUTERS (PROFESSIONAL) UK L,,Large,,227272184,5106302588,,Elections Directorate,343.00,
"Housing, Communities & Local Government",DLUHC,10/10/2023,Purchase of Consultancy Services,CFO and Corporate,GOVERNMENT PROPERTY AGENCY,,Medium,,,5106302605,,Property Asset Management,"12,295.11",
"Housing, Communities & Local Government",DLUHC,10/10/2023,Rates,CFO and Corporate,GOVERNMENT PROPERTY AGENCY,,Medium,,,5106302600,,Property Asset Management,"15,127.93",
"Housing, Communities & Local Government",DLUHC,10/10/2023,Rates,CFO and Corporate,GOVERNMENT PROPERTY AGENCY,,Medium,,,5106302601,,Property Asset Management,"15,127.93",
"Housing, Communities & Local Government",DLUHC,10/10/2023,Rates,CFO and Corporate,GOVERNMENT PROPERTY AGENCY,,Medium,,,5106302605,,Property Asset Management,"21,999.56",
"Housing, Communities & Local Government",DLUHC,10/10/2023,Recruitment,CFO and Corporate,HM REVENUE & CUSTOMS,,Public Bodies,,365117972,5106302597,,Analysis and Data,"17,630.00",
"Housing, Communities & Local Government",DLUHC,10/10/2023,Rent,CFO and Corporate,GOVERNMENT PROPERTY AGENCY,,Medium,,,5106302600,,Property Asset Management,"38,530.25",
"Housing, Communities & Local Government",DLUHC,10/10/2023,Rent,CFO and Corporate,GOVERNMENT PROPERTY AGENCY,,Medium,,,5106302601,,Property Asset Management,"38,530.25",
"Housing, Communities & Local Government",DLUHC,10/10/2023,Rent,CFO and Corporate,GOVERNMENT PROPERTY AGENCY,,Medium,,,5106302605,,Property Asset Management,"23,678.70",
"Housing, Communities & Local Government",DLUHC,10/10/2023,Software Licences,CFO and Corporate,CONCUR HOLDINGS(NETHERLANDS) BV,,Large,,,5106302607,,Finance,"61,366.10",
"Housing, Communities & Local Government",DLUHC,10/10/2023,Software Licences,CFO and Corporate,PHOENIX SOFTWARE LTD,,Large,,,5106302551,,People Capability & Change C/O,282.00,
"Housing, Communities & Local Government",DLUHC,10/10/2023,Steady State Service Provision,CFO and Corporate,GOVERNMENT PROPERTY AGENCY,,Medium,,,5106302471,,Property Asset Management,590.00,
"Housing, Communities & Local Government",DLUHC,10/10/2023,Steady State Service Provision,CFO and Corporate,GOVERNMENT PROPERTY AGENCY,,Medium,,,5106302600,,Property Asset Management,"20,689.62",
"Housing, Communities & Local Government",DLUHC,10/10/2023,Steady State Service Provision,CFO and Corporate,GOVERNMENT PROPERTY AGENCY,,Medium,,,5106302601,,Property Asset Management,"20,689.62",
"Housing, Communities & Local Government",DLUHC,10/10/2023,Steady State Service Provision,Regeneration,EXELA TECHNOLOGIES LIMITED,,Large,,,5106302589,,Social Housing & Resettlement,"15,997.96",
"Housing, Communities & Local Government",DLUHC,10/10/2023,Training,CFO and Corporate,MEDIA TRAINING LTD,,Small,,570206003,5106302552,Development and Training,Communications,279.00,
"Housing, Communities & Local Government",DLUHC,10/10/2023,Training,Regeneration,KPMG LLP (CSL),,Large,,,5106302586,,Housing Markets and Strategy,"4,239.80",
"Housing, Communities & Local Government",DLUHC,11/10/2023,Agency Staff,Local Govnmnt Resilience and Communities,CABINET OFFICE HR SHARED SERVICES,,Large,,232159186,5106302662,,Integration and Communities,"46,636.80",
"Housing, Communities & Local Government",DLUHC,11/10/2023,Capital Grants to Private Sect Non Profit,Levelling Up,SELSEY PAVILLION TRUST,,,,,2100330037,,Community Investment and Funding Service,"200,000.00",Yes
"Housing, Communities & Local Government",DLUHC,11/10/2023,Courier Services,CFO and Corporate,POSTURITE LTD,,Medium,,216832621,5106302647,,People Capability & Change C/O,32.29,
"Housing, Communities & Local Government",DLUHC,11/10/2023,Courier Services,CFO and Corporate,POSTURITE LTD,,Medium,,216832621,5106302651,,People Capability & Change C/O,71.94,
"Housing, Communities & Local Government",DLUHC,11/10/2023,Courier Services,CFO and Corporate,POSTURITE LTD,,Medium,,216832621,5106302651,,People Capability & Change C/O,101.94,
"Housing, Communities & Local Government",DLUHC,11/10/2023,Current (non AEF) Grants to Local Authorities,Local Govnmnt Resilience and Communities,HERTFORDSHIRE COUNTY CNCL,,,,210659897,3700231359,,Homelessness & Rough Sleeping,"-357,858.00",Yes
"Housing, Communities & Local Government",DLUHC,11/10/2023,Current (non AEF) Grants to Local Authorities,Regeneration,Cumberland Council,,,,,2100330010,,"Places,Infrastructure & Housing Delivery","400,000.00",Yes
"Housing, Communities & Local Government",DLUHC,11/10/2023,Current (non AEF) Grants to Local Authorities,Resettlements,City of Wolverhampton Council,,Public Bodies,,,2100330004,,Resettlements,"188,000.00",Yes
"Housing, Communities & Local Government",DLUHC,11/10/2023,Current (non AEF) Grants to Local Authorities,Resettlements,MANCHESTER CITY COUNCIL,,,,211241393,2100330035,,Resettlements,"271,000.00",Yes
"Housing, Communities & Local Government",DLUHC,11/10/2023,Current (non AEF) Grants to Local Authorities,Resettlements,MIDDLESBROUGH BC,,Public Bodies,,,2100330036,,Resettlements,"106,000.00",Yes
"Housing, Communities & Local Government",DLUHC,11/10/2023,Current Grants to Non Profit Bodies,Levelling Up,SELSEY PAVILLION TRUST,,,,,2100330038,,Community Investment and Funding Service,"19,900.00",Yes
"Housing, Communities & Local Government",DLUHC,11/10/2023,ERDF Work in Progress � Capital,Regeneration,COVENTRY CITY COUNCIL,,Large,,,7700014530,,Community Investment & Funding Services,"395,034.19",Yes
"Housing, Communities & Local Government",DLUHC,11/10/2023,ERDF Work in Progress � Capital,Regeneration,WORCESTERSHIRE COUNTY COUNCIL,,,,,7700014533,,Community Investment & Funding Services,"242,470.77",Yes
"Housing, Communities & Local Government",DLUHC,11/10/2023,ERDF Work in Progress � Resource,Regeneration,COVENTRY CITY COUNCIL,,Large,,,7700014530,,Community Investment & Funding Services,"357,054.39",Yes
"Housing, Communities & Local Government",DLUHC,11/10/2023,ERDF Work in Progress � Resource,Regeneration,DONCASTER MBC,,,,,7700014531,,Community Investment & Funding Services,"-6,481.95",Yes
"Housing, Communities & Local Government",DLUHC,11/10/2023,ERDF Work in Progress � Resource,Regeneration,DONCASTER MBC,,,,,7700014534,,Community Investment & Funding Services,"52,303.00",Yes
"Housing, Communities & Local Government",DLUHC,11/10/2023,ERDF Work in Progress � Resource,Regeneration,OXFORDSHIRE LOCAL ENTERPRISE PARTNE,,,,,7700014529,,Community Investment & Funding Services,"82,784.94",Yes
"Housing, Communities & Local Government",DLUHC,11/10/2023,ERDF Work in Progress � Resource,Regeneration,WORCESTERSHIRE COUNTY COUNCIL,,,,,7700014533,,Community Investment & Funding Services,"87,682.47",Yes
"Housing, Communities & Local Government",DLUHC,11/10/2023,EXP � PURCHASE OF GOODS /SERVICES R & D,Levelling Up,Creditscorer Ltd,,Micro,,,5106302667,,"Levelling Up, Policy, Strat & Analysis","9,900.00",
"Housing, Communities & Local Government",DLUHC,11/10/2023,EXP � PURCHASE OF GOODS /SERVICES R & D,Levelling Up,Marc Cowling,,,,,5106302623,,"Levelling Up, Policy, Strat & Analysis","9,900.00",
"Housing, Communities & Local Government",DLUHC,11/10/2023,EXP � PURCHASE OF GOODS /SERVICES R & D,Local Govnmnt Resilience and Communities,5 Essex Court,,Medium,,,5106302628,,Homelessness & Rough Sleeping,"1,540.00",
"Housing, Communities & Local Government",DLUHC,11/10/2023,EXP � PURCHASE OF GOODS /SERVICES R & D,Local Govnmnt Resilience and Communities,HOMELESS LINK,,Medium,,,5106302616,,Homelessness & Rough Sleeping,"7,875.00",
"Housing, Communities & Local Government",DLUHC,11/10/2023,Fees,CFO and Corporate,HM TREASURY,,Public Bodies,,233590996,5106302657,,Commercial,"184,517.50",
"Housing, Communities & Local Government",DLUHC,11/10/2023,Fees,CFO and Corporate,HM TREASURY,,Public Bodies,,233590996,5106302658,,Commercial,"415,000.00",
"Housing, Communities & Local Government",DLUHC,11/10/2023,"Furniture, Fittings and carpets",CFO and Corporate,POSTURITE LTD,,Medium,,216832621,5106302651,,People Capability & Change C/O,589.14,
"Housing, Communities & Local Government",DLUHC,11/10/2023,IT - Service Contracts,CFO and Corporate,"Amazon Web Services Emea Sarl, Uk B",,Large,,222893290,5106302201,,Finance,"-1,565.13",
"Housing, Communities & Local Government",DLUHC,11/10/2023,IT - Service Contracts,CFO and Corporate,"Amazon Web Services Emea Sarl, Uk B",,Large,,222893290,5106302204,,Finance,-816.17,
"Housing, Communities & Local Government",DLUHC,11/10/2023,IT - Service Contracts,CFO and Corporate,"Amazon Web Services Emea Sarl, Uk B",,Large,,222893290,5106302655,,Digital,376.48,
"Housing, Communities & Local Government",DLUHC,11/10/2023,IT - Service Contracts,CFO and Corporate,"Amazon Web Services Emea Sarl, Uk B",,Large,,222893290,5106302655,,Digital,796.44,
"Housing, Communities & Local Government",DLUHC,11/10/2023,IT - Service Contracts,CFO and Corporate,"Amazon Web Services Emea Sarl, Uk B",,Large,,222893290,5106302655,,Digital,131.37,
"Housing, Communities & Local Government",DLUHC,11/10/2023,IT - Service Contracts,CFO and Corporate,"Amazon Web Services Emea Sarl, Uk B",,Large,,222893290,5106302655,,Digital,149.43,
"Housing, Communities & Local Government",DLUHC,11/10/2023,IT - Service Contracts,CFO and Corporate,"Amazon Web Services Emea Sarl, Uk B",,Large,,222893290,5106302659,,Digital,"2,579.55",
"Housing, Communities & Local Government",DLUHC,11/10/2023,IT - Service Contracts,CFO and Corporate,"Amazon Web Services Emea Sarl, Uk B",,Large,,222893290,5106302659,,Digital,"6,497.20",
"Housing, Communities & Local Government",DLUHC,11/10/2023,IT - Service Contracts,CFO and Corporate,"Amazon Web Services Emea Sarl, Uk B",,Large,,222893290,5106302659,,Digital,862.14,
"Housing, Communities & Local Government",DLUHC,11/10/2023,IT - Service Contracts,CFO and Corporate,"Amazon Web Services Emea Sarl, Uk B",,Large,,222893290,5106302659,,Digital,"1,087.11",
"Housing, Communities & Local Government",DLUHC,11/10/2023,IT - Service Contracts,CFO and Corporate,Zaizi Limited,,Micro,,,5106302653,,Digital,"45,227.38",
"Housing, Communities & Local Government",DLUHC,11/10/2023,IT - Service Contracts,Levelling Up,"Amazon Web Services Emea Sarl, Uk B",,Large,,222893290,5106302655,,Spatial Data Unit,41.04,
"Housing, Communities & Local Government",DLUHC,11/10/2023,IT - Service Contracts,Levelling Up,"Amazon Web Services Emea Sarl, Uk B",,Large,,222893290,5106302659,,Spatial Data Unit,118.23,
"Housing, Communities & Local Government",DLUHC,11/10/2023,IT - Service Contracts,Regeneration,"Amazon Web Services Emea Sarl, Uk B",,Large,,222893290,5106302655,,Planning Reform,328.43,
"Housing, Communities & Local Government",DLUHC,11/10/2023,IT - Service Contracts,Regeneration,"Amazon Web Services Emea Sarl, Uk B",,Large,,222893290,5106302659,,Planning Reform,"2,550.28",
"Housing, Communities & Local Government",DLUHC,11/10/2023,IT - Service Contracts,Safer and Greener Buildings,"Amazon Web Services Emea Sarl, Uk B",,Large,,222893290,5106302655,,Building Systems & Net Zero,"1,067.40",
"Housing, Communities & Local Government",DLUHC,11/10/2023,IT - Service Contracts,Safer and Greener Buildings,"Amazon Web Services Emea Sarl, Uk B",,Large,,222893290,5106302659,,Building Systems & Net Zero,"8,772.42",
"Housing, Communities & Local Government",DLUHC,11/10/2023,IT SUPPORT,CFO and Corporate,Zaizi Limited,,Micro,,,5106302550,,Digital,"13,922.55",
"Housing, Communities & Local Government",DLUHC,11/10/2023,IT SUPPORT,Resettlements,Zaizi Limited,,Micro,,,5106302654,,Resettlements,425.00,
"Housing, Communities & Local Government",DLUHC,11/10/2023,IT SUPPORT,Resettlements,Zaizi Limited,,Micro,,,5106302654,,Resettlements,"14,950.00",
"Housing, Communities & Local Government",DLUHC,11/10/2023,Legal Fees,Local Govnmnt Resilience and Communities,Blackstone Chambers,,Large,,,5106302634,,Elections Directorate,"2,137.50",
"Housing, Communities & Local Government",DLUHC,11/10/2023,Legal Fees,Local Govnmnt Resilience and Communities,Devereux Chambers Services Ltd,,Medium,,,5106302617,Legal,Local Government Finance,"1,776.00",
"Housing, Communities & Local Government",DLUHC,11/10/2023,Legal Fees,Stronger Places,GOVERNMENT LEGAL DEPARTMENT,,Public Bodies,,215580680,5106302637,Legal,CLGU Policy,"1,039.30",
"Housing, Communities & Local Government",DLUHC,11/10/2023,Legal Fees,Stronger Places,GOVERNMENT LEGAL DEPARTMENT,,Public Bodies,,215580680,5106302639,Legal,CLGU Policy,"1,930.76",
"Housing, Communities & Local Government",DLUHC,11/10/2023,Legal Fees,Stronger Places,GOVERNMENT LEGAL DEPARTMENT,,Public Bodies,,215580680,5106302640,Legal,CLGU Policy,"1,026.59",
"Housing, Communities & Local Government",DLUHC,11/10/2023,Provision Utilisation Other,Safer and Greener Buildings,Deconstruct Uk Ltd,,Large,,220938653,5106302652,,Intervention Delivery,"249,392.78",
"Housing, Communities & Local Government",DLUHC,11/10/2023,Publications,Local Govnmnt Resilience and Communities,PRESS DATA LTD,,Small,,,5106302632,,Strategy and Private Offices,"2,350.90",
"Housing, Communities & Local Government",DLUHC,11/10/2023,Publications,Local Govnmnt Resilience and Communities,PRESS DATA LTD,,Small,,,5106302636,,Strategy and Private Offices,"2,671.58",
"Housing, Communities & Local Government",DLUHC,11/10/2023,Software Licences,CFO and Corporate,"Amazon Web Services Emea Sarl, Uk B",,Large,,222893290,5106302202,,Finance,-444.86,
"Housing, Communities & Local Government",DLUHC,11/10/2023,Software Licences,CFO and Corporate,"Amazon Web Services Emea Sarl, Uk B",,Large,,222893290,5106302203,,Finance,"-4,003.70",
"Housing, Communities & Local Government",DLUHC,11/10/2023,Software Licences,CFO and Corporate,PHOENIX SOFTWARE LTD,,Large,,,5106302641,,People Capability & Change C/O,510.05,
"Housing, Communities & Local Government",DLUHC,11/10/2023,Software Licences,CFO and Corporate,PHOENIX SOFTWARE LTD,,Large,,,5106302646,,People Capability & Change C/O,576.00,
"Housing, Communities & Local Government",DLUHC,11/10/2023,Training,CFO and Corporate,CABINET OFFICE HR SHARED SERVICES,,Large,,232159186,5106302626,,People Capability & Change C/O,"24,000.00",
"Housing, Communities & Local Government",DLUHC,11/10/2023,Training,CFO and Corporate,KPMG LLP (CSL),,Large,,,5106302643,,People Capability & Change C/O,"1,920.00",
"Housing, Communities & Local Government",DLUHC,11/10/2023,Training,CFO and Corporate,KPMG LLP (CSL),,Large,,,5106302645,,People Capability & Change C/O,"1,030.54",
"Housing, Communities & Local Government",DLUHC,11/10/2023,Training,Local Govnmnt Resilience and Communities,ERNST & YOUNG LLP,,Large,,221768935,5106302648,,Elections Directorate,"15,329.25",
"Housing, Communities & Local Government",DLUHC,11/10/2023,Training,Regeneration,"Pendo.Io, Inc.",,Large,,,5106302660,,Planning Reform,"9,848.33",
"Housing, Communities & Local Government",DLUHC,11/10/2023,Training,Regeneration,ROYAL TOWN PLANNING INSTITUTE,,,,227231818,5106302669,,Chief Planner,270.00,
"Housing, Communities & Local Government",DLUHC,11/10/2023,Web Services,CFO and Corporate,FOREPOINT LIMITED,,Micro,,,5106302668,,Communications,432.00,
"Housing, Communities & Local Government",DLUHC,12/10/2023,Advertising,CFO and Corporate,23 RED LIMITED,,Small,,,5106302540,,Communications,"191,157.85",
"Housing, Communities & Local Government",DLUHC,12/10/2023,Advertising,CFO and Corporate,23 RED LIMITED,,Small,,,5106302673,,Communications,"47,361.94",
"Housing, Communities & Local Government",DLUHC,12/10/2023,Advertising,CFO and Corporate,23 RED LIMITED,,Small,,,5106302674,,Communications,"79,119.36",
"Housing, Communities & Local Government",DLUHC,12/10/2023,Air Travel,Local Govnmnt Resilience and Communities,CORPORATE TRAVEL MANAGEMENT(NORTH)L,,Small,,213089972,2100330101,Air,Strategy and Private Offices,470.32,
"Housing, Communities & Local Government",DLUHC,12/10/2023,Capital Grants to Private Sect Non Profit,Levelling Up,Portobello Central SCIO,Yes,Small,,,2100330077,,Community Investment and Funding Service,"40,000.00",Yes
"Housing, Communities & Local Government",DLUHC,12/10/2023,Capital Grants to Private Sect Non Profit,Levelling Up,Wixford Village Hall,,,,,2100330076,,Community Investment and Funding Service,"179,862.00",Yes
"Housing, Communities & Local Government",DLUHC,12/10/2023,Capital Grants to Private Sect Non Profit,Levelling Up,Y Centre Ltd,Yes,,,221081602,2100330075,,Community Investment and Funding Service,"250,000.00",Yes
"Housing, Communities & Local Government",DLUHC,12/10/2023,Current Grants to Non Profit Bodies,Levelling Up,Portobello Central SCIO,Yes,Small,,,2100330078,,Community Investment and Funding Service,"8,000.00",Yes
"Housing, Communities & Local Government",DLUHC,12/10/2023,Current Grants to Non Profit Bodies,Local Govnmnt Resilience and Communities,SNOWFLAKE TRUST LTD,,,,,3700238254,,Homelessness & Rough Sleeping,"-76,600.00",Yes
"Housing, Communities & Local Government",DLUHC,12/10/2023,ERDF Work in Progress � Capital,Regeneration,BIRMINGHAM CITY COUNCIL,,,,,7700014538,,Community Investment & Funding Services,"286,089.07",Yes
"Housing, Communities & Local Government",DLUHC,12/10/2023,ERDF Work in Progress � Capital,Regeneration,Pure Energy Professionals Ltd,,,,,7700014539,,Community Investment & Funding Services,"101,169.04",Yes
"Housing, Communities & Local Government",DLUHC,12/10/2023,ERDF Work in Progress � Resource,Regeneration,BIRMINGHAM CITY COUNCIL,,,,,7700014538,,Community Investment & Funding Services,"9,110.73",Yes
"Housing, Communities & Local Government",DLUHC,12/10/2023,ERDF Work in Progress � Resource,Regeneration,GREATER LONDON AUTHORITY,,Large,,,7700014536,,Community Investment & Funding Services,"103,388.85",Yes
"Housing, Communities & Local Government",DLUHC,12/10/2023,ERDF Work in Progress � Resource,Regeneration,GREATER LONDON AUTHORITY,,Large,,,7700014537,,Community Investment & Funding Services,"106,009.84",Yes
"Housing, Communities & Local Government",DLUHC,12/10/2023,ERDF Work in Progress � Resource,Regeneration,HULL CULTURE AND LEISURE LTD,,,,,7700014541,,Community Investment & Funding Services,"186,547.90",Yes
"Housing, Communities & Local Government",DLUHC,12/10/2023,ERDF Work in Progress � Resource,Regeneration,OXFORD INNOVATION SERVICES LTD,,Medium,,,7700014535,,Community Investment & Funding Services,"217,816.12",Yes
"Housing, Communities & Local Government",DLUHC,12/10/2023,ERDF Work in Progress � Resource,Regeneration,PRINCE'S TRUST,,Large,,,7700014540,,Community Investment & Funding Services,"243,256.33",Yes
"Housing, Communities & Local Government",DLUHC,12/10/2023,ERDF Work in Progress � Resource,Regeneration,Pure Energy Professionals Ltd,,,,,7700014539,,Community Investment & Funding Services,"55,675.94",Yes
"Housing, Communities & Local Government",DLUHC,12/10/2023,"IT - PC, Network & Hardware",CFO and Corporate,DCLG GOVERNMENT PROCUREMENT CARD,,,,,1000005587,ICT Hardware,Digital,"3,223.82",
"Housing, Communities & Local Government",DLUHC,12/10/2023,IT - Service Contracts,CFO and Corporate,RISUAL LIMITED,,Medium,,,5106302720,,Analysis and Data,"48,000.00",
"Housing, Communities & Local Government",DLUHC,12/10/2023,IT - Service Contracts,Local Govnmnt Resilience and Communities,Zaizi Limited,,Micro,,,5106302671,,Local Government Policy,"13,467.05",
"Housing, Communities & Local Government",DLUHC,12/10/2023,IT - Service Contracts,Regeneration,Version 1 Solutions Ltd,,Large,,536340334,5106302715,,Planning Reform,"199,044.00",
"Housing, Communities & Local Government",DLUHC,12/10/2023,Legal Fees,Regeneration,MILLS & REEVE LLP,,Large,,,5106302702,,"Places,Infrastructure & Housing Delivery","23,712.00",
"Housing, Communities & Local Government",DLUHC,12/10/2023,Legal Fees,Regeneration,MILLS & REEVE LLP,,Large,,,5106302707,,"Places,Infrastructure & Housing Delivery","6,169.20",
"Housing, Communities & Local Government",DLUHC,12/10/2023,Legal Fees,Regeneration,MILLS & REEVE LLP,,Large,,,5106302709,,"Places,Infrastructure & Housing Delivery","2,301.96",
"Housing, Communities & Local Government",DLUHC,12/10/2023,Management Consultancy,Safer and Greener Buildings,MOORHOUSE CONSULTING LTD,,Large,,737971072,5106302698,,Intervention Delivery,"98,856.00",
"Housing, Communities & Local Government",DLUHC,12/10/2023,Professional services,CFO and Corporate,BOUYGUES E&S FM UK LTD (CATERING),,Large,,,5106302563,,Property Asset Management,"3,494.40",
"Housing, Communities & Local Government",DLUHC,12/10/2023,Professional services,CFO and Corporate,DCLG GOVERNMENT PROCUREMENT CARD,,,,,1000005587,Environmental Services,Digital,258.23,
"Housing, Communities & Local Government",DLUHC,12/10/2023,Professional services,Regeneration,NORTHUMBERLAND CC,,Large,,228141644,5106302700,,Chief Planner,"3,360.00",
"Housing, Communities & Local Government",DLUHC,12/10/2023,Professional services,Safer and Greener Buildings,FAITHFUL&GOULD LTD,,Large,,,5106302692,,Intervention Delivery,"71,040.14",
"Housing, Communities & Local Government",DLUHC,12/10/2023,Rates,CFO and Corporate,GOVERNMENT PROPERTY AGENCY,,Medium,,,5106302706,,Property Asset Management,"4,737.33",
"Housing, Communities & Local Government",DLUHC,12/10/2023,Rates,CFO and Corporate,GOVERNMENT PROPERTY AGENCY,,Medium,,,5106302714,,PAMU Regional Control Centres,"-14,080.00",
"Housing, Communities & Local Government",DLUHC,12/10/2023,Rates,CFO and Corporate,GOVERNMENT PROPERTY AGENCY,,Medium,,,5106302719,,PAMU Regional Control Centres,"-14,080.00",
"Housing, Communities & Local Government",DLUHC,12/10/2023,Rent,CFO and Corporate,GOVERNMENT PROPERTY AGENCY,,Medium,,,5106302711,,Property Asset Management,"38,332.80",
"Housing, Communities & Local Government",DLUHC,12/10/2023,Rent,CFO and Corporate,GOVERNMENT PROPERTY AGENCY,,Medium,,,5106302713,,Property Asset Management,"3,464.13",
"Housing, Communities & Local Government",DLUHC,12/10/2023,Security,CFO and Corporate,GOVERNMENT PROPERTY AGENCY,,Medium,,,5106302711,,Property Asset Management,"2,098.75",
"Housing, Communities & Local Government",DLUHC,12/10/2023,Software Licences,CFO and Corporate,Juicy Media Ltd,,Small,,,5106302718,,Analysis and Data,800.00,
"Housing, Communities & Local Government",DLUHC,12/10/2023,Steady State Service Provision,Regeneration,GROUNDWORK UK,Yes,,,739193758,5106302672,,Chief Planner,"6,522.00",
"Housing, Communities & Local Government",DLUHC,12/10/2023,Training,CFO and Corporate,LSR TRAINING AND DEVELOPMENT LTD,,Micro,,,5106302710,,Analysis and Data,"1,680.00",
"Housing, Communities & Local Government",DLUHC,12/10/2023,Training,Safer and Greener Buildings,KPMG LLP (CSL),,Large,,,5106302685,,Intervention Delivery,"1,571.00",
"Housing, Communities & Local Government",DLUHC,13/10/2023,Agency Staff,CFO and Corporate,ALEXANDER MANN SOLUTIONS LTD,,Large,,,5106302781,,Digital,"4,157.52",
"Housing, Communities & Local Government",DLUHC,13/10/2023,Agency Staff,CFO and Corporate,ALEXANDER MANN SOLUTIONS LTD,,Large,,,5106302783,,Digital,"4,146.48",
"Housing, Communities & Local Government",DLUHC,13/10/2023,Agency Staff,CFO and Corporate,ALEXANDER MANN SOLUTIONS LTD,,Large,,,5106302786,,Digital,"3,465.30",
"Housing, Communities & Local Government",DLUHC,13/10/2023,Agency Staff,CFO and Corporate,ALEXANDER MANN SOLUTIONS LTD,,Large,,,5106302788,,Digital,"4,465.50",
"Housing, Communities & Local Government",DLUHC,13/10/2023,Agency Staff,CFO and Corporate,ALEXANDER MANN SOLUTIONS LTD,,Large,,,5106302789,,Digital,"2,904.23",
"Housing, Communities & Local Government",DLUHC,13/10/2023,Agency Staff,CFO and Corporate,ALEXANDER MANN SOLUTIONS LTD,,Large,,,5106302790,,Digital,"3,465.30",
"Housing, Communities & Local Government",DLUHC,13/10/2023,Agency Staff,CFO and Corporate,ALEXANDER MANN SOLUTIONS LTD,,Large,,,5106302791,,Digital,"4,003.56",
"Housing, Communities & Local Government",DLUHC,13/10/2023,Agency Staff,CFO and Corporate,ALEXANDER MANN SOLUTIONS LTD,,Large,,,5106302792,,Digital,"4,431.36",
"Housing, Communities & Local Government",DLUHC,13/10/2023,Agency Staff,CFO and Corporate,ALEXANDER MANN SOLUTIONS LTD,,Large,,,5106302801,,Commercial,"4,146.78",
"Housing, Communities & Local Government",DLUHC,13/10/2023,Agency Staff,CFO and Corporate,ALEXANDER MANN SOLUTIONS LTD,,Large,,,5106302803,,Digital,"4,157.52",
"Housing, Communities & Local Government",DLUHC,13/10/2023,Agency Staff,CFO and Corporate,ALEXANDER MANN SOLUTIONS LTD,,Large,,,5106302806,,Digital,"4,192.92",
"Housing, Communities & Local Government",DLUHC,13/10/2023,Agency Staff,CFO and Corporate,ALEXANDER MANN SOLUTIONS LTD,,Large,,,5106302811,,Digital,"3,383.75",
"Housing, Communities & Local Government",DLUHC,13/10/2023,Agency Staff,CFO and Corporate,ALEXANDER MANN SOLUTIONS LTD,,Large,,,5106302812,,Digital,"3,980.88",
"Housing, Communities & Local Government",DLUHC,13/10/2023,Agency Staff,CFO and Corporate,ALEXANDER MANN SOLUTIONS LTD,,Large,,,5106302813,,Digital,"4,003.56",
"Housing, Communities & Local Government",DLUHC,13/10/2023,Agency Staff,CFO and Corporate,ALEXANDER MANN SOLUTIONS LTD,,Large,,,5106302814,Contingent Labour,Digital,"4,311.48",
"Housing, Communities & Local Government",DLUHC,13/10/2023,Agency Staff,CFO and Corporate,ALEXANDER MANN SOLUTIONS LTD,,Large,,,5106302819,,Digital,"3,465.30",
"Housing, Communities & Local Government",DLUHC,13/10/2023,Agency Staff,CFO and Corporate,ALEXANDER MANN SOLUTIONS LTD,,Large,,,5106302823,,Digital,"4,619.52",
"Housing, Communities & Local Government",DLUHC,13/10/2023,Agency Staff,CFO and Corporate,ALEXANDER MANN SOLUTIONS LTD,,Large,,,5106302826,,Digital,"3,980.88",
"Housing, Communities & Local Government",DLUHC,13/10/2023,Agency Staff,CFO and Corporate,ALEXANDER MANN SOLUTIONS LTD,,Large,,,5106302827,,Digital,"4,465.50",
"Housing, Communities & Local Government",DLUHC,13/10/2023,Agency Staff,CFO and Corporate,ALEXANDER MANN SOLUTIONS LTD,,Large,,,5106302829,,Digital,"3,980.88",
"Housing, Communities & Local Government",DLUHC,13/10/2023,Agency Staff,Levelling Up,ALEXANDER MANN SOLUTIONS LTD,,Large,,,5106302784,,Community Investment and Funding Service,803.64,
"Housing, Communities & Local Government",DLUHC,13/10/2023,Agency Staff,Levelling Up,ALEXANDER MANN SOLUTIONS LTD,,Large,,,5106302794,,Community Investment and Funding Service,"5,769.07",
"Housing, Communities & Local Government",DLUHC,13/10/2023,Agency Staff,Levelling Up,ALEXANDER MANN SOLUTIONS LTD,,Large,,,5106302799,,Community Investment and Funding Service,"1,904.78",
"Housing, Communities & Local Government",DLUHC,13/10/2023,Agency Staff,Levelling Up,ALEXANDER MANN SOLUTIONS LTD,,Large,,,5106302800,,Community Investment and Funding Service,"1,029.02",
"Housing, Communities & Local Government",DLUHC,13/10/2023,Agency Staff,Levelling Up,ALEXANDER MANN SOLUTIONS LTD,,Large,,,5106302807,,Community Investment and Funding Service,803.64,
"Housing, Communities & Local Government",DLUHC,13/10/2023,Agency Staff,Levelling Up,ALEXANDER MANN SOLUTIONS LTD,,Large,,,5106302809,,Community Investment and Funding Service,896.93,
"Housing, Communities & Local Government",DLUHC,13/10/2023,Agency Staff,Levelling Up,ALEXANDER MANN SOLUTIONS LTD,,Large,,,5106302815,,Community Investment and Funding Service,760.20,
"Housing, Communities & Local Government",DLUHC,13/10/2023,Agency Staff,Levelling Up,ALEXANDER MANN SOLUTIONS LTD,,Large,,,5106302821,,Community Investment and Funding Service,980.10,
"Housing, Communities & Local Government",DLUHC,13/10/2023,Agency Staff,Local Govnmnt Resilience and Communities,ALEXANDER MANN SOLUTIONS LTD,,Large,,,5106302797,,Elections Directorate,"3,780.36",
"Housing, Communities & Local Government",DLUHC,13/10/2023,Agency Staff,Local Govnmnt Resilience and Communities,ALEXANDER MANN SOLUTIONS LTD,,Large,,,5106302816,,Holocaust Memorial UKHMF,471.19,
"Housing, Communities & Local Government",DLUHC,13/10/2023,Agency Staff,Local Govnmnt Resilience and Communities,ALEXANDER MANN SOLUTIONS LTD,,Large,,,5106302818,,Elections Directorate,"4,003.56",
"Housing, Communities & Local Government",DLUHC,13/10/2023,Agency Staff,Local Govnmnt Resilience and Communities,ALEXANDER MANN SOLUTIONS LTD,,Large,,,5106302820,,Holocaust Memorial UKHMF,"3,141.25",
"Housing, Communities & Local Government",DLUHC,13/10/2023,Agency Staff,Local Govnmnt Resilience and Communities,ALEXANDER MANN SOLUTIONS LTD,,Large,,,5106302825,,Covid 19 Inquiry,"3,465.30",
"Housing, Communities & Local Government",DLUHC,13/10/2023,Agency Staff,Local Govnmnt Resilience and Communities,ALEXANDER MANN SOLUTIONS LTD,,Large,,,5106302828,,Covid 19 Inquiry,"3,465.30",
"Housing, Communities & Local Government",DLUHC,13/10/2023,Agency Staff,Safer and Greener Buildings,ALEXANDER MANN SOLUTIONS LTD,,Large,,,5106302793,,Intervention Delivery,"3,780.36",
"Housing, Communities & Local Government",DLUHC,13/10/2023,Agency Staff,Safer and Greener Buildings,ALEXANDER MANN SOLUTIONS LTD,,Large,,,5106302802,,Intervention Delivery,"3,150.30",
"Housing, Communities & Local Government",DLUHC,13/10/2023,Agency Staff,Safer and Greener Buildings,ALEXANDER MANN SOLUTIONS LTD,,Large,,,5106302805,,Intervention Delivery,"2,309.76",
"Housing, Communities & Local Government",DLUHC,13/10/2023,Agency Staff,Safer and Greener Buildings,ALEXANDER MANN SOLUTIONS LTD,,Large,,,5106302822,,Intervention Delivery,"4,942.92",
"Housing, Communities & Local Government",DLUHC,13/10/2023,Agency Staff,Safer and Greener Buildings,ALEXANDER MANN SOLUTIONS LTD,,Large,,,5106302824,,Intervention Delivery,"3,695.58",
"Housing, Communities & Local Government",DLUHC,13/10/2023,Cap Grants to Local Authorities (DEL),Levelling Up,West Dunbartonshire Council,,,,,2300003561,,Community Investment and Funding Service,"-74,834.53",Yes
"Housing, Communities & Local Government",DLUHC,13/10/2023,Cap Grants to Local Authorities (DEL),Local Govnmnt Resilience and Communities,BARNSLEY MBC,,Public Bodies,,211178595,2100330110,,Integration and Communities,"5,000.00",Yes
"Housing, Communities & Local Government",DLUHC,13/10/2023,Cap Grants to Local Authorities (DEL),Local Govnmnt Resilience and Communities,BASILDON DC,,,,211023643,2100330111,,Integration and Communities,"5,000.00",Yes
"Housing, Communities & Local Government",DLUHC,13/10/2023,Cap Grants to Local Authorities (DEL),Local Govnmnt Resilience and Communities,BLACKBURN WITH DARWEN BC,,Large,,212925606,2100330112,,Integration and Communities,"5,000.00",Yes
"Housing, Communities & Local Government",DLUHC,13/10/2023,Cap Grants to Local Authorities (DEL),Local Govnmnt Resilience and Communities,BRADFORD METROPOLITAN DC,,Public Bodies,,218122162,2100330114,,Integration and Communities,"5,000.00",Yes
"Housing, Communities & Local Government",DLUHC,13/10/2023,Cap Grants to Local Authorities (DEL),Local Govnmnt Resilience and Communities,CALDERDALE MBC,,,,,2100330155,,Integration and Communities,"2,500.00",Yes
"Housing, Communities & Local Government",DLUHC,13/10/2023,Cap Grants to Local Authorities (DEL),Local Govnmnt Resilience and Communities,CASTLE POINT BC,,,,228217931,2100330117,,Integration and Communities,"5,000.00",Yes
"Housing, Communities & Local Government",DLUHC,13/10/2023,Cap Grants to Local Authorities (DEL),Local Govnmnt Resilience and Communities,Cumberland Council,,,,,2100330118,,Integration and Communities,"5,000.00",Yes
"Housing, Communities & Local Government",DLUHC,13/10/2023,Cap Grants to Local Authorities (DEL),Local Govnmnt Resilience and Communities,DERBY CITY COUNCIL,,Large,,229641378,2100330119,,Integration and Communities,"5,000.00",Yes
"Housing, Communities & Local Government",DLUHC,13/10/2023,Cap Grants to Local Authorities (DEL),Local Govnmnt Resilience and Communities,DONCASTER MBC,,Public Bodies,,368170627,2100330120,,Integration and Communities,"5,000.00",Yes
"Housing, Communities & Local Government",DLUHC,13/10/2023,Cap Grants to Local Authorities (DEL),Local Govnmnt Resilience and Communities,DUDLEY METROPOLITAN BC,,Public Bodies,,,2100330121,,Integration and Communities,"5,000.00",Yes
"Housing, Communities & Local Government",DLUHC,13/10/2023,Cap Grants to Local Authorities (DEL),Local Govnmnt Resilience and Communities,EAST STAFFORDSHIRE BC,,Medium,,226778033,2100330157,,Integration and Communities,"2,500.00",Yes
"Housing, Communities & Local Government",DLUHC,13/10/2023,Cap Grants to Local Authorities (DEL),Local Govnmnt Resilience and Communities,FENLAND DC,,Large,,227476348,2100330123,,Integration and Communities,"5,000.00",Yes
"Housing, Communities & Local Government",DLUHC,13/10/2023,Cap Grants to Local Authorities (DEL),Local Govnmnt Resilience and Communities,GATESHEAD MBC,,Public Bodies,,216116041,2100330124,,Integration and Communities,"5,000.00",Yes
"Housing, Communities & Local Government",DLUHC,13/10/2023,Cap Grants to Local Authorities (DEL),Local Govnmnt Resilience and Communities,GREAT YARMOUTH BC,,,,292697372,2100330125,,Integration and Communities,"5,000.00",Yes
"Housing, Communities & Local Government",DLUHC,13/10/2023,Cap Grants to Local Authorities (DEL),Local Govnmnt Resilience and Communities,HARTLEPOOL BOROUGH COUNCIL,,Large,,424291797,2100330127,,Integration and Communities,"5,000.00",Yes
"Housing, Communities & Local Government",DLUHC,13/10/2023,Cap Grants to Local Authorities (DEL),Local Govnmnt Resilience and Communities,HASTINGS BOROUGH COUNCIL,,Public Bodies,,,2100330128,,Integration and Communities,"5,000.00",Yes
"Housing, Communities & Local Government",DLUHC,13/10/2023,Cap Grants to Local Authorities (DEL),Local Govnmnt Resilience and Communities,HAVANT BC,,,,211047543,2100330129,,Integration and Communities,"5,000.00",Yes
"Housing, Communities & Local Government",DLUHC,13/10/2023,Cap Grants to Local Authorities (DEL),Local Govnmnt Resilience and Communities,HYNDBURN BC,,Large,,232664946,2100330130,,Integration and Communities,"5,000.00",Yes
"Housing, Communities & Local Government",DLUHC,13/10/2023,Cap Grants to Local Authorities (DEL),Local Govnmnt Resilience and Communities,IPSWICH BC,,,,236431615,2100330131,,Integration and Communities,"5,000.00",Yes
"Housing, Communities & Local Government",DLUHC,13/10/2023,Cap Grants to Local Authorities (DEL),Local Govnmnt Resilience and Communities,KINGSTON UPON HULL CITY COUNCIL,,Large,,217553044,2100330132,,Integration and Communities,"5,000.00",Yes
"Housing, Communities & Local Government",DLUHC,13/10/2023,Cap Grants to Local Authorities (DEL),Local Govnmnt Resilience and Communities,KNOWSLEY MBC,,,,,2100330133,,Integration and Communities,"5,000.00",Yes
"Housing, Communities & Local Government",DLUHC,13/10/2023,Cap Grants to Local Authorities (DEL),Local Govnmnt Resilience and Communities,LB ISLINGTON,,Large,,225716729,2100330158,,Integration and Communities,"2,500.00",Yes
"Housing, Communities & Local Government",DLUHC,13/10/2023,Cap Grants to Local Authorities (DEL),Local Govnmnt Resilience and Communities,LEICESTER CITY COUNCIL,,Public Bodies,,228219960,2100330160,,Integration and Communities,"2,500.00",Yes
"Housing, Communities & Local Government",DLUHC,13/10/2023,Cap Grants to Local Authorities (DEL),Local Govnmnt Resilience and Communities,LONDON BOROUGH HARINGEY,,,,217471767,2100330126,,Integration and Communities,"5,000.00",Yes
"Housing, Communities & Local Government",DLUHC,13/10/2023,Cap Grants to Local Authorities (DEL),Local Govnmnt Resilience and Communities,LONDON BOROUGH OF BRENT,,,,225383090,2100330115,,Integration and Communities,"5,000.00",Yes
"Housing, Communities & Local Government",DLUHC,13/10/2023,Cap Grants to Local Authorities (DEL),Local Govnmnt Resilience and Communities,LONDON BOROUGH OF CAMDEN,,Public Bodies,,211651836,2100330116,,Integration and Communities,"5,000.00",Yes
"Housing, Communities & Local Government",DLUHC,13/10/2023,Cap Grants to Local Authorities (DEL),Local Govnmnt Resilience and Communities,LONDON BOROUGH OF CROYDON,,,,,2100330156,,Integration and Communities,"2,500.00",Yes
"Housing, Communities & Local Government",DLUHC,13/10/2023,Cap Grants to Local Authorities (DEL),Local Govnmnt Resilience and Communities,LONDON BOROUGH OF ENFIELD,,,,227475613,2100330122,,Integration and Communities,"5,000.00",Yes
"Housing, Communities & Local Government",DLUHC,13/10/2023,Cap Grants to Local Authorities (DEL),Local Govnmnt Resilience and Communities,LONDON BOROUGH OF LAMBETH,,Large,,228216479,2100330134,,Integration and Communities,"5,000.00",Yes
"Housing, Communities & Local Government",DLUHC,13/10/2023,Cap Grants to Local Authorities (DEL),Local Govnmnt Resilience and Communities,MEDWAY COUNCIL,,,,,2100330135,,Integration and Communities,"5,000.00",Yes
"Housing, Communities & Local Government",DLUHC,13/10/2023,Cap Grants to Local Authorities (DEL),Local Govnmnt Resilience and Communities,MIDDLESBROUGH BC,,Public Bodies,,,2100330161,,Integration and Communities,"2,500.00",Yes
"Housing, Communities & Local Government",DLUHC,13/10/2023,Cap Grants to Local Authorities (DEL),Local Govnmnt Resilience and Communities,NORTH EAST LINCOLNSHIRE COUNCIL,,Public Bodies,,,2100330136,,Integration and Communities,"5,000.00",Yes
"Housing, Communities & Local Government",DLUHC,13/10/2023,Cap Grants to Local Authorities (DEL),Local Govnmnt Resilience and Communities,NOTTINGHAM CC,,Large,,238949358,2100330137,,Integration and Communities,"5,000.00",Yes
"Housing, Communities & Local Government",DLUHC,13/10/2023,Cap Grants to Local Authorities (DEL),Local Govnmnt Resilience and Communities,OLDHAM MBC,,,,213015574,2100330138,,Integration and Communities,"5,000.00",Yes
"Housing, Communities & Local Government",DLUHC,13/10/2023,Cap Grants to Local Authorities (DEL),Local Govnmnt Resilience and Communities,PENDLE BC,,,,,2100330141,,Integration and Communities,"5,000.00",Yes
"Housing, Communities & Local Government",DLUHC,13/10/2023,Cap Grants to Local Authorities (DEL),Local Govnmnt Resilience and Communities,PETERBOROUGH CITY COUNCIL(PE1 1HQ),,,,,2100330142,,Integration and Communities,"5,000.00",Yes
"Housing, Communities & Local Government",DLUHC,13/10/2023,Cap Grants to Local Authorities (DEL),Local Govnmnt Resilience and Communities,PORTSMOUTH CITY COUNCIL,,Public Bodies,,211183082,2100330162,,Integration and Communities,"2,500.00",Yes
"Housing, Communities & Local Government",DLUHC,13/10/2023,Cap Grants to Local Authorities (DEL),Local Govnmnt Resilience and Communities,READING BC,,Public Bodies,,210220399,2100330143,,Integration and Communities,"5,000.00",Yes
"Housing, Communities & Local Government",DLUHC,13/10/2023,Cap Grants to Local Authorities (DEL),Local Govnmnt Resilience and Communities,REDCAR & CLEVELAND BC,,,,215175196,2100330144,,Integration and Communities,"5,000.00",Yes
"Housing, Communities & Local Government",DLUHC,13/10/2023,Cap Grants to Local Authorities (DEL),Local Govnmnt Resilience and Communities,REDDITCH BC,,Public Bodies,,231421491,2100330145,,Integration and Communities,"5,000.00",Yes
"Housing, Communities & Local Government",DLUHC,13/10/2023,Cap Grants to Local Authorities (DEL),Local Govnmnt Resilience and Communities,ROTHER DC,,Small,,,2100330146,,Integration and Communities,"5,000.00",Yes
"Housing, Communities & Local Government",DLUHC,13/10/2023,Cap Grants to Local Authorities (DEL),Local Govnmnt Resilience and Communities,ROYAL BOROUGH  KENSINGTON & CHELSEA,,Large,,211124466,2100330159,,Integration and Communities,"2,500.00",Yes
"Housing, Communities & Local Government",DLUHC,13/10/2023,Cap Grants to Local Authorities (DEL),Local Govnmnt Resilience and Communities,SALFORD CITY COUNCIL,,Public Bodies,,210765504,2100330147,,Integration and Communities,"5,000.00",Yes
"Housing, Communities & Local Government",DLUHC,13/10/2023,Cap Grants to Local Authorities (DEL),Local Govnmnt Resilience and Communities,SANDWELL MBC,,,,,2100330148,,Integration and Communities,"5,000.00",Yes
"Housing, Communities & Local Government",DLUHC,13/10/2023,Cap Grants to Local Authorities (DEL),Local Govnmnt Resilience and Communities,SHEFFIELD CITY COUNCIL,,Large,,228153011,2100330163,,Integration and Communities,"2,500.00",Yes
"Housing, Communities & Local Government",DLUHC,13/10/2023,Cap Grants to Local Authorities (DEL),Local Govnmnt Resilience and Communities,SOUTH TYNESIDE MBC,,Large,,210803024,2100330149,,Integration and Communities,"5,000.00",Yes
"Housing, Communities & Local Government",DLUHC,13/10/2023,Cap Grants to Local Authorities (DEL),Local Govnmnt Resilience and Communities,SOUTHAMPTON CITY COUNCIL,,Public Bodies,,216927475,2100330164,,Integration and Communities,"2,500.00",Yes
"Housing, Communities & Local Government",DLUHC,13/10/2023,Cap Grants to Local Authorities (DEL),Local Govnmnt Resilience and Communities,SWALE BC,,Large,,239842768,2100330150,,Integration and Communities,"5,000.00",Yes
"Housing, Communities & Local Government",DLUHC,13/10/2023,Cap Grants to Local Authorities (DEL),Local Govnmnt Resilience and Communities,WALSALL MBC,,Public Bodies,,212313210,2100330151,,Integration and Communities,"5,000.00",Yes
"Housing, Communities & Local Government",DLUHC,13/10/2023,Cap Grants to Local Authorities (DEL),Local Govnmnt Resilience and Communities,WEST LINDSEY DC,,Public Bodies,,227471026,2100330152,,Integration and Communities,"5,000.00",Yes
"Housing, Communities & Local Government",DLUHC,13/10/2023,Cap Grants to Local Authorities (DEL),Local Govnmnt Resilience and Communities,Westmorland & Furness Council,,,,,2100330153,,Integration and Communities,"5,000.00",Yes
"Housing, Communities & Local Government",DLUHC,13/10/2023,Cap Grants to Local Authorities (DEL),Local Govnmnt Resilience and Communities,WIGAN MBC,,Large,,548815976,2100330154,,Integration and Communities,"5,000.00",Yes
"Housing, Communities & Local Government",DLUHC,13/10/2023,Cap Grants to Local Authorities (DEL),Local Govnmnt Resilience and Communities,WIRRAL MBC,,Public Bodies,,,2100330165,,Integration and Communities,"2,500.00",Yes
"Housing, Communities & Local Government",DLUHC,13/10/2023,Cap Grants to Local Authorities (DEL),Regeneration,DERBY CITY CNCL,,,,229641378,3700241888,,"Places,Infrastructure & Housing Delivery","570,686.00",Yes
"Housing, Communities & Local Government",DLUHC,13/10/2023,Cap Grants to Local Authorities (DEL),Regeneration,SHEFFIELD CITY CNCL,,,,,3700241887,,"Places,Infrastructure & Housing Delivery","753,944.00",Yes
"Housing, Communities & Local Government",DLUHC,13/10/2023,Capital Grants to Private Sect Non Profit,Levelling Up,Hatchers Solicitors LLP,,,,,2100330104,,Community Investment and Funding Service,"200,000.00",Yes
"Housing, Communities & Local Government",DLUHC,13/10/2023,Capital Grants to Private Sect Non Profit,Levelling Up,Laxdale Hall Community Association,,,,,2100330107,,Community Investment and Funding Service,"170,000.00",Yes
"Housing, Communities & Local Government",DLUHC,13/10/2023,Consulting,Local Govnmnt Resilience and Communities,ALEXANDER MANN SOLUTIONS LTD,,Large,,,5106302808,,Holocaust Memorial UKHMF,"3,780.36",
"Housing, Communities & Local Government",DLUHC,13/10/2023,Courier Services,CFO and Corporate,POSTURITE LTD,,Medium,,216832621,5106302756,,People Capability & Change C/O,83.88,
"Housing, Communities & Local Government",DLUHC,13/10/2023,Courier Services,CFO and Corporate,POSTURITE LTD,,Medium,,216832621,5106302817,,People Capability & Change C/O,71.94,
"Housing, Communities & Local Government",DLUHC,13/10/2023,Current (non AEF) Grants to Local Authorities,Local Govnmnt Resilience and Communities,LB HILLINGDON,,,,211198585,2100330003,,Local Government Finance,"47,915.00",Yes
"Housing, Communities & Local Government",DLUHC,13/10/2023,Current (non AEF) Grants to Local Authorities,Local Govnmnt Resilience and Communities,SOLIHULL MBC,,,,,2100330002,,Local Government Finance,"899,131.00",Yes
"Housing, Communities & Local Government",DLUHC,13/10/2023,Current (non AEF) Grants to Local Authorities,Local Govnmnt Resilience and Communities,UTTLESFORD DC,,,,424423242,2100330000,,Local Government Finance,"636,819.88",Yes
"Housing, Communities & Local Government",DLUHC,13/10/2023,Current (non AEF) Grants to Local Authorities,Local Govnmnt Resilience and Communities,WEST SUSSEX CC,,Public Bodies,,210659954,2100330001,,Local Government Finance,"127,887.46",Yes
"Housing, Communities & Local Government",DLUHC,13/10/2023,Current Grants to Non Profit Bodies,Levelling Up,HORSE &JOCKEY COMMUNITY PUB LIMITED,,,,,2100330103,,Community Investment and Funding Service,"40,000.00",Yes
"Housing, Communities & Local Government",DLUHC,13/10/2023,Current Grants to Non Profit Bodies,Levelling Up,Laxdale Hall Community Association,,,,,2100330108,,Community Investment and Funding Service,"34,000.00",Yes
"Housing, Communities & Local Government",DLUHC,13/10/2023,Current Grants to Non Profit Bodies,Local Govnmnt Resilience and Communities,HOLOCAUST MEMORIAL DAY TRUST,Yes,Small,,,2100330106,,Integration and Communities,"450,000.00",Yes
"Housing, Communities & Local Government",DLUHC,13/10/2023,Electricity,Safer and Greener Buildings,SCOTTISH & SOUTHERN ENERGY,,Large,,215590474,5106302768,,Intervention Delivery,"2,104.85",
"Housing, Communities & Local Government",DLUHC,13/10/2023,Electricity,Safer and Greener Buildings,SCOTTISH & SOUTHERN ENERGY,,Large,,215590474,5106302773,,Intervention Delivery,"5,874.35",
"Housing, Communities & Local Government",DLUHC,13/10/2023,ERDF Work in Progress � Capital,Regeneration,NGAGE SOLUTIONS LTD,,Small,,,7700014544,,Community Investment & Funding Services,"156,919.62",Yes
"Housing, Communities & Local Government",DLUHC,13/10/2023,ERDF Work in Progress � Resource,Regeneration,Manchester City Council,,,,,7700014543,,Community Investment & Funding Services,"25,031.38",Yes
"Housing, Communities & Local Government",DLUHC,13/10/2023,ERDF Work in Progress � Resource,Regeneration,NGAGE SOLUTIONS LTD,,Small,,,7700014544,,Community Investment & Funding Services,"10,106.92",Yes
"Housing, Communities & Local Government",DLUHC,13/10/2023,EXP � PURCHASE OF GOODS /SERVICES R & D,Local Govnmnt Resilience and Communities,MADE TECH LTD,,Medium,,,5106302771,,Elections Directorate,"84,018.57",
"Housing, Communities & Local Government",DLUHC,13/10/2023,Finance Consultancy,Safer and Greener Buildings,Heads Resourcing Group Ltd,,Small,,218026480,5106302742,,Intervention Delivery,"3,398.40",
"Housing, Communities & Local Government",DLUHC,13/10/2023,Finance Consultancy,Safer and Greener Buildings,Heads Resourcing Group Ltd,,Small,,218026480,5106302743,,Intervention Delivery,"3,186.00",
"Housing, Communities & Local Government",DLUHC,13/10/2023,Finance Consultancy,Safer and Greener Buildings,Heads Resourcing Group Ltd,,Small,,218026480,5106302744,,Intervention Delivery,"4,248.00",
"Housing, Communities & Local Government",DLUHC,13/10/2023,Finance Consultancy,Safer and Greener Buildings,Heads Resourcing Group Ltd,,Small,,218026480,5106302749,,Intervention Delivery,"4,248.00",
"Housing, Communities & Local Government",DLUHC,13/10/2023,"Furniture, Fittings and carpets",CFO and Corporate,POSTURITE LTD,,Medium,,216832621,5106302753,,People Capability & Change C/O,896.78,
"Housing, Communities & Local Government",DLUHC,13/10/2023,"Furniture, Fittings and carpets",CFO and Corporate,POSTURITE LTD,,Medium,,216832621,5106302756,,People Capability & Change C/O,925.30,
"Housing, Communities & Local Government",DLUHC,13/10/2023,IT - Service Contracts,CFO and Corporate,ALEXANDER MANN SOLUTIONS LTD,,Large,,,5106302782,IT Managed / Outsourced Services,Digital,"2,669.04",
"Housing, Communities & Local Government",DLUHC,13/10/2023,IT - Service Contracts,CFO and Corporate,ALEXANDER MANN SOLUTIONS LTD,,Large,,,5106302785,,Digital,"15,907.40",
"Housing, Communities & Local Government",DLUHC,13/10/2023,IT - Service Contracts,CFO and Corporate,ALEXANDER MANN SOLUTIONS LTD,,Large,,,5106302787,,Digital,"20,281.80",
"Housing, Communities & Local Government",DLUHC,13/10/2023,IT - Service Contracts,CFO and Corporate,ALEXANDER MANN SOLUTIONS LTD,,Large,,,5106302796,,Digital,"4,106.20",
"Housing, Communities & Local Government",DLUHC,13/10/2023,IT - Service Contracts,CFO and Corporate,ALEXANDER MANN SOLUTIONS LTD,,Large,,,5106302804,,Digital,"3,238.29",
"Housing, Communities & Local Government",DLUHC,13/10/2023,IT - Service Contracts,CFO and Corporate,ALEXANDER MANN SOLUTIONS LTD,,Large,,,5106302810,,Digital,"3,336.30",
"Housing, Communities & Local Government",DLUHC,13/10/2023,IT - Service Contracts,CFO and Corporate,DAISY CORPORATE SERVICES TRADING LT,,Large,,,5106302763,,Digital,342.00,
"Housing, Communities & Local Government",DLUHC,13/10/2023,IT - Service Contracts,CFO and Corporate,DAISY CORPORATE SERVICES TRADING LT,,Large,,,5106302766,,Digital,"14,698.04",
"Housing, Communities & Local Government",DLUHC,13/10/2023,IT - Service Contracts,CFO and Corporate,TPXIMPACT SCOTLAND LIMITED,,Micro,,211074993,5106302778,,Analysis and Data,"23,781.00",
"Housing, Communities & Local Government",DLUHC,13/10/2023,IT - Service Contracts,CFO and Corporate,X M A LTD,,Large,,298484148,5106302762,,Digital,594.00,
"Housing, Communities & Local Government",DLUHC,13/10/2023,IT - Service Contracts,Local Govnmnt Resilience and Communities,LAND AND PROPERTY SERVICES,,Large,,211574488,5106302780,,Elections Directorate,"9,900.00",
"Housing, Communities & Local Government",DLUHC,13/10/2023,IT - Service Contracts,Resettlements,EXELA TECHNOLOGIES LIMITED,,Large,,,5106302774,,Resettlements,"14,455.33",
"Housing, Communities & Local Government",DLUHC,13/10/2023,IT - Software Maintenance,Local Govnmnt Resilience and Communities,SOFTCAT PLC,,Large,,397333253,5106302194,,Elections Directorate,"7,000.00",
"Housing, Communities & Local Government",DLUHC,13/10/2023,IT - Software Maintenance,Local Govnmnt Resilience and Communities,SOFTCAT PLC,,Large,,397333253,5106302764,,Elections Directorate,"7,000.00",
"Housing, Communities & Local Government",DLUHC,13/10/2023,IT - Software Maintenance,Local Govnmnt Resilience and Communities,SOFTCAT PLC,,Large,,397333253,5106302765,,Elections Directorate,"17,500.00",
"Housing, Communities & Local Government",DLUHC,13/10/2023,IT Consultancy,CFO and Corporate,EBSCO INFORMATION SERVICES,,Large,,769928193,5106302760,,Digital,"34,144.00",
"Housing, Communities & Local Government",DLUHC,13/10/2023,Legal Fees,Safer and Greener Buildings,WALKER MORRIS LLP,,Large,,211317885,5106302724,,Remediation Policy,"3,268.20",
"Housing, Communities & Local Government",DLUHC,13/10/2023,Management Consultancy,Safer and Greener Buildings,ALEXANDER MANN SOLUTIONS LTD,,Large,,,5106302798,,Building Systems & Net Zero,"2,402.14",
"Housing, Communities & Local Government",DLUHC,13/10/2023,Mobile phone costs,CFO and Corporate,DAISY CORPORATE SERVICES TRADING LT,,Large,,,5106302661,,Digital,"8,029.68",
"Housing, Communities & Local Government",DLUHC,13/10/2023,Mobile phone costs,CFO and Corporate,DAISY CORPORATE SERVICES TRADING LT,,Large,,,5106302661,,Digital,120.00,
"Housing, Communities & Local Government",DLUHC,13/10/2023,Physical Storage,CFO and Corporate,RESTORE PLC,,Large,,,5106302627,Warehousing and Storage,Digital,283.23,
"Housing, Communities & Local Government",DLUHC,13/10/2023,Professional services,Regeneration,ALEXANDER MANN SOLUTIONS LTD,,Large,,,5106302795,,Housing Markets and Strategy,"12,072.23",
"Housing, Communities & Local Government",DLUHC,13/10/2023,Professional services,Safer and Greener Buildings,Currie & Brown Uk Ltd,,Large,,,5106302620,,Intervention Delivery,"18,516.66",
"Housing, Communities & Local Government",DLUHC,13/10/2023,Software Licences,CFO and Corporate,PHOENIX SOFTWARE LTD,,Large,,,5106302757,,People Capability & Change C/O,282.00,
"Housing, Communities & Local Government",DLUHC,13/10/2023,Software Licences,Local Govnmnt Resilience and Communities,LAND AND PROPERTY SERVICES,,Large,,211574488,5106302619,,Elections Directorate,"7,517.00",
"Housing, Communities & Local Government",DLUHC,13/10/2023,Steady State Service Provision,CFO and Corporate,GOVERNMENT PROPERTY AGENCY,,Medium,,,5106302726,,PAMU Regional Control Centres,"21,888.00",
"Housing, Communities & Local Government",DLUHC,13/10/2023,Steady State Service Provision,CFO and Corporate,GOVERNMENT PROPERTY AGENCY,,Medium,,,5106302727,,PAMU Regional Control Centres,"7,296.00",
"Housing, Communities & Local Government",DLUHC,13/10/2023,Steady State Service Provision,CFO and Corporate,GOVERNMENT PROPERTY AGENCY,,Medium,,,5106302728,,PAMU Regional Control Centres,"7,296.00",
"Housing, Communities & Local Government",DLUHC,13/10/2023,Steady State Service Provision,CFO and Corporate,GOVERNMENT PROPERTY AGENCY,,Medium,,,5106302729,,PAMU Regional Control Centres,"8,752.32",
"Housing, Communities & Local Government",DLUHC,13/10/2023,Steady State Service Provision,CFO and Corporate,GOVERNMENT PROPERTY AGENCY,,Medium,,,5106302730,,PAMU Regional Control Centres,"8,945.95",
"Housing, Communities & Local Government",DLUHC,13/10/2023,Steady State Service Provision,CFO and Corporate,GOVERNMENT PROPERTY AGENCY,,Medium,,,5106302731,,PAMU Regional Control Centres,"24,000.00",
"Housing, Communities & Local Government",DLUHC,13/10/2023,Steady State Service Provision,CFO and Corporate,GOVERNMENT PROPERTY AGENCY,,Medium,,,5106302732,,PAMU Regional Control Centres,"4,200.00",
"Housing, Communities & Local Government",DLUHC,13/10/2023,Steady State Service Provision,CFO and Corporate,GOVERNMENT PROPERTY AGENCY,,Medium,,,5106302733,,PAMU Regional Control Centres,"47,712.00",
"Housing, Communities & Local Government",DLUHC,13/10/2023,Steady State Service Provision,CFO and Corporate,GOVERNMENT PROPERTY AGENCY,,Medium,,,5106302734,,PAMU Regional Control Centres,"9,120.00",
"Housing, Communities & Local Government",DLUHC,13/10/2023,Steady State Service Provision,CFO and Corporate,GOVERNMENT PROPERTY AGENCY,,Medium,,,5106302736,,PAMU Regional Control Centres,"3,648.00",
"Housing, Communities & Local Government",DLUHC,13/10/2023,Steady State Service Provision,CFO and Corporate,GOVERNMENT PROPERTY AGENCY,,Medium,,,5106302738,,PAMU Regional Control Centres,"7,296.00",
"Housing, Communities & Local Government",DLUHC,13/10/2023,Steady State Service Provision,CFO and Corporate,GOVERNMENT PROPERTY AGENCY,,Medium,,,5106302739,,PAMU Regional Control Centres,"49,248.00",
"Housing, Communities & Local Government",DLUHC,13/10/2023,Steady State Service Provision,CFO and Corporate,GOVERNMENT PROPERTY AGENCY,,Medium,,,5106302740,,PAMU Regional Control Centres,"6,014.59",
"Housing, Communities & Local Government",DLUHC,13/10/2023,Steady State Service Provision,CFO and Corporate,GOVERNMENT PROPERTY AGENCY,,Medium,,,5106302745,,PAMU Regional Control Centres,"8,755.20",
"Housing, Communities & Local Government",DLUHC,13/10/2023,Steady State Service Provision,CFO and Corporate,GOVERNMENT PROPERTY AGENCY,,Medium,,,5106302747,,PAMU Regional Control Centres,"14,592.00",
"Housing, Communities & Local Government",DLUHC,13/10/2023,Steady State Service Provision,CFO and Corporate,GOVERNMENT PROPERTY AGENCY,,Medium,,,5106302748,,PAMU Regional Control Centres,"25,536.00",
"Housing, Communities & Local Government",DLUHC,13/10/2023,Steady State Service Provision,Regeneration,MANCHESTER METROPOLITAN UNIV,,Large,,,5106302361,,"Places,Infrastructure & Housing Delivery","96,220.00",
"Housing, Communities & Local Government",DLUHC,13/10/2023,Training,CFO and Corporate,NEW SCHOOL,,,,,5106302836,,Analysis and Data,"8,279.83",
"Housing, Communities & Local Government",DLUHC,13/10/2023,Training,CFO and Corporate,OCEAN MEDIA GROUP LTD,,Medium,,213581205,5106302691,,Communications,"1,620.00",
"Housing, Communities & Local Government",DLUHC,13/10/2023,Training,CFO and Corporate,WISE OWL BUSINESS SOLUTIONS LTD,,Micro,,738553754,5106302678,,Analysis and Data,"2,800.00",
"Housing, Communities & Local Government",DLUHC,13/10/2023,Vehicle hire,CFO and Corporate,EDENRED (UK GROUP) LTD,,Large,,210186342,5106302772,,People Capability & Change C/O,"6,601.42",
"Housing, Communities & Local Government",DLUHC,13/10/2023,Vehicle hire,CFO and Corporate,EDENRED (UK GROUP) LTD,,Large,,210186342,5106302772,,People Capability & Change C/O,96.94,
"Housing, Communities & Local Government",DLUHC,16/10/2023,Accommodation - actuals,CFO and Corporate,CORPORATE TRAVEL MANAGEMENT(NORTH)L,,Small,,213089972,2100330215,Business Travel Accommodation,Analysis and Data,330.09,
"Housing, Communities & Local Government",DLUHC,16/10/2023,Accommodation - actuals,CFO and Corporate,CORPORATE TRAVEL MANAGEMENT(NORTH)L,,Small,,213089972,2100330215,Business Travel Accommodation,Analysis and Data,"1,801.49",
"Housing, Communities & Local Government",DLUHC,16/10/2023,Accommodation - actuals,CFO and Corporate,CORPORATE TRAVEL MANAGEMENT(NORTH)L,,Small,,213089972,2100330215,Business Travel Accommodation,Digital,"4,291.88",
"Housing, Communities & Local Government",DLUHC,16/10/2023,Accommodation - actuals,CFO and Corporate,CORPORATE TRAVEL MANAGEMENT(NORTH)L,,Small,,213089972,2100330215,Business Travel Accommodation,Digital,485.25,
"Housing, Communities & Local Government",DLUHC,16/10/2023,Accommodation - actuals,CFO and Corporate,CORPORATE TRAVEL MANAGEMENT(NORTH)L,,Small,,213089972,2100330215,Business Travel Accommodation,Finance,555.36,
"Housing, Communities & Local Government",DLUHC,16/10/2023,Accommodation - actuals,CFO and Corporate,CORPORATE TRAVEL MANAGEMENT(NORTH)L,,Small,,213089972,2100330215,Business Travel Accommodation,Finance,500.52,
"Housing, Communities & Local Government",DLUHC,16/10/2023,Accommodation - actuals,CFO and Corporate,CORPORATE TRAVEL MANAGEMENT(NORTH)L,,Small,,213089972,2100330215,Business Travel Accommodation,Finance,285.48,
"Housing, Communities & Local Government",DLUHC,16/10/2023,Accommodation - actuals,CFO and Corporate,CORPORATE TRAVEL MANAGEMENT(NORTH)L,,Small,,213089972,2100330215,Business Travel Accommodation,Commercial,721.70,
"Housing, Communities & Local Government",DLUHC,16/10/2023,Accommodation - actuals,CFO and Corporate,CORPORATE TRAVEL MANAGEMENT(NORTH)L,,Small,,213089972,2100330215,Business Travel Accommodation,Commercial,352.00,
"Housing, Communities & Local Government",DLUHC,16/10/2023,Accommodation - actuals,CFO and Corporate,CORPORATE TRAVEL MANAGEMENT(NORTH)L,,Small,,213089972,2100330215,Business Travel Accommodation,Commercial,287.24,
"Housing, Communities & Local Government",DLUHC,16/10/2023,Accommodation - actuals,CFO and Corporate,CORPORATE TRAVEL MANAGEMENT(NORTH)L,,Small,,213089972,2100330215,Business Travel Accommodation,Commercial,"2,383.76",
"Housing, Communities & Local Government",DLUHC,16/10/2023,Accommodation - actuals,Levelling Up,CORPORATE TRAVEL MANAGEMENT(NORTH)L,,Small,,213089972,2100330215,Business Travel Accommodation,Areas,275.76,
"Housing, Communities & Local Government",DLUHC,16/10/2023,Accommodation - actuals,Levelling Up,CORPORATE TRAVEL MANAGEMENT(NORTH)L,,Small,,213089972,2100330215,Business Travel Accommodation,Areas,351.97,
"Housing, Communities & Local Government",DLUHC,16/10/2023,Accommodation - actuals,Levelling Up,CORPORATE TRAVEL MANAGEMENT(NORTH)L,,Small,,213089972,2100330215,Business Travel Accommodation,Spatial Data Unit,"1,027.90",
"Housing, Communities & Local Government",DLUHC,16/10/2023,Accommodation - actuals,Levelling Up,CORPORATE TRAVEL MANAGEMENT(NORTH)L,,Small,,213089972,2100330215,Business Travel Accommodation,Strategy & Private Offices,"2,358.91",
"Housing, Communities & Local Government",DLUHC,16/10/2023,Accommodation - actuals,Levelling Up,CORPORATE TRAVEL MANAGEMENT(NORTH)L,,Small,,213089972,2100330215,Business Travel Accommodation,Strategy & Private Offices,626.96,
"Housing, Communities & Local Government",DLUHC,16/10/2023,Accommodation - actuals,Levelling Up,CORPORATE TRAVEL MANAGEMENT(NORTH)L,,Small,,213089972,2100330215,Business Travel Accommodation,Levelling Up: Major Programmes,786.00,
"Housing, Communities & Local Government",DLUHC,16/10/2023,Accommodation - actuals,Levelling Up,CORPORATE TRAVEL MANAGEMENT(NORTH)L,,Small,,213089972,2100330215,Business Travel Accommodation,Levelling Up: Major Programmes,"1,097.50",
"Housing, Communities & Local Government",DLUHC,16/10/2023,Accommodation - actuals,Levelling Up,CORPORATE TRAVEL MANAGEMENT(NORTH)L,,Small,,213089972,2100330215,Business Travel Accommodation,Levelling Up: Major Programmes,369.23,
"Housing, Communities & Local Government",DLUHC,16/10/2023,Accommodation - actuals,Levelling Up,CORPORATE TRAVEL MANAGEMENT(NORTH)L,,Small,,213089972,2100330215,Business Travel Accommodation,Community Investment and Funding Service,257.09,
"Housing, Communities & Local Government",DLUHC,16/10/2023,Accommodation - actuals,Levelling Up,CORPORATE TRAVEL MANAGEMENT(NORTH)L,,Small,,213089972,2100330215,Business Travel Accommodation,Community Investment and Funding Service,311.17,
"Housing, Communities & Local Government",DLUHC,16/10/2023,Accommodation - actuals,Levelling Up,CORPORATE TRAVEL MANAGEMENT(NORTH)L,,Small,,213089972,2100330215,Business Travel Accommodation,Community Investment and Funding Service,865.98,
"Housing, Communities & Local Government",DLUHC,16/10/2023,Accommodation - actuals,Levelling Up,CORPORATE TRAVEL MANAGEMENT(NORTH)L,,Small,,213089972,2100330215,Business Travel Accommodation,Community Investment and Funding Service,696.40,
"Housing, Communities & Local Government",DLUHC,16/10/2023,Accommodation - actuals,Levelling Up,CORPORATE TRAVEL MANAGEMENT(NORTH)L,,Small,,213089972,2100330215,Business Travel Accommodation,"Levelling Up, Policy, Strat & Analysis",334.00,
"Housing, Communities & Local Government",DLUHC,16/10/2023,Accommodation - actuals,Levelling Up,CORPORATE TRAVEL MANAGEMENT(NORTH)L,,Small,,213089972,2100330215,Business Travel Accommodation,"Levelling Up, Policy, Strat & Analysis",257.00,
"Housing, Communities & Local Government",DLUHC,16/10/2023,Accommodation - actuals,Levelling Up,CORPORATE TRAVEL MANAGEMENT(NORTH)L,,Small,,213089972,2100330215,Business Travel Accommodation,"Levelling Up, Policy, Strat & Analysis",316.00,
"Housing, Communities & Local Government",DLUHC,16/10/2023,Accommodation - actuals,Levelling Up,CORPORATE TRAVEL MANAGEMENT(NORTH)L,,Small,,213089972,2100330215,Business Travel Accommodation,"Levelling Up, Policy, Strat & Analysis","1,502.00",
"Housing, Communities & Local Government",DLUHC,16/10/2023,Accommodation - actuals,Levelling Up,CORPORATE TRAVEL MANAGEMENT(NORTH)L,,Small,,213089972,2100330215,Business Travel Accommodation,"Levelling Up, Policy, Strat & Analysis",766.93,
"Housing, Communities & Local Government",DLUHC,16/10/2023,Accommodation - actuals,Levelling Up,CORPORATE TRAVEL MANAGEMENT(NORTH)L,,Small,,213089972,2100330215,Business Travel Accommodation,"Levelling Up, Policy, Strat & Analysis",637.36,
"Housing, Communities & Local Government",DLUHC,16/10/2023,Accommodation - actuals,Levelling Up,CORPORATE TRAVEL MANAGEMENT(NORTH)L,,Small,,213089972,2100330215,Business Travel Accommodation,"Levelling Up, Policy, Strat & Analysis",606.50,
"Housing, Communities & Local Government",DLUHC,16/10/2023,Accommodation - actuals,Local Govnmnt Resilience and Communities,CORPORATE TRAVEL MANAGEMENT(NORTH)L,,Small,,213089972,2100330215,Business Travel Accommodation,Local Government Finance,259.40,
"Housing, Communities & Local Government",DLUHC,16/10/2023,Accommodation - actuals,Local Govnmnt Resilience and Communities,CORPORATE TRAVEL MANAGEMENT(NORTH)L,,Small,,213089972,2100330215,Business Travel Accommodation,Local Government Finance,373.00,
"Housing, Communities & Local Government",DLUHC,16/10/2023,Accommodation - actuals,Local Govnmnt Resilience and Communities,CORPORATE TRAVEL MANAGEMENT(NORTH)L,,Small,,213089972,2100330215,Business Travel Accommodation,Local Government Finance,300.00,
"Housing, Communities & Local Government",DLUHC,16/10/2023,Accommodation - actuals,Local Govnmnt Resilience and Communities,CORPORATE TRAVEL MANAGEMENT(NORTH)L,,Small,,213089972,2100330215,Business Travel Accommodation,Local Government Finance,368.72,
"Housing, Communities & Local Government",DLUHC,16/10/2023,Accommodation - actuals,Local Govnmnt Resilience and Communities,CORPORATE TRAVEL MANAGEMENT(NORTH)L,,Small,,213089972,2100330215,Business Travel Accommodation,Integration and Communities,946.73,
"Housing, Communities & Local Government",DLUHC,16/10/2023,Accommodation - actuals,Local Govnmnt Resilience and Communities,CORPORATE TRAVEL MANAGEMENT(NORTH)L,,Small,,213089972,2100330215,Business Travel Accommodation,Strategy and Private Offices,"1,762.98",
"Housing, Communities & Local Government",DLUHC,16/10/2023,Accommodation - actuals,Local Govnmnt Resilience and Communities,CORPORATE TRAVEL MANAGEMENT(NORTH)L,,Small,,213089972,2100330215,Business Travel Accommodation,Homelessness & Rough Sleeping,"2,353.52",
"Housing, Communities & Local Government",DLUHC,16/10/2023,Accommodation - actuals,Local Govnmnt Resilience and Communities,CORPORATE TRAVEL MANAGEMENT(NORTH)L,,Small,,213089972,2100330215,Business Travel Accommodation,Homelessness & Rough Sleeping,859.50,
"Housing, Communities & Local Government",DLUHC,16/10/2023,Accommodation - actuals,Local Govnmnt Resilience and Communities,CORPORATE TRAVEL MANAGEMENT(NORTH)L,,Small,,213089972,2100330215,Business Travel Accommodation,Homelessness & Rough Sleeping,"1,887.18",
"Housing, Communities & Local Government",DLUHC,16/10/2023,Accommodation - actuals,Local Govnmnt Resilience and Communities,CORPORATE TRAVEL MANAGEMENT(NORTH)L,,Small,,213089972,2100330215,Business Travel Accommodation,Resilience & Recovery,"2,148.10",
"Housing, Communities & Local Government",DLUHC,16/10/2023,Accommodation - actuals,Local Govnmnt Resilience and Communities,CORPORATE TRAVEL MANAGEMENT(NORTH)L,,Small,,213089972,2100330215,Business Travel Accommodation,Elections Directorate,"1,054.00",
"Housing, Communities & Local Government",DLUHC,16/10/2023,Accommodation - actuals,Local Govnmnt Resilience and Communities,CORPORATE TRAVEL MANAGEMENT(NORTH)L,,Small,,213089972,2100330215,Business Travel Accommodation,Local Government Policy,556.84,
"Housing, Communities & Local Government",DLUHC,16/10/2023,Accommodation - actuals,Local Govnmnt Resilience and Communities,CORPORATE TRAVEL MANAGEMENT(NORTH)L,,Small,,213089972,2100330215,Business Travel Accommodation,Local Government Policy,"1,223.15",
"Housing, Communities & Local Government",DLUHC,16/10/2023,Accommodation - actuals,Local Govnmnt Resilience and Communities,CORPORATE TRAVEL MANAGEMENT(NORTH)L,,Small,,213089972,2100330215,Business Travel Accommodation,Local Government Policy,734.97,
"Housing, Communities & Local Government",DLUHC,16/10/2023,Accommodation - actuals,Local Govnmnt Resilience and Communities,CORPORATE TRAVEL MANAGEMENT(NORTH)L,,Small,,213089972,2100330215,Business Travel Accommodation,Local Government Policy,538.80,
"Housing, Communities & Local Government",DLUHC,16/10/2023,Accommodation - actuals,Local Govnmnt Resilience and Communities,CORPORATE TRAVEL MANAGEMENT(NORTH)L,,Small,,213089972,2100330215,Business Travel Accommodation,Local Government Policy,"2,171.82",
"Housing, Communities & Local Government",DLUHC,16/10/2023,Accommodation - actuals,Local Govnmnt Resilience and Communities,CORPORATE TRAVEL MANAGEMENT(NORTH)L,,Small,,213089972,2100330215,Business Travel Accommodation,Local Government Policy,"1,022.70",
"Housing, Communities & Local Government",DLUHC,16/10/2023,Accommodation - actuals,Local Govnmnt Resilience and Communities,CORPORATE TRAVEL MANAGEMENT(NORTH)L,,Small,,213089972,2100330215,Business Travel Accommodation,Covid 19 Inquiry,"1,089.27",
"Housing, Communities & Local Government",DLUHC,16/10/2023,Accommodation - actuals,Regeneration,CORPORATE TRAVEL MANAGEMENT(NORTH)L,,Small,,213089972,2100330215,Business Travel Accommodation,Chief Planner,455.60,
"Housing, Communities & Local Government",DLUHC,16/10/2023,Accommodation - actuals,Regeneration,CORPORATE TRAVEL MANAGEMENT(NORTH)L,,Small,,213089972,2100330215,Business Travel Accommodation,Chief Planner,855.10,
"Housing, Communities & Local Government",DLUHC,16/10/2023,Accommodation - actuals,Regeneration,CORPORATE TRAVEL MANAGEMENT(NORTH)L,,Small,,213089972,2100330215,Business Travel Accommodation,Housing Markets and Strategy,347.00,
"Housing, Communities & Local Government",DLUHC,16/10/2023,Accommodation - actuals,Regeneration,CORPORATE TRAVEL MANAGEMENT(NORTH)L,,Small,,213089972,2100330215,Business Travel Accommodation,Housing Markets and Strategy,512.89,
"Housing, Communities & Local Government",DLUHC,16/10/2023,Accommodation - actuals,Regeneration,CORPORATE TRAVEL MANAGEMENT(NORTH)L,,Small,,213089972,2100330215,Business Travel Accommodation,Social Housing & Resettlement,378.00,
"Housing, Communities & Local Government",DLUHC,16/10/2023,Accommodation - actuals,Regeneration,CORPORATE TRAVEL MANAGEMENT(NORTH)L,,Small,,213089972,2100330215,Business Travel Accommodation,Social Housing & Resettlement,"2,190.32",
"Housing, Communities & Local Government",DLUHC,16/10/2023,Accommodation - actuals,Regeneration,CORPORATE TRAVEL MANAGEMENT(NORTH)L,,Small,,213089972,2100330215,Business Travel Accommodation,Social Housing & Resettlement,360.99,
"Housing, Communities & Local Government",DLUHC,16/10/2023,Accommodation - actuals,Regeneration,CORPORATE TRAVEL MANAGEMENT(NORTH)L,,Small,,213089972,2100330215,Business Travel Accommodation,Leasehold Land & Planning Systems,348.25,
"Housing, Communities & Local Government",DLUHC,16/10/2023,Accommodation - actuals,Regeneration,CORPORATE TRAVEL MANAGEMENT(NORTH)L,,Small,,213089972,2100330215,Business Travel Accommodation,Leasehold Land & Planning Systems,"1,084.55",
"Housing, Communities & Local Government",DLUHC,16/10/2023,Accommodation - actuals,Regeneration,CORPORATE TRAVEL MANAGEMENT(NORTH)L,,Small,,213089972,2100330215,Business Travel Accommodation,"Places,Infrastructure & Housing Delivery","2,196.06",
"Housing, Communities & Local Government",DLUHC,16/10/2023,Accommodation - actuals,Regeneration,CORPORATE TRAVEL MANAGEMENT(NORTH)L,,Small,,213089972,2100330215,Business Travel Accommodation,"Places,Infrastructure & Housing Delivery",264.50,
"Housing, Communities & Local Government",DLUHC,16/10/2023,Accommodation - actuals,Regeneration,CORPORATE TRAVEL MANAGEMENT(NORTH)L,,Small,,213089972,2100330215,Business Travel Accommodation,"Places,Infrastructure & Housing Delivery",507.60,
"Housing, Communities & Local Government",DLUHC,16/10/2023,Accommodation - actuals,Regeneration,CORPORATE TRAVEL MANAGEMENT(NORTH)L,,Small,,213089972,2100330215,Business Travel Accommodation,Planning Reform,410.19,
"Housing, Communities & Local Government",DLUHC,16/10/2023,Accommodation - actuals,Regeneration,CORPORATE TRAVEL MANAGEMENT(NORTH)L,,Small,,213089972,2100330215,Business Travel Accommodation,Planning Reform & Housing Quality,339.19,
"Housing, Communities & Local Government",DLUHC,16/10/2023,Accommodation - actuals,Regeneration,CORPORATE TRAVEL MANAGEMENT(NORTH)L,,Small,,213089972,2100330215,Business Travel Accommodation,Planning Reform & Housing Quality,500.79,
"Housing, Communities & Local Government",DLUHC,16/10/2023,Accommodation - actuals,Regeneration,CORPORATE TRAVEL MANAGEMENT(NORTH)L,,Small,,213089972,2100330215,Business Travel Accommodation,Planning Reform & Housing Quality,"1,921.34",
"Housing, Communities & Local Government",DLUHC,16/10/2023,Accommodation - actuals,Safer and Greener Buildings,CORPORATE TRAVEL MANAGEMENT(NORTH)L,,Small,,213089972,2100330215,Business Travel Accommodation,Intervention Delivery,319.20,
"Housing, Communities & Local Government",DLUHC,16/10/2023,Accommodation - actuals,Safer and Greener Buildings,CORPORATE TRAVEL MANAGEMENT(NORTH)L,,Small,,213089972,2100330215,Business Travel Accommodation,Intervention Delivery,876.09,
"Housing, Communities & Local Government",DLUHC,16/10/2023,Accommodation - actuals,Safer and Greener Buildings,CORPORATE TRAVEL MANAGEMENT(NORTH)L,,Small,,213089972,2100330215,Business Travel Accommodation,Building Systems & Net Zero,804.30,
"Housing, Communities & Local Government",DLUHC,16/10/2023,Accommodation - actuals,Safer and Greener Buildings,CORPORATE TRAVEL MANAGEMENT(NORTH)L,,Small,,213089972,2100330215,Business Travel Accommodation,Building Systems & Net Zero,364.77,
"Housing, Communities & Local Government",DLUHC,16/10/2023,Accommodation - actuals,Safer and Greener Buildings,CORPORATE TRAVEL MANAGEMENT(NORTH)L,,Small,,213089972,2100330215,Business Travel Accommodation,Building Systems & Net Zero,440.00,
"Housing, Communities & Local Government",DLUHC,16/10/2023,Accommodation - actuals,Safer and Greener Buildings,CORPORATE TRAVEL MANAGEMENT(NORTH)L,,Small,,213089972,2100330215,Business Travel Accommodation,Building Systems & Net Zero,264.50,
"Housing, Communities & Local Government",DLUHC,16/10/2023,Accommodation - actuals,Safer and Greener Buildings,CORPORATE TRAVEL MANAGEMENT(NORTH)L,,Small,,213089972,2100330215,Business Travel Accommodation,Remediation Policy,596.00,
"Housing, Communities & Local Government",DLUHC,16/10/2023,Accommodation - actuals,Safer and Greener Buildings,CORPORATE TRAVEL MANAGEMENT(NORTH)L,,Small,,213089972,2100330215,Business Travel Accommodation,Remediation Policy,250.00,
"Housing, Communities & Local Government",DLUHC,16/10/2023,Accommodation - actuals,Safer and Greener Buildings,CORPORATE TRAVEL MANAGEMENT(NORTH)L,,Small,,213089972,2100330215,Business Travel Accommodation,Remediation Policy,364.84,
"Housing, Communities & Local Government",DLUHC,16/10/2023,Accommodation - actuals,Safer and Greener Buildings,CORPORATE TRAVEL MANAGEMENT(NORTH)L,,Small,,213089972,2100330215,Business Travel Accommodation,Remediation Policy,"1,072.00",
"Housing, Communities & Local Government",DLUHC,16/10/2023,Accommodation - actuals,Safer and Greener Buildings,CORPORATE TRAVEL MANAGEMENT(NORTH)L,,Small,,213089972,2100330215,Business Travel Accommodation,Remediation Policy,"1,111.98",
"Housing, Communities & Local Government",DLUHC,16/10/2023,Accommodation - actuals,Union & Windsor Framework,CORPORATE TRAVEL MANAGEMENT(NORTH)L,,Small,,213089972,2100330215,Business Travel Accommodation,Union & Devolution,"1,359.20",
"Housing, Communities & Local Government",DLUHC,16/10/2023,Accommodation - actuals,CFO and Corporate,CORPORATE TRAVEL MANAGEMENT(NORTH)L,,Small,,213089972,2100330215,Business Travel Accommodation,Not assigned,"1,730.89",
"Housing, Communities & Local Government",DLUHC,16/10/2023,Air Travel,CFO and Corporate,CORPORATE TRAVEL MANAGEMENT(NORTH)L,,Small,,213089972,2100330215,Air,Analysis and Data,388.54,
